Workbook

Sheet Title
D19: Written and developed by Dr. M. Popp, B. Bateman, and M. King
C20: Collaborators: Dr. John Anderson, Dr. Yi Liang, Byron Louk, Douglas Hutchings, Dr. Greg Thoma, Dr. Michael Kidd, Dr. James Mitchell
I27: © Copyright Reserved.
B29: Disclaimer: The information provided within represents estimates that are a result of a set of complex calculations that are described in more detail in information provided on the download site. Changes in parameter values and its implications on profitability differences are estimates. The user should use their own reasonable judgment to determine whether results are appropriate before acting on the results. As such, this software is provided ‘as is’ and without warranties as to performance of merchantability. Further, statements may have been made to you about this software. Any such statements do not constitute warranties and shall not be relied on by the user in deciding whether to use the program or act on its results. This program is provided without any expressed or implied warranties whatsoever. Because the diversity of conditions and hardware under which this program may be used, no warranty of merchantability or warranty of fitness for a particular purpose is offered. The user is advised to test the program thoroughly before relying on it. The user assumes the entire risk of using the program. The University of Arkansas will not be liable for any claim or damage brought against the user by any third party, nor will the University of Arkansas be liable for any consequential, indirect or special damages suffered by the user as a result of the software.

Sheet Monthly Cost & Use
B2: Date | C2: Meter 1 | E2: Meter 2 | G2: Combined Meters | R2: =(INDEX(LINEST(H4:H15-IF(R4>0,R4,0),G4:G15,IF(R4>0,FALSE,TRUE),FALSE),1)) -> 0.1170686808 | S2: kWh rate - variable in $/kWh | AB2: 30% Federal Income Tax Credit (2023 trough 2033) | AC2: 0.3
B3: End of | C3: kWh | D3: $ | E3: kWh | F3: $ | G3: kWh | H3: $ | I3: Est. $ | R3: =INDEX(LINEST(H4:H15,G4:G15,TRUE,FALSE),2) -> 1419.742037 | S3: estimated access fee | AB3: 40% Federal Income Tax Credit (2023-33 - Low Income or Indian Lands Provision) | AC3: 0.4
B4: Jan '21 | C4: 16760 | D4: 2589.44 | G4: =+C4+E4 -> 16760 | H4: =+D4+F4 -> 2589.44 | I4: =+IF($R$4=0,$R$3,$R$4)+G4*$R$2 -> 2262.07109 | R4: 300 | S4: known access fee (set to zero if you want model to estimate)
B5: Feb '21 | C5: 17024 | D5: 2611.26 | G5: =+C5+E5 -> 17024 | H5: =+D5+F5 -> 2611.26 | I5: =+IF($R$4=0,$R$3,$R$4)+G5*$R$2 -> 2292.977222 | R5: =SUM(G4:G15) -> 374245 | S5: Total kWh | AB5: 2023 | AC5: 0.8
B6: Mar '21 | C6: 34667 | D6: 4249.5 | G6: 34667 | H6: 4249.5 | I6: 4358.419957 | AB6: 2024 | AC6: 0.6
B7: Apr '21 | C7: 22395 | D7: 3512.04 | G7: 22395 | H7: 3512.04 | I7: 2921.753106 | AB7: 2025 | AC7: 0.4
B8: May '21 | C8: 24287 | D8: 3771.04 | G8: 24287 | H8: 3771.04 | I8: 3143.24705 | AB8: 2026 | AC8: 0.2
B9: Jun '21 | C9: 33412 | D9: 4513.77 | G9: 33412 | H9: 4513.77 | I9: 4211.498763
B10: Jul '21 | C10: 30692 | D10: 4333.8 | G10: 30692 | H10: 4333.8 | I10: 3893.071951
B11: Aug '21 | C11: 48760 | D11: 5575.09 | G11: 48760 | H11: 5575.09 | I11: 6008.268875
B12: Sep '21 | C12: 32073 | D12: 4544.67 | G12: 32073 | H12: 4544.67 | I12: 4054.743799
B13: Oct '21 | C13: 73186 | D13: 7783.43 | G13: 73186 | H13: 7783.43 | I13: 8867.788472
B14: Nov '20 | C14: 23428 | D14: 3858.9 | G14: 23428 | H14: 3858.9 | I14: 3042.685054
B15: Dec' 20 | C15: 17561 | D15: 2721.64 | G15: 17561 | H15: 2721.64 | I15: 2355.843103
G16: =SUM(G4:G15) -> 374245 | H16: =SUM(H4:H15) -> 50064.58 | I16: =SUM(I4:I15) -> 47412.36844
G33: Zip | H33: 72727
B36: Please indicate the Federal Income Tax credit you are eligible for | H36: 30% Federal Income Tax Credit (2023 trough 2033)
B38: Please indicate what year your system will go into service | H38: 2025 | K38: https://www.energy.gov/eere/solar/federal-solar-tax-credits-businesses
B40: Disclaimer: The information provided within represents estimates that are a result of a set of complex calculations that are described in more detail in information provided on the download site. Changes in parameter values and its implications on profitability differences are estimates. The user should use their own reasonable judgment to determine whether results are appropriate before acting on the results. As such, this software is provided ‘as is’ and without warranties as to performance of merchantability. Further, statements may have been made to you about this software. Any such statements do not constitute warranties and shall not be relied on by the user in deciding whether to use the program or act on its results. This program is provided without any expressed or implied warranties whatsoever. Because the diversity of conditions and hardware under which this program may be used, no warranty of merchantability or warranty of fitness for a particular purpose is offered. The user is advised to test the program thoroughly before relying on it. The user assumes the entire risk of using the program. The University of Arkansas will not be liable for any claim or damage brought against the user by any third party, nor will the University of Arkansas be liable for any consequential, indirect or special damages suffered by the user as a result of the software.

Sheet Farmer Input
A1: TRUE | C1: Please enter input below in the cells highlighted in green. Graphs will update automatically. To ensure proper calculations have been performed, you can also push the 'Refresh' button. | O1: Disclaimer: The information provided within represents estimates that are a result of a set of complex calculations that are described in more detail in information provided on the download site. Changes in parameter values and its implications on profitability differences are estimates. The user should use their own reasonable judgment to determine whether results are appropriate before acting on the results. As such, this software is provided ‘as is’ and without warranties as to performance of merchantability. Further, statements may have been made to you about this software. Any such statements do not constitute warranties and shall not be relied on by the user in deciding whether to use the program or act on its results. This program is provided without any expressed or implied warranties whatsoever. Because the diversity of conditions and hardware under which this program may be used, no warranty of merchantability or warranty of fitness for a particular purpose is offered. The user is advised to test the program thoroughly before relying on it. The user assumes the entire risk of using the program. The University of Arkansas will not be liable for any claim or damage brought against the user by any third party, nor will the University of Arkansas be liable for any consequential, indirect or special damages suffered by the user as a result of the software. | U1: Descriptor
A2: No | D2: without tracking | F2: with tracking | U2: 100% Fin. @ 10 yr loan (Scenario 1)
A3: Yes > 500 kW | C3: PVWatts Estimate | D3: 1384 | F3: =+D3*1.16 -> 1605.44 | H3: Potential Bonus Depreciation | J3: =+D11*(1-VLOOKUP('Monthly Cost & Use'!H36,'Monthly Cost & Use'!AB2:AC3,2,FALSE)/2)*VLOOKUP('Monthly Cost & Use'!H38,'Monthly Cost & Use'!AB5:AC8,2,FALSE) -> 148021.4689 | U3: NPV 1yr ITC | V3: 34584
C4: Annual Electiricity Use - kWh | D4: =+'Monthly Cost & Use'!R5+D8*IF(D9="No",D3,F3) -> 374245 | H4: Useful Life | J4: 20 | U4: NPV 5yr ITC | V4: 31668.39 | AB4: =+'Monthly Cost & Use'!R5+D8*IF(D9="No",D3,F3) -> 374245
A5: MACRS | C5: Total House Square Ft. | D5: =43*500*10 -> 215000 | H5: Zip | J5: =+'Monthly Cost & Use'!H33 -> 72727 | U5: B/E 1 yr ITC | V5: 2.378714837 | AB5: =+'Monthly Cost & Use'!H33 -> 72727
A6: SLN | C6: kWh/1000 sq ft. | D6: =+D4/D5*1000 -> 1740.674419 | H6: Exp. Elec. Rate (¢/kWh) | J6: =+'Monthly Cost & Use'!R2*100 -> 11.70686808 | U6: B/E 5yr ITC | V6: 2.739218344 | AB6: =+'Monthly Cost & Use'!R2*100 -> 11.70686808
C7: Expected kWDC | D7: =+(D4)/IF(D9=A2,D3,D3*1.18) -> 270.408237 | H7: Electricity Inflation | J7: 0.02 | U7: Neg. Cash 1 yr | V7: 9
B8: =-'Monthly Cost & Use'!R5/IF(D9="No",D3,F3) -> -270.408237 | C8: Additional kW | D8: 0 | H8: O & M Inflation | J8: 0.01 | U8: Neg. Cash 5 yr | V8: 5
C9: Tracker System | D9: No | F9: Grant awarded: | H9: Monthly Est. Base Fee | J9: =IF('Monthly Cost & Use'!R4>0,'Monthly Cost & Use'!R4,'Monthly Cost & Use'!R3) -> 300 | U9: Total Neg Cash 1 yr | V9: -31885.5 | AB9: =IF('Monthly Cost & Use'!R4>0,'Monthly Cost & Use'!R4,'Monthly Cost & Use'!R3) -> 300
C10: Specify REAP (% of Initial Cost) | D10: 0.25 | F10: =IF(D10*D11>500000,500000,D10*D11) -> 108839.3154 | H10: Income Tax Rate (Federal) | J10: 0.2 | U10: Total Neg Cash 5 yr | V10: -16429.12
C11: Initial Cost | D11: =+'ITC1'!N5 -> 435357.2616 | F11: Second loan | G11: Interest rate: | H11: Income Tax Rate (State) | J11: 0.05 | U11: 100% Fin. @ 20 yr loan (Scenario 2)
B12: 0.3413377093 | C12: Amt. Financed (1st Loan) | D12: 0.85 | F12: =+(D11-F10)*(1-D12) -> 48977.69193 | G12: 0.081 | H12: Years to Realize Tax Credit | J12: 5 | U12: NPV 1yr ITC | V12: 30286.57
C13: Loan Length (yrs) | D13: 20 | F13: =CONCATENATE("Annual P&I on first loan of $",TEXT(ROUND((D11-F10)*D12,0),"#,#")) -> Annual P&I on first loan of $277,540 | H13: Depreciation | J13: MACRS | U13: NPV 5yr ITC | V13: 27370.96
C14: Debt Financing Rate | D14: 0.096 | F14: =('ITC1'!S11+'ITC1'!V11)*-1 -> 31262.27915 | H14: Discount rate | J14: 0.06 | U14: B/E 1 yr ITC | V14: 2.910074296
U15: B/E 5yr ITC | V15: 3.270577803
D16: Immediate Tax Benefit vs. | I16: Delayed Tax Benefit | U16: Neg. Cash 1 yr | V16: 19
U17: Neg. Cash 5 yr | V17: 15
U18: Total Neg Cash 1 yr | V18: -24998.51
C19: Processing… This will take about 2 mins and is normal. Please do not switch to another program as it may disrupt the process. Please wait for the printer prompt! | Q19: For a Summary Table: | U19: Total Neg Cash 5 yr | V19: -18010.27
U20: Opt. Fin. @ 10 yr (Scenario 3) | V20: 0.4684100326 | W20: 0.4028449228
F21: 23 yr NPV | H21: =+'ITC1'!AH42 -> 341114.6587 | L21: 23 yr NPV | M21: =+ITCn!AH42 -> 329001.9364 | U21: NPV 1yr ITC | V21: 35120.47
F22: 30 yr NPV | H22: =+'ITC1'!AH41 -> 405261.2813 | L22: 30 yr NPV | M22: =+ITCn!AH41 -> 393148.559 | U22: NPV 5yr ITC | V22: 32748.59
F23: B/E Elec. cost (¢/kWh) | H23: 2.887854122 | L23: B/E Elec. cost (¢/kWh) | M23: 3.151442756 | U23: B/E 1 yr ITC | V23: 2.312383371 | AF23: Summary of Output with Current Selections on Interest Rate, Amount Financed, etc.
F24: Existing Electric Bill (Pre-Tax) | H24: ='Monthly Cost & Use'!R2*D4+12*J9 -> 47412.36844 | U24: B/E 5yr ITC | V24: 2.60565676
U25: Neg. Cash 1 yr | V25: 9
Q26: For Automated Sensitivity Analyses: | U26: Neg. Cash 5 yr | V26: 8 | AR26: Sensitivity Analyses for Immediate to Distant Income Tax Credit Realization Periods, Loan Length, Interest Rate, Tracker Technology, Amount Financed, Electricity Inflation Rate, and Base Fee.
U27: Total Neg Cash 1 yr | V27: -7119.03 | AB27: 30 yr NPV: | AD27: =+H22 -> 405261.2813 | AF27: IMMEDIATE TAX BENEFIT WITH ALL BONUS DEPRECIATION REALIZED
U28: Total Neg Cash 5 yr | V28: -9852.36 | AB28: B/E Elec. Cost (¢/kWh): | AD28: =+H23 -> 2.887854122 | AF28: Inverters: | AG28: =-SUM('ITC1'!U10:U39) -> 35153.07081 | AI28: Grant(s) awarded: | AK28: =$F$10 -> 108839.3154
C29: =ROUNDUP(SUM('ITC1'!AA10+'ITC1'!AB10+'ITC1'!AC10+'ITC1'!M10+'ITC1'!R10)/25000,0)*25000 -> 250000 | U29: Opt. Fin. @ 20 yr (Scenario 4) | V29: 0.5059279113 | W29: 0.5724470967 | AB29: Install Year/ITC rate | AD29: =CONCATENATE('Monthly Cost & Use'!H38," / ", TEXT(VLOOKUP('Monthly Cost & Use'!H36,'Monthly Cost & Use'!AB2:AC3,2,FALSE),"0%")) -> 2025 / 30% | AF29: Size (kWDC): | AG29: =+$D$7 -> 270.408237 | AI29: =CONCATENATE("Second 1 Year Note @ ",ROUND($G$12*100,2),"% :") -> Second 1 Year Note @ 8.1% : | AK29: =+$F$12 -> 48977.69193
C30: =ROUNDUP(IF('ITC1'!W39<SUM('ITC1'!Z10+'ITC1'!U21),'ITC1'!W39,SUM('ITC1'!Z10+'ITC1'!U21))/25000,0)*25000 -> -125000 | U30: NPV 1yr ITC | V30: 32908.42 | AB30: Est. System Install Cost: | AD30: =+'Farmer Input'!D11 -> 435357.2616 | AE30: =CONCATENATE(TEXT(ROUND(IF(D9="No",D3,F3),0),"#,###")," kWh/kW resulting in Total Solar kWh") -> 1,384 kWh/kW resulting in Total Solar kWh | AF30: =CONCATENATE(TEXT(ROUND(($D$11-$F$10)*$D$12,0),"$#,#")," financed @",ROUND($D$14*100,2),"% over ",$D$13," years.") -> $277,540 financed @9.6% over 20 years. | AO30: Income Tax Credit & Bonus Depreciation Tax Benefits Realized in Year 1
U31: NPV 5yr ITC | V31: 29981.74 | AB31: Tracking: | AD31: =+D9 -> No | AO31: Loan Length | AP31: 5 | AQ31: 10 | AR31: 15 | AS31: 20 | AT31: 25 | AV31: % Amt. Financed | AW31: 0.3 | AX31: 0.4 | AY31: 0.5 | AZ31: 0.6 | BA31: 0.7
U32: B/E 1 yr ITC | V32: 2.58589441 | AC32: Investment Tax Credit | AH32: Debt Service (Principal) | AI32: Utility Bill without Solar | AJ32: Utility Bill with Solar | AK32: Est. Prop. Tax for Solar System | AL32: Est. Maint. & Insurance for Solar System | AM32: Annual After Tax Benefit of Solar | AO32: NPV | AP32: 429732 | AQ32: 420754 | AR32: 412555 | AS32: 405261 | AT32: 398931 | AV32: NPV | AW32: 422386 | AX32: 419273 | AY32: 416159 | AZ32: 413045 | BA32: 409932
U33: B/E 5yr ITC | V33: 2.947765696 | AD33: Accounting Depreciation | AG33: Loan Interest | AO33: B/E ¢/kWh | AP33: 2.36 | AQ33: 2.55 | AR33: 2.73 | AS33: 2.89 | AT33: 3.03 | AV33: B/E ¢/kWh | AW33: 2.52 | AX33: 2.58 | AY33: 2.65 | AZ33: 2.72 | BA33: 2.79
U34: Neg. Cash 1 yr | V34: 1 | AB34: Year | AF34: ¢/kWh
U35: Neg. Cash 5 yr | V35: 6 | AB35: 1 | AC35: =+'ITC1'!M10 -> 97955.38385 | AD35: =+'ITC1'!N10 -> 192427.9096 | AE35: =+'ITC1'!P10 -> 374245 | AF35: =+'ITC1'!Q10*100 -> 11.70686808 | AG35: ='ITC1'!S10 -> -30402.32946 | AH35: =+'ITC1'!V10 -> -53804.83465 | AI35: =+'ITC1'!W10 -> -47484.36844 | AJ35: =+'ITC1'!X10 -> -3672 | AK35: =+'ITC1'!Y10 -> -3101.920489 | AL35: =+'ITC1'!T10 -> -2839.286488 | AM35: =+'ITC1'!AH10 -> 96009.55983 | AO35: Interest Rate | AP35: 0.077 | AQ35: 0.082 | AR35: 0.087 | AS35: 0.092 | AT35: 0.097 | AV35: Elec. Inflation Rate | AW35: 0.01 | AX35: 0.0125 | AY35: 0.015 | AZ35: 0.0175 | BA35: 0.02
U36: Total Neg Cash 1 yr | V36: -980.21 | AB36: 2 | AC36: =+'ITC1'!M11 -> 0 | AD36: =+'ITC1'!N11 -> 71050.30509 | AE36: =+'ITC1'!P11 -> 372373.775 | AF36: =+'ITC1'!Q11*100 -> 11.94100544 | AG36: ='ITC1'!S11 -> -25950.78722 | AH36: =+'ITC1'!V11 -> -5311.491923 | AI36: =+'ITC1'!W11 -> -48434.05581 | AJ36: =+'ITC1'!X11 -> -3968.883079 | AK36: =+'ITC1'!Y11 -> -2938.661516 | AL36: =+'ITC1'!T11 -> -2867.679353 | AM36: =+'ITC1'!AH11 -> 21398.69523 | AO36: NPV | AP36: 439227 | AQ36: 430508 | AR36: 421629 | AS36: 412596 | AT36: 403413 | AV36: NPV | AW36: 350025 | AX36: 363023 | AY36: 376545 | AZ36: 390616 | BA36: 405261
U37: Total Neg Cash 5 yr | V37: -2846.18 | AB37: 3 | AC37: =+'ITC1'!M12 -> 0 | AD37: =+'ITC1'!N12 -> 42630.18305 | AE37: =+'ITC1'!P12 -> 370511.9061 | AF37: =+'ITC1'!Q12*100 -> 12.17982555 | AG37: ='ITC1'!S12 -> -25417.83906 | AH37: =+'ITC1'!V12 -> -5844.440084 | AI37: =+'ITC1'!W12 -> -49402.73693 | AJ37: =+'ITC1'!X12 -> -4275.033122 | AK37: =+'ITC1'!Y12 -> -2775.402542 | AL37: =+'ITC1'!T12 -> -2896.356147 | AM37: =+'ITC1'!AH12 -> 15055.76445 | AO37: B/E ¢/kWh | AP37: 2.15 | AQ37: 2.34 | AR37: 2.53 | AS37: 2.73 | AT37: 2.93 | AV37: B/E ¢/kWh | AW37: 3.22 | AX37: 3.13 | AY37: 3.05 | AZ37: 2.97 | BA37: 2.89
U38: Other | AB38: 4 | AC38: =+'ITC1'!M13 -> 0 | AD38: =+'ITC1'!N13 -> 25578.10983 | AE38: =+'ITC1'!P13 -> 368659.3466 | AF38: =+'ITC1'!Q13*100 -> 12.42342206 | AG38: ='ITC1'!S13 -> -24831.41558 | AH38: =+'ITC1'!V13 -> -6430.863568 | AI38: =+'ITC1'!W13 -> -50390.79167 | AJ38: =+'ITC1'!X13 -> -4590.685073 | AK38: =+'ITC1'!Y13 -> -2612.143569 | AL38: =+'ITC1'!T13 -> -2925.319708 | AM38: =+'ITC1'!AH13 -> 11435.61587
U39: PVWatts | V39: =+D3 -> 1384 | AB39: 5 | AC39: =+'ITC1'!M14 -> 0 | AD39: =+'ITC1'!N14 -> 25578.10983 | AE39: =+'ITC1'!P14 -> 366816.0499 | AF39: =+'ITC1'!Q14*100 -> 12.6718905 | AG39: ='ITC1'!S14 -> -24186.15113 | AH39: =+'ITC1'!V14 -> -7076.128018 | AI39: =+'ITC1'!W14 -> -51398.6075 | AJ39: =+'ITC1'!X14 -> -4916.079319 | AK39: =+'ITC1'!Y14 -> -2448.884596 | AL39: =+'ITC1'!T14 -> -2954.572905 | AM39: =+'ITC1'!AH14 -> 11901.2372 | AO39: Tracker | AP39: Yes | AQ39: No | AS39: See note below for baseline assumptions | AV39: Mtly Base Fee | AW39: 240 | AX39: 270 | AY39: 300 | AZ39: 330 | BA39: 360
U40: Grant awarded | V40: =+F10 -> 108839.3154 | AB40: 6 | AC40: =+'ITC1'!M15 -> 0 | AD40: =+'ITC1'!N15 -> 12789.05492 | AE40: =+'ITC1'!P15 -> 364981.9696 | AF40: =+'ITC1'!Q15*100 -> 12.92532831 | AG40: ='ITC1'!S15 -> -23476.14169 | AH40: =+'ITC1'!V15 -> -7786.137459 | AI40: =+'ITC1'!W15 -> -52426.57965 | AJ40: =+'ITC1'!X15 -> -5251.461799 | AK40: =+'ITC1'!Y15 -> -2285.625623 | AL40: =+'ITC1'!T15 -> -2984.118634 | AM40: =+'ITC1'!AH15 -> 9289.45197 | AO40: NPV | AP40: 416588 | AQ40: 405261 | AV40: Elec. Rate ¢/kWh | AW40: 11.86 | AX40: 11.78 | AY40: 11.71 | AZ40: 11.63 | BA40: 11.55
U41: Intitial Cost | V41: =+D11 -> 435357.2616 | AB41: 7 | AC41: =+'ITC1'!M16 -> 0 | AD41: =+'ITC1'!N16 -> 0 | AE41: =+'ITC1'!P16 -> 363157.0598 | AF41: =+'ITC1'!Q16*100 -> 13.18383488 | AG41: ='ITC1'!S16 -> -22694.89082 | AH41: =+'ITC1'!V16 -> -8567.388321 | AI41: =+'ITC1'!W16 -> -53475.11124 | AJ41: =+'ITC1'!X16 -> -5597.084136 | AK41: =+'ITC1'!Y16 -> -2122.36665 | AL41: =+'ITC1'!T16 -> -3013.959821 | AM41: =+'ITC1'!AH16 -> 6668.187136 | AO41: B/E ¢/kWh | AP41: 2.64 | AQ41: 2.89 | AV41: NPV | AW41: 412357 | AX41: 408809 | AY41: 405261 | AZ41: 401713 | BA41: 398166
U42: Expected kWDC | V42: =+D7 -> 270.408237 | AB42: 8 | AC42: =+'ITC1'!M17 -> 0 | AD42: =+'ITC1'!N17 -> 0 | AE42: =+'ITC1'!P17 -> 361341.2745 | AF42: =+'ITC1'!Q17*100 -> 13.44751158 | AG42: ='ITC1'!S17 -> -21835.25027 | AH42: =+'ITC1'!V17 -> -9427.028874 | AI42: =+'ITC1'!W17 -> -54544.61347 | AJ42: =+'ITC1'!X17 -> -5953.203757 | AK42: =+'ITC1'!Y17 -> -1959.107677 | AL42: =+'ITC1'!T17 -> -3044.099419 | AM42: =+'ITC1'!AH17 -> 7105.214907
U43: Starting Elect. Bill | V43: =+H24 -> 47412.36844 | AB43: 9 | AC43: =+'ITC1'!M18 -> 0 | AD43: =+'ITC1'!N18 -> 0 | AE43: =+'ITC1'!P18 -> 359534.5681 | AF43: =+'ITC1'!Q18*100 -> 13.71646181 | AG43: ='ITC1'!S18 -> -20889.35451 | AH43: =+'ITC1'!V18 -> -10372.92464 | AI43: =+'ITC1'!W18 -> -55635.50574 | AJ43: =+'ITC1'!X18 -> -6320.084021 | AK43: =+'ITC1'!Y18 -> -1795.848704 | AL43: =+'ITC1'!T18 -> -3074.540413 | AM43: =+'ITC1'!AH18 -> 7529.390712 | AO43: Income Tax Credit Realized in Years 1-2
U44: Current Variable Electricity Rate | V44: =+J6 -> 11.70686808 | AB44: 10 | AC44: =+'ITC1'!M19 -> 0 | AD44: =+'ITC1'!N19 -> 0 | AE44: =+'ITC1'!P19 -> 357736.8953 | AF44: =+'ITC1'!Q19*100 -> 13.99079104 | AG44: ='ITC1'!S19 -> -19848.5488 | AH44: =+'ITC1'!V19 -> -11413.73034 | AI44: =+'ITC1'!W19 -> -56748.21585 | AJ44: =+'ITC1'!X19 -> -6697.994352 | AK44: =+'ITC1'!Y19 -> -1632.589731 | AL44: =+'ITC1'!T19 -> -3105.285817 | AM44: =+'ITC1'!AH19 -> 7938.75549 | AO44: Loan Length | AP44: 5 | AQ44: 10 | AR44: 15 | AS44: 20 | AT44: 25 | AV44: % Amt. Financed | AW44: 0.3 | AX44: 0.4 | AY44: 0.5 | AZ44: 0.6 | BA44: 0.7
U45: Mo. Acc. Fee | V45: =+J9 -> 300 | AB45: 11 | AC45: =+'ITC1'!M20 -> 0 | AD45: =+'ITC1'!N20 -> 0 | AE45: =+'ITC1'!P20 -> 355948.2108 | AF45: =+'ITC1'!Q20*100 -> 14.27060686 | AG45: ='ITC1'!S20 -> -18703.31001 | AH45: =+'ITC1'!V20 -> -12558.96914 | AI45: =+'ITC1'!W20 -> -57883.18017 | AJ45: =+'ITC1'!X20 -> -7087.210369 | AK45: =+'ITC1'!Y20 -> -1469.330758 | AL45: =+'ITC1'!T20 -> -3136.338676 | AM45: =+'ITC1'!AH20 -> 8331.143535 | AO45: NPV | AP45: 425104 | AQ45: 416126 | AR45: 407926 | AS45: 400633 | AT45: 394302 | AV45: NPV | AW45: 422200 | AX45: 418278 | AY45: 414357 | AZ45: 410436 | BA45: 406515
U46: Zip code | V46: =+'Monthly Cost & Use'!H33 -> 72727 | AB46: 12 | AC46: =+'ITC1'!M21 -> 0 | AD46: =+'ITC1'!N21 -> 0 | AE46: =+'ITC1'!P21 -> 354168.4697 | AF46: =+'ITC1'!Q21*100 -> 14.556019 | AG46: ='ITC1'!S21 -> -17443.15945 | AH46: =+'ITC1'!V21 -> -13819.1197 | AI46: =+'ITC1'!W21 -> -59040.84377 | AJ46: =+'ITC1'!X21 -> -7488.014022 | AK46: =+'ITC1'!Y21 -> -1306.071785 | AL46: =+'ITC1'!T21 -> -3167.702062 | AM46: =+'ITC1'!AH21 -> -5681.556599 | AO46: B/E cost | AP46: 2.46 | AQ46: 2.65 | AR46: 2.83 | AS46: 2.99 | AT46: 3.13 | AV46: B/E ¢/kWh | AW46: 2.52 | AX46: 2.6 | AY46: 2.69 | AZ46: 2.78 | BA46: 2.86
U47: # of Meters | V47: 21 | AB47: 13 | AC47: =+'ITC1'!M22 -> 0 | AD47: =+'ITC1'!N22 -> 0 | AE47: =+'ITC1'!P22 -> 352397.6274 | AF47: =+'ITC1'!Q22*100 -> 14.84713938 | AG47: ='ITC1'!S22 -> -16056.56703 | AH47: =+'ITC1'!V22 -> -15205.71211 | AI47: =+'ITC1'!W22 -> -60221.66065 | AJ47: =+'ITC1'!X22 -> -7900.693735 | AK47: =+'ITC1'!Y22 -> -1142.812812 | AL47: =+'ITC1'!T22 -> -3199.379083 | AM47: =+'ITC1'!AH22 -> 9055.165956
AB48: 14 | AC48: =+'ITC1'!M23 -> 0 | AD48: =+'ITC1'!N23 -> 0 | AE48: =+'ITC1'!P23 -> 350635.6392 | AF48: =+'ITC1'!Q23*100 -> 15.14408217 | AG48: ='ITC1'!S23 -> -14530.84574 | AH48: =+'ITC1'!V23 -> -16731.43341 | AI48: =+'ITC1'!W23 -> -61426.09386 | AJ48: =+'ITC1'!X23 -> -8325.544541 | AK48: =+'ITC1'!Y23 -> -979.5538385 | AL48: =+'ITC1'!T23 -> -3231.372874 | AM48: =+'ITC1'!AH23 -> 9381.237014 | AO48: Interest Rate | AP48: 0.077 | AQ48: 0.082 | AR48: 0.087 | AS48: 0.092 | AT48: 0.097 | AV48: Elec. Inflation Rate | AW48: 0.01 | AX48: 0.0125 | AY48: 0.015 | AZ48: 0.0175 | BA48: 0.02
AB49: 15 | AC49: =+'ITC1'!M24 -> 0 | AD49: =+'ITC1'!N24 -> 0 | AE49: =+'ITC1'!P24 -> 348882.461 | AF49: =+'ITC1'!Q24*100 -> 15.44696381 | AG49: ='ITC1'!S24 -> -12852.03557 | AH49: =+'ITC1'!V24 -> -18410.24358 | AI49: =+'ITC1'!W24 -> -62654.61574 | AJ49: =+'ITC1'!X24 -> -8762.868233 | AK49: =+'ITC1'!Y24 -> -816.2948654 | AL49: =+'ITC1'!T24 -> -3263.686602 | AM49: =+'ITC1'!AH24 -> 9679.151579 | AO49: NPV | AP49: 434598 | AQ49: 425879 | AR49: 417001 | AS49: 407967 | AT49: 398784 | AV49: NPV | AW49: 345396 | AX49: 358394 | AY49: 371917 | AZ49: 385987 | BA49: 400633
AB50: 16 | AC50: =+'ITC1'!M25 -> 0 | AD50: =+'ITC1'!N25 -> 0 | AE50: =+'ITC1'!P25 -> 347138.0487 | AF50: =+'ITC1'!Q25*100 -> 15.75590309 | AG50: ='ITC1'!S25 -> -11004.77578 | AH50: =+'ITC1'!V25 -> -20257.50337 | AI50: =+'ITC1'!W25 -> -63907.70805 | AJ50: =+'ITC1'!X25 -> -9212.97351 | AK50: =+'ITC1'!Y25 -> -653.0358923 | AL50: =+'ITC1'!T25 -> -3296.323468 | AM50: =+'ITC1'!AH25 -> 9945.352179 | AO50: B/E ¢/kWh | AP50: 2.25 | AQ50: 2.44 | AR50: 2.63 | AS50: 2.83 | AT50: 3.03 | AV50: B/E ¢/kWh | AW50: 3.33 | AX50: 3.24 | AY50: 3.16 | AZ50: 3.07 | BA50: 2.99
AB51: 17 | AC51: =+'ITC1'!M26 -> 0 | AD51: =+'ITC1'!N26 -> 0 | AE51: =+'ITC1'!P26 -> 345402.3585 | AF51: =+'ITC1'!Q26*100 -> 16.07102115 | AG51: ='ITC1'!S26 -> -8972.164351 | AH51: =+'ITC1'!V26 -> -22290.11479 | AI51: =+'ITC1'!W26 -> -65185.86221 | AJ51: =+'ITC1'!X26 -> -9676.176126 | AK51: =+'ITC1'!Y26 -> -489.7769193 | AL51: =+'ITC1'!T26 -> -3329.286703 | AM51: =+'ITC1'!AH26 -> 10175.91337
AB52: 18 | AC52: =+'ITC1'!M27 -> 0 | AD52: =+'ITC1'!N27 -> 0 | AE52: =+'ITC1'!P27 -> 343675.3467 | AF52: =+'ITC1'!Q27*100 -> 16.39244157 | AG52: ='ITC1'!S27 -> -6735.60335 | AH52: =+'ITC1'!V27 -> -24526.6758 | AI52: =+'ITC1'!W27 -> -66489.57946 | AJ52: =+'ITC1'!X27 -> -10152.79905 | AK52: =+'ITC1'!Y27 -> -326.5179462 | AL52: =+'ITC1'!T27 -> -3362.57957 | AM52: =+'ITC1'!AH27 -> 10366.50466 | AO52: Tracker | AP52: Yes | AQ52: No | AV52: Mtly Base Fee | AW52: 240 | AX52: 270 | AY52: 300 | AZ52: 330 | BA52: 360
AB53: 19 | AC53: =+'ITC1'!M28 -> 0 | AD53: =+'ITC1'!N28 -> 0 | AE53: =+'ITC1'!P28 -> 341956.97 | AF53: =+'ITC1'!Q28*100 -> 16.7202904 | AG53: ='ITC1'!S28 -> -4274.628739 | AH53: =+'ITC1'!V28 -> -26987.65041 | AI53: =+'ITC1'!W28 -> -67819.37105 | AJ53: =+'ITC1'!X28 -> -10643.17261 | AK53: =+'ITC1'!Y28 -> -163.2589731 | AL53: =+'ITC1'!T28 -> -3396.205366 | AM53: =+'ITC1'!AH28 -> 10512.34967 | AO53: NPV | AP53: 412274 | AQ53: 400633 | AV53: Elec. Rate ¢/kWh | AW53: 11.86 | AX53: 11.78 | AY53: 11.71 | AZ53: 11.63 | BA53: 11.55
AB54: 20 | AC54: =+'ITC1'!M29 -> 0 | AD54: =+'ITC1'!N29 -> 0 | AE54: =+'ITC1'!P29 -> 340247.1851 | AF54: =+'ITC1'!Q29*100 -> 17.05469621 | AG54: ='ITC1'!S29 -> -1566.723151 | AH54: =+'ITC1'!V29 -> -29695.55599 | AI54: =+'ITC1'!W29 -> -69175.75847 | AJ54: =+'ITC1'!X29 -> -11147.63467 | AK54: =+'ITC1'!Y29 -> 0 | AL54: =+'ITC1'!T29 -> -3430.16742 | AM54: =+'ITC1'!AH29 -> 10608.18126 | AO54: B/E ¢/kWh | AP54: 2.74 | AQ54: 2.99 | AV54: NPV | AW54: 407728 | AX54: 404181 | AY54: 400633 | AZ54: 397085 | BA54: 393537
AB55: 21 | AC55: =+'ITC1'!M30 -> 0 | AD55: =+'ITC1'!N30 -> 0 | AE55: =+'ITC1'!P30 -> 338545.9492 | AF55: =+'ITC1'!Q30*100 -> 17.39579014 | AG55: ='ITC1'!S30 -> 0 | AH55: =+'ITC1'!V30 -> 0 | AI55: =+'ITC1'!W30 -> -70559.27364 | AJ55: =+'ITC1'!X30 -> -11666.5308 | AK55: =+'ITC1'!Y30 -> 0 | AL55: =+'ITC1'!T30 -> -3464.469094 | AM55: =+'ITC1'!AH30 -> 42125.48805
AB56: 22 | AC56: =+'ITC1'!M31 -> 0 | AD56: =+'ITC1'!N31 -> 0 | AE56: =+'ITC1'!P31 -> 336853.2194 | AF56: =+'ITC1'!Q31*100 -> 17.74370594 | AG56: ='ITC1'!S31 -> 0 | AH56: =+'ITC1'!V31 -> 0 | AI56: =+'ITC1'!W31 -> -71970.45911 | AJ56: =+'ITC1'!X31 -> -12200.2144 | AK56: =+'ITC1'!Y31 -> 0 | AL56: =+'ITC1'!T31 -> -3499.113785 | AM56: =+'ITC1'!AH31 -> 42766.0595 | AO56: Income Tax Credit Realized in Years 1-5
AB57: 23 | AC57: =+'ITC1'!M32 -> 0 | AD57: =+'ITC1'!N32 -> 0 | AE57: =+'ITC1'!P32 -> 335168.9533 | AF57: =+'ITC1'!Q32*100 -> 18.09858006 | AG57: ='ITC1'!S32 -> 0 | AH57: =+'ITC1'!V32 -> 0 | AI57: =+'ITC1'!W32 -> -73409.86829 | AJ57: =+'ITC1'!X32 -> -12749.04694 | AK57: =+'ITC1'!Y32 -> 0 | AL57: =+'ITC1'!T32 -> -3534.104923 | AM57: =+'ITC1'!AH32 -> 43416.30449 | AO57: Loan Length | AP57: 5 | AQ57: 10 | AR57: 15 | AS57: 20 | AT57: 25 | AV57: % Amt. Financed | AW57: 0.3 | AX57: 0.4 | AY57: 0.5 | AZ57: 0.6 | BA57: 0.7
AB58: 24 | AC58: =+'ITC1'!M33 -> 0 | AD58: =+'ITC1'!N33 -> 0 | AE58: =+'ITC1'!P33 -> 333493.1086 | AF58: =+'ITC1'!Q33*100 -> 18.46055166 | AG58: ='ITC1'!S33 -> 0 | AH58: =+'ITC1'!V33 -> 0 | AI58: =+'ITC1'!W33 -> -74878.06566 | AJ58: =+'ITC1'!X33 -> -13313.39807 | AK58: =+'ITC1'!Y33 -> 0 | AL58: =+'ITC1'!T33 -> -3569.445972 | AM58: =+'ITC1'!AH33 -> 31745.75282 | AO58: NPV | AP58: 417619 | AQ58: 408641 | AR58: 400442 | AS58: 393149 | AT58: 386818 | AV58: NPV | AW58: 413933 | AX58: 410154 | AY58: 406375 | AZ58: 402596 | BA58: 398817
AB59: 25 | AC59: =+'ITC1'!M34 -> 0 | AD59: =+'ITC1'!N34 -> 0 | AE59: =+'ITC1'!P34 -> 331825.643 | AF59: =+'ITC1'!Q34*100 -> 18.82976269 | AG59: ='ITC1'!S34 -> 0 | AH59: =+'ITC1'!V34 -> 0 | AI59: =+'ITC1'!W34 -> -76375.62697 | AJ59: =+'ITC1'!X34 -> -13893.64583 | AK59: =+'ITC1'!Y34 -> 0 | AL59: =+'ITC1'!T34 -> -3605.140431 | AM59: =+'ITC1'!AH34 -> 44746.39894 | AO59: B/E ¢/kWh | AP59: 2.62 | AQ59: 2.81 | AR59: 2.99 | AS59: 3.15 | AT59: 3.29 | AV59: B/E ¢/kWh | AW59: 2.7 | AX59: 2.78 | AY59: 2.86 | AZ59: 2.95 | BA59: 3.03
AB60: 26 | AC60: =+'ITC1'!M35 -> 0 | AD60: =+'ITC1'!N35 -> 0 | AE60: =+'ITC1'!P35 -> 330166.5148 | AF60: =+'ITC1'!Q35*100 -> 19.20635795 | AG60: ='ITC1'!S35 -> 0 | AH60: =+'ITC1'!V35 -> 0 | AI60: =+'ITC1'!W35 -> -77903.13951 | AJ60: =+'ITC1'!X35 -> -14490.17685 | AK60: =+'ITC1'!Y35 -> 0 | AL60: =+'ITC1'!T35 -> -3641.191836 | AM60: =+'ITC1'!AH35 -> 45426.54583
AB61: 27 | AC61: =+'ITC1'!M36 -> 0 | AD61: =+'ITC1'!N36 -> 0 | AE61: =+'ITC1'!P36 -> 328515.6822 | AF61: =+'ITC1'!Q36*100 -> 19.59048511 | AG61: ='ITC1'!S36 -> 0 | AH61: =+'ITC1'!V36 -> 0 | AI61: =+'ITC1'!W36 -> -79461.2023 | AJ61: =+'ITC1'!X36 -> -15103.3865 | AK61: =+'ITC1'!Y36 -> 0 | AL61: =+'ITC1'!T36 -> -3677.603754 | AM61: =+'ITC1'!AH36 -> 46116.96116 | AO61: Interest Rate | AP61: 0.077 | AQ61: 0.082 | AR61: 0.087 | AS61: 0.092 | AT61: 0.097 | AV61: Elec. Inflation Rate | AW61: 0.01 | AX61: 0.0125 | AY61: 0.015 | AZ61: 0.0175 | BA61: 0.02
AB62: 28 | AC62: =+'ITC1'!M37 -> 0 | AD62: =+'ITC1'!N37 -> 0 | AE62: =+'ITC1'!P37 -> 326873.1038 | AF62: =+'ITC1'!Q37*100 -> 19.98229481 | AG62: ='ITC1'!S37 -> 0 | AH62: =+'ITC1'!V37 -> 0 | AI62: =+'ITC1'!W37 -> -81050.42635 | AJ62: =+'ITC1'!X37 -> -15733.67909 | AK62: =+'ITC1'!Y37 -> 0 | AL62: =+'ITC1'!T37 -> -3714.379792 | AM62: =+'ITC1'!AH37 -> 46817.79927 | AO62: NPV | AP62: 427114 | AQ62: 418395 | AR62: 409516 | AS62: 400483 | AT62: 391300 | AV62: NPV | AW62: 337912 | AX62: 350910 | AY62: 364432 | AZ62: 378503 | BA62: 393149
AB63: 29 | AC63: =+'ITC1'!M38 -> 0 | AD63: =+'ITC1'!N38 -> 0 | AE63: =+'ITC1'!P38 -> 325238.7383 | AF63: =+'ITC1'!Q38*100 -> 20.3819407 | AG63: ='ITC1'!S38 -> 0 | AH63: =+'ITC1'!V38 -> 0 | AI63: =+'ITC1'!W38 -> -82671.43487 | AJ63: =+'ITC1'!X38 -> -16381.46808 | AK63: =+'ITC1'!Y38 -> 0 | AL63: =+'ITC1'!T38 -> -3751.52359 | AM63: =+'ITC1'!AH38 -> 47529.21683 | AO63: B/E ¢/kWh | AP63: 2.41 | AQ63: 2.6 | AR63: 2.8 | AS63: 2.99 | AT63: 3.19 | AV63: B/E ¢/kWh | AW63: 3.51 | AX63: 3.42 | AY63: 3.33 | AZ63: 3.24 | BA63: 3.15
AB64: 30 | AC64: =+'ITC1'!M39 -> 0 | AD64: =+'ITC1'!N39 -> 0 | AE64: =+'ITC1'!P39 -> 323612.5446 | AF64: =+'ITC1'!Q39*100 -> 20.78957952 | AG64: ='ITC1'!S39 -> 0 | AH64: =+'ITC1'!V39 -> 0 | AI64: =+'ITC1'!W39 -> -84324.86357 | AJ64: =+'ITC1'!X39 -> -17047.17627 | AK64: =+'ITC1'!Y39 -> 0 | AL64: =+'ITC1'!T39 -> -3789.038826 | AM64: =+'ITC1'!AH39 -> 48251.37284
AB65: =CONCATENATE("The current estimated electric rate is ",ROUND(J6,2)," cents per kWh with an estimated monthly base fee of ",TEXT(ROUND(J9,2),"$#.##"),".") -> The current estimated electric rate is 11.71 cents per kWh with an estimated monthly base fee of $300.. | AO65: Tracker | AP65: Yes | AQ65: No | AV65: Mtly Base Fee | AW65: 240 | AX65: 270 | AY65: 300 | AZ65: 330 | BA65: 360
AB66: 30 yr NPV: | AD66: =+M22 -> 393148.559 | AF66: =CONCATENATE("DELAYED TAX BENEFIT WITH ITC REALIZED OVER ",J12," YEARS AND ",IF(J13="MACRS","5-yr MACRS",CONCATENATE(J4,"-yr STRAIGHT LINE"))," DEPRECIATION") -> DELAYED TAX BENEFIT WITH ITC REALIZED OVER 5 YEARS AND 5-yr MACRS DEPRECIATION | AO66: NPV | AP66: 405297 | AQ66: 393149 | AV66: Elec. Rate ¢/kWh | AW66: 11.86 | AX66: 11.78 | AY66: 11.71 | AZ66: 11.63 | BA66: 11.55
AB67: B/E Elec. Cost (¢/kWh): | AD67: =+M23 -> 3.151442756 | AF67: Inverters: | AG67: =-SUM(ITCn!U10:U39) -> 35153.07081 | AI67: Grant(s) awarded: | AK67: =$F$10 -> 108839.3154 | AO67: B/E ¢/kWh | AP67: 2.89 | AQ67: 3.15 | AV67: NPV | AW67: 400244 | AX67: 396696 | AY67: 393149 | AZ67: 389601 | BA67: 386053
C68: Repurchase Factor | AB68: Install Year/ITC rate | AD68: =CONCATENATE('Monthly Cost & Use'!H38," / ", TEXT(VLOOKUP('Monthly Cost & Use'!H36,'Monthly Cost & Use'!AB2:AC3,2,FALSE),"0%")) -> 2025 / 30% | AF68: Size (kWDC): | AG68: =+$D$7 -> 270.408237 | AI68: =CONCATENATE("Second 1 Year Note @ ",ROUND($G$12*100,2),"% :") -> Second 1 Year Note @ 8.1% : | AK68: =+$F$12 -> 48977.69193
C69: 1 | AB69: Est. System Install Cost: | AD69: =+'Farmer Input'!D11 -> 435357.2616 | AE69: =CONCATENATE(TEXT(ROUND(IF(D9="No",D3,F3),0),"#,###")," kWh/kW resulting in Total Solar kWh") -> 1,384 kWh/kW resulting in Total Solar kWh | AF69: =CONCATENATE(TEXT(ROUND(($D$11-$F$10)*$D$12,0),"$#,#")," financed @",ROUND($D$14*100,2),"% over ",$D$13," years.") -> $277,540 financed @9.6% over 20 years. | AO69: Income Tax Credit Realized in Years 1-10
AB70: Tracking: | AD70: =+D9 -> No | AO70: Loan Length | AP70: 5 | AQ70: 10 | AR70: 15 | AS70: 20 | AT70: 25 | AV70: % Amt. Financed | AW70: 0.3 | AX70: 0.4 | AY70: 0.5 | AZ70: 0.6 | BA70: 0.7
AC71: Investment Tax Credit | AH71: Debt Service (Principal) | AI71: Utility Bill without Solar | AJ71: Utility Bill with Solar | AK71: Est. Prop. Tax for Solar System | AL71: Est. Maint. & Insurance for Solar System | AM71: Annual After Tax Benefit of Solar | AO71: NPV | AP71: 406857 | AQ71: 397879 | AR71: 389680 | AS71: 382387 | AT71: 376056 | AV71: NPV | AW71: 401949 | AX71: 398392 | AY71: 394835 | AZ71: 391278 | BA71: 387722
AD72: Accounting Depreciation | AG72: Loan Interest | AO72: B/E ¢/kWh | AP72: 2.85 | AQ72: 3.05 | AR72: 3.23 | AS72: 3.39 | AT72: 3.52 | AV72: B/E ¢/kWh | AW72: 2.96 | AX72: 3.04 | AY72: 3.11 | AZ72: 3.19 | BA72: 3.27
AB73: Year | AF73: ¢/kWh
AB74: 1 | AC74: =+ITCn!M10 -> 19591.07677 | AD74: =+ITCn!N10 -> 74010.73447 | AE74: =+ITCn!P10 -> 374245 | AF74: =+ITCn!Q10*100 -> 11.70686808 | AG74: =+ITCn!S10 -> -30099.378 | AH74: =+ITCn!V10 -> -13108.14087 | AI74: =+ITCn!W10 -> -47484.36844 | AJ74: =+ITCn!X10 -> -3672 | AK74: =+ITCn!Y10 -> -3101.920489 | AL74: =+ITCn!T10 -> -2839.286488 | AM74: =+ITCn!AH10 -> 30152.0676 | AO74: Interest Rate | AP74: 0.077 | AQ74: 0.082 | AR74: 0.087 | AS74: 0.092 | AT74: 0.097 | AV74: Elec. Inflation Rate | AW74: 0.01 | AX74: 0.0125 | AY74: 0.015 | AZ74: 0.0175 | BA74: 0.02
AB75: 2 | AC75: =+ITCn!M11 -> 19591.07677 | AD75: =+ITCn!N11 -> 118417.1751 | AE75: =+ITCn!P11 -> 372373.775 | AF75: =+ITCn!Q11*100 -> 11.94100544 | AG75: =+ITCn!S11 -> -28918.79707 | AH75: =+ITCn!V11 -> -14288.72181 | AI75: =+ITCn!W11 -> -48434.05581 | AJ75: =+ITCn!X11 -> -3968.883079 | AK75: =+ITCn!Y11 -> -2938.661516 | AL75: =+ITCn!T11 -> -2867.679353 | AM75: =+ITCn!AH11 -> 41124.90344 | AO75: NPV | AP75: 416352 | AQ75: 407633 | AR75: 398754 | AS75: 389721 | AT75: 380538 | AV75: NPV | AW75: 327150 | AX75: 340148 | AY75: 353670 | AZ75: 367741 | BA75: 382387
AB76: 3 | AC76: =+ITCn!M12 -> 19591.07677 | AD76: =+ITCn!N12 -> 71050.30509 | AE76: =+ITCn!P12 -> 370511.9061 | AF76: =+ITCn!Q12*100 -> 12.17982555 | AG76: =+ITCn!S12 -> -27631.0809 | AH76: =+ITCn!V12 -> -15576.43797 | AI76: =+ITCn!W12 -> -49402.73693 | AJ76: =+ITCn!X12 -> -4275.033122 | AK76: =+ITCn!Y12 -> -2775.402542 | AL76: =+ITCn!T12 -> -2896.356147 | AM76: =+ITCn!AH12 -> 30053.60882 | AO76: B/E ¢/kWh | AP76: 2.65 | AQ76: 2.84 | AR76: 3.03 | AS76: 3.23 | AT76: 3.43 | AV76: B/E ¢/kWh | AW76: 3.77 | AX76: 3.67 | AY76: 3.58 | AZ76: 3.48 | BA76: 3.39
AB77: 4 | AC77: =+ITCn!M13 -> 19591.07677 | AD77: =+ITCn!N13 -> 42630.18305 | AE77: =+ITCn!P13 -> 368659.3466 | AF77: =+ITCn!Q13*100 -> 12.42342206 | AG77: =+ITCn!S13 -> -26226.43168 | AH77: =+ITCn!V13 -> -16981.0872 | AI77: =+ITCn!W13 -> -50390.79167 | AJ77: =+ITCn!X13 -> -4590.685073 | AK77: =+ITCn!Y13 -> -2612.143569 | AL77: =+ITCn!T13 -> -2925.319708 | AM77: =+ITCn!AH13 -> 23508.75435
AB78: 5 | AC78: =+ITCn!M14 -> 19591.07677 | AD78: =+ITCn!N14 -> 42630.18305 | AE78: =+ITCn!P14 -> 366816.0499 | AF78: =+ITCn!Q14*100 -> 12.6718905 | AG78: =+ITCn!S14 -> -24694.14848 | AH78: =+ITCn!V14 -> -18513.37039 | AI78: =+ITCn!W14 -> -51398.6075 | AJ78: =+ITCn!X14 -> -4916.079319 | AK78: =+ITCn!Y14 -> -2448.884596 | AL78: =+ITCn!T14 -> -2954.572905 | AM78: =+ITCn!AH14 -> 23761.49118 | AO78: Tracker | AP78: Yes > 500 kW | AQ78: No | AV78: Mtly Base Fee | AW78: 240 | AX78: 270 | AY78: 300 | AZ78: 330 | BA78: 360
AB79: 6 | AC79: =+ITCn!M15 -> 0 | AD79: =+ITCn!N15 -> 21315.09153 | AE79: =+ITCn!P15 -> 364981.9696 | AF79: =+ITCn!Q15*100 -> 12.92532831 | AG79: =+ITCn!S15 -> -23476.14169 | AH79: =+ITCn!V15 -> -7786.137459 | AI79: =+ITCn!W15 -> -52426.57965 | AJ79: =+ITCn!X15 -> -5251.461799 | AK79: =+ITCn!Y15 -> -2285.625623 | AL79: =+ITCn!T15 -> -2984.118634 | AM79: =+ITCn!AH15 -> 11335.70076 | AO79: NPV | AP79: 395265 | AQ79: 382387 | AV79: Elec. Rate ¢/kWh | AW79: 11.86 | AX79: 11.78 | AY79: 11.71 | AZ79: 11.63 | BA79: 11.55
AB80: 7 | AC80: =+ITCn!M16 -> 0 | AD80: =+ITCn!N16 -> 0 | AE80: =+ITCn!P16 -> 363157.0598 | AF80: =+ITCn!Q16*100 -> 13.18383488 | AG80: =+ITCn!S16 -> -22694.89082 | AH80: =+ITCn!V16 -> -8567.388321 | AI80: =+ITCn!W16 -> -53475.11124 | AJ80: =+ITCn!X16 -> -5597.084136 | AK80: =+ITCn!Y16 -> -2122.36665 | AL80: =+ITCn!T16 -> -3013.959821 | AM80: =+ITCn!AH16 -> 6668.187136 | AO80: B/E ¢/kWh | AP80: 3.11 | AQ80: 3.39 | AV80: NPV | AW80: 389482 | AX80: 385934 | AY80: 382387 | AZ80: 378839 | BA80: 375291
AB81: 8 | AC81: =+ITCn!M17 -> 0 | AD81: =+ITCn!N17 -> 0 | AE81: =+ITCn!P17 -> 361341.2745 | AF81: =+ITCn!Q17*100 -> 13.44751158 | AG81: =+ITCn!S17 -> -21835.25027 | AH81: =+ITCn!V17 -> -9427.028874 | AI81: =+ITCn!W17 -> -54544.61347 | AJ81: =+ITCn!X17 -> -5953.203757 | AK81: =+ITCn!Y17 -> -1959.107677 | AL81: =+ITCn!T17 -> -3044.099419 | AM81: =+ITCn!AH17 -> 7105.214907
AB82: 9 | AC82: =+ITCn!M18 -> 0 | AD82: =+ITCn!N18 -> 0 | AE82: =+ITCn!P18 -> 359534.5681 | AF82: =+ITCn!Q18*100 -> 13.71646181 | AG82: =+ITCn!S18 -> -20889.35451 | AH82: =+ITCn!V18 -> -10372.92464 | AI82: =+ITCn!W18 -> -55635.50574 | AJ82: =+ITCn!X18 -> -6320.084021 | AK82: =+ITCn!Y18 -> -1795.848704 | AL82: =+ITCn!T18 -> -3074.540413 | AM82: =+ITCn!AH18 -> 7529.390712 | AO82: Income Tax Credit Realized in Years 1-15
AB83: 10 | AC83: =+ITCn!M19 -> 0 | AD83: =+ITCn!N19 -> 0 | AE83: =+ITCn!P19 -> 357736.8953 | AF83: =+ITCn!Q19*100 -> 13.99079104 | AG83: =+ITCn!S19 -> -19848.5488 | AH83: =+ITCn!V19 -> -11413.73034 | AI83: =+ITCn!W19 -> -56748.21585 | AJ83: =+ITCn!X19 -> -6697.994352 | AK83: =+ITCn!Y19 -> -1632.589731 | AL83: =+ITCn!T19 -> -3105.285817 | AM83: =+ITCn!AH19 -> 7938.75549 | AO83: Loan Length | AP83: 5 | AQ83: 10 | AR83: 15 | AS83: 20 | AT83: 25 | AV83: % Amt. Financed | AW83: 0.3 | AX83: 0.4 | AY83: 0.5 | AZ83: 0.6 | BA83: 0.7
AB84: 11 | AC84: =+ITCn!M20 -> 0 | AD84: =+ITCn!N20 -> 0 | AE84: =+ITCn!P20 -> 355948.2108 | AF84: =+ITCn!Q20*100 -> 14.27060686 | AG84: =+ITCn!S20 -> -18703.31001 | AH84: =+ITCn!V20 -> -12558.96914 | AI84: =+ITCn!W20 -> -57883.18017 | AJ84: =+ITCn!X20 -> -7087.210369 | AK84: =+ITCn!Y20 -> -1469.330758 | AL84: =+ITCn!T20 -> -3136.338676 | AM84: =+ITCn!AH20 -> 8331.143535 | AO84: NPV | AP84: 397884 | AQ84: 388906 | AR84: 380707 | AS84: 373413 | AT84: 367083 | AV84: NPV | AW84: 391869 | AX84: 388513 | AY84: 385158 | AZ84: 381802 | BA84: 378447
AB85: 12 | AC85: =+ITCn!M21 -> 0 | AD85: =+ITCn!N21 -> 0 | AE85: =+ITCn!P21 -> 354168.4697 | AF85: =+ITCn!Q21*100 -> 14.556019 | AG85: =+ITCn!S21 -> -17443.15945 | AH85: =+ITCn!V21 -> -13819.1197 | AI85: =+ITCn!W21 -> -59040.84377 | AJ85: =+ITCn!X21 -> -7488.014022 | AK85: =+ITCn!Y21 -> -1306.071785 | AL85: =+ITCn!T21 -> -3167.702062 | AM85: =+ITCn!AH21 -> -5681.556599 | AO85: B/E ¢/kWh | AP85: 3.05 | AQ85: 3.24 | AR85: 3.42 | AS85: 3.58 | AT85: 3.72 | AV85: B/E ¢/kWh | AW85: 3.18 | AX85: 3.25 | AY85: 3.33 | AZ85: 3.4 | BA85: 3.47
AB86: 13 | AC86: =+ITCn!M22 -> 0 | AD86: =+ITCn!N22 -> 0 | AE86: =+ITCn!P22 -> 352397.6274 | AF86: =+ITCn!Q22*100 -> 14.84713938 | AG86: =+ITCn!S22 -> -16056.56703 | AH86: =+ITCn!V22 -> -15205.71211 | AI86: =+ITCn!W22 -> -60221.66065 | AJ86: =+ITCn!X22 -> -7900.693735 | AK86: =+ITCn!Y22 -> -1142.812812 | AL86: =+ITCn!T22 -> -3199.379083 | AM86: =+ITCn!AH22 -> 9055.165956
AB87: 14 | AC87: =+ITCn!M23 -> 0 | AD87: =+ITCn!N23 -> 0 | AE87: =+ITCn!P23 -> 350635.6392 | AF87: =+ITCn!Q23*100 -> 15.14408217 | AG87: =+ITCn!S23 -> -14530.84574 | AH87: =+ITCn!V23 -> -16731.43341 | AI87: =+ITCn!W23 -> -61426.09386 | AJ87: =+ITCn!X23 -> -8325.544541 | AK87: =+ITCn!Y23 -> -979.5538385 | AL87: =+ITCn!T23 -> -3231.372874 | AM87: =+ITCn!AH23 -> 9381.237014 | AO87: Interest Rate | AP87: 0.077 | AQ87: 0.082 | AR87: 0.087 | AS87: 0.092 | AT87: 0.097 | AV87: Elec. Inflation Rate | AW87: 0.01 | AX87: 0.0125 | AY87: 0.015 | AZ87: 0.0175 | BA87: 0.02
AB88: 15 | AC88: =+ITCn!M24 -> 0 | AD88: =+ITCn!N24 -> 0 | AE88: =+ITCn!P24 -> 348882.461 | AF88: =+ITCn!Q24*100 -> 15.44696381 | AG88: =+ITCn!S24 -> -12852.03557 | AH88: =+ITCn!V24 -> -18410.24358 | AI88: =+ITCn!W24 -> -62654.61574 | AJ88: =+ITCn!X24 -> -8762.868233 | AK88: =+ITCn!Y24 -> -816.2948654 | AL88: =+ITCn!T24 -> -3263.686602 | AM88: =+ITCn!AH24 -> 9679.151579 | AO88: NPV | AP88: 407379 | AQ88: 398660 | AR88: 389781 | AS88: 380748 | AT88: 371565 | AV88: NPV | AW88: 318177 | AX88: 331175 | AY88: 344697 | AZ88: 358768 | BA88: 373413
AB89: 16 | AC89: =+ITCn!M25 -> 0 | AD89: =+ITCn!N25 -> 0 | AE89: =+ITCn!P25 -> 347138.0487 | AF89: =+ITCn!Q25*100 -> 15.75590309 | AG89: =+ITCn!S25 -> -11004.77578 | AH89: =+ITCn!V25 -> -20257.50337 | AI89: =+ITCn!W25 -> -63907.70805 | AJ89: =+ITCn!X25 -> -9212.97351 | AK89: =+ITCn!Y25 -> -653.0358923 | AL89: =+ITCn!T25 -> -3296.323468 | AM89: =+ITCn!AH25 -> 9945.352179 | AO89: B/E ¢/kWh | AP89: 2.84 | AQ89: 3.03 | AR89: 3.22 | AS89: 3.42 | AT89: 3.62 | AV89: B/E ¢/kWh | AW89: 3.99 | AX89: 3.89 | AY89: 3.78 | AZ89: 3.68 | BA89: 3.58
AB90: 17 | AC90: =+ITCn!M26 -> 0 | AD90: =+ITCn!N26 -> 0 | AE90: =+ITCn!P26 -> 345402.3585 | AF90: =+ITCn!Q26*100 -> 16.07102115 | AG90: =+ITCn!S26 -> -8972.164351 | AH90: =+ITCn!V26 -> -22290.11479 | AI90: =+ITCn!W26 -> -65185.86221 | AJ90: =+ITCn!X26 -> -9676.176126 | AK90: =+ITCn!Y26 -> -489.7769193 | AL90: =+ITCn!T26 -> -3329.286703 | AM90: =+ITCn!AH26 -> 10175.91337
AB91: 18 | AC91: =+ITCn!M27 -> 0 | AD91: =+ITCn!N27 -> 0 | AE91: =+ITCn!P27 -> 343675.3467 | AF91: =+ITCn!Q27*100 -> 16.39244157 | AG91: =+ITCn!S27 -> -6735.60335 | AH91: =+ITCn!V27 -> -24526.6758 | AI91: =+ITCn!W27 -> -66489.57946 | AJ91: =+ITCn!X27 -> -10152.79905 | AK91: =+ITCn!Y27 -> -326.5179462 | AL91: =+ITCn!T27 -> -3362.57957 | AM91: =+ITCn!AH27 -> 10366.50466 | AO91: Tracker | AP91: Yes | AQ91: No | AV91: Mtly Base Fee | AW91: 240 | AX91: 270 | AY91: 300 | AZ91: 330 | BA91: 360
AB92: 19 | AC92: =+ITCn!M28 -> 0 | AD92: =+ITCn!N28 -> 0 | AE92: =+ITCn!P28 -> 341956.97 | AF92: =+ITCn!Q28*100 -> 16.7202904 | AG92: =+ITCn!S28 -> -4274.628739 | AH92: =+ITCn!V28 -> -26987.65041 | AI92: =+ITCn!W28 -> -67819.37105 | AJ92: =+ITCn!X28 -> -10643.17261 | AK92: =+ITCn!Y28 -> -163.2589731 | AL92: =+ITCn!T28 -> -3396.205366 | AM92: =+ITCn!AH28 -> 10512.34967 | AO92: NPV | AP92: 386900 | AQ92: 373413 | AV92: Elec. Rate ¢/kWh | AW92: 11.86 | AX92: 11.78 | AY92: 11.71 | AZ92: 11.63 | BA92: 11.55
AB93: 20 | AC93: =+ITCn!M29 -> 0 | AD93: =+ITCn!N29 -> 0 | AE93: =+ITCn!P29 -> 340247.1851 | AF93: =+ITCn!Q29*100 -> 17.05469621 | AG93: =+ITCn!S29 -> -1566.723151 | AH93: =+ITCn!V29 -> -29695.55599 | AI93: =+ITCn!W29 -> -69175.75847 | AJ93: =+ITCn!X29 -> -11147.63467 | AK93: =+ITCn!Y29 -> 0 | AL93: =+ITCn!T29 -> -3430.16742 | AM93: =+ITCn!AH29 -> 10608.18126 | AO93: B/E ¢/kWh | AP93: 3.29 | AQ93: 3.58 | AV93: NPV | AW93: 380509 | AX93: 376961 | AY93: 373413 | AZ93: 369865 | BA93: 366317
AB94: 21 | AC94: =+ITCn!M30 -> 0 | AD94: =+ITCn!N30 -> 0 | AE94: =+ITCn!P30 -> 338545.9492 | AF94: =+ITCn!Q30*100 -> 17.39579014 | AG94: =+ITCn!S30 -> 0 | AH94: =+ITCn!V30 -> 0 | AI94: =+ITCn!W30 -> -70559.27364 | AJ94: =+ITCn!X30 -> -11666.5308 | AK94: =+ITCn!Y30 -> 0 | AL94: =+ITCn!T30 -> -3464.469094 | AM94: =+ITCn!AH30 -> 42125.48805
AB95: 22 | AC95: =+ITCn!M31 -> 0 | AD95: =+ITCn!N31 -> 0 | AE95: =+ITCn!P31 -> 336853.2194 | AF95: =+ITCn!Q31*100 -> 17.74370594 | AG95: =+ITCn!S31 -> 0 | AH95: =+ITCn!V31 -> 0 | AI95: =+ITCn!W31 -> -71970.45911 | AJ95: =+ITCn!X31 -> -12200.2144 | AK95: =+ITCn!Y31 -> 0 | AL95: =+ITCn!T31 -> -3499.113785 | AM95: =+ITCn!AH31 -> 42766.0595
AB96: 23 | AC96: =+ITCn!M32 -> 0 | AD96: =+ITCn!N32 -> 0 | AE96: =+ITCn!P32 -> 335168.9533 | AF96: =+ITCn!Q32*100 -> 18.09858006 | AG96: =+ITCn!S32 -> 0 | AH96: =+ITCn!V32 -> 0 | AI96: =+ITCn!W32 -> -73409.86829 | AJ96: =+ITCn!X32 -> -12749.04694 | AK96: =+ITCn!Y32 -> 0 | AL96: =+ITCn!T32 -> -3534.104923 | AM96: =+ITCn!AH32 -> 43416.30449 | AO96: =CONCATENATE("NOTE: Sensitivity analyses are in comparison to a loan length of ",D13," years @",ROUND($D$14*100,2),"%, with ",ROUND(D12*100,1),"% of net purchase cost financed, ",IF(D9="Yes","with tracker technology"," without tracker technology"), ", expected electricity inflation of ",ROUND(J7*100,2),"%, ", "O&M inflation of ",ROUND(J8*100,2),"%",", a base fee of ",TEXT(J9,"$#,##0.00"),"/month", ", and Fed. and State Income tax rates of ",ROUND(J10*100,2)," and ",ROUND(J11*100,2),"%, respectively. Install Year is ",'Monthly Cost & Use'!H38," and you are using",'Monthly Cost & Use'!H36,". The remainder of the purchase price is financed with ",ROUND(D10*100,0),"% REAP or other grant and a 1-year note of ",TEXT(F12,"$#,#")," @ ",ROUND(G12*100,1),"% interest.") -> NOTE: Sensitivity analyses are in comparison to a loan length of 20 years @9.6%, with 85% of net purchase cost financed, without tracker technology, expected electricity inflation of 2%, O&M inflation of 1%, a base fee of $300.00/month, and Fed. and State Income tax rates of 20 and 5%, respectively. Install Year is 2025 and you are using 30% Federal Income Tax Credit (2023 trough 2033). The remainder of the purchase price is financed with 25% REAP or other grant and a 1-year note of $48,978 @ 8.1% interest.
AB97: 24 | AC97: =+ITCn!M33 -> 0 | AD97: =+ITCn!N33 -> 0 | AE97: =+ITCn!P33 -> 333493.1086 | AF97: =+ITCn!Q33*100 -> 18.46055166 | AG97: =+ITCn!S33 -> 0 | AH97: =+ITCn!V33 -> 0 | AI97: =+ITCn!W33 -> -74878.06566 | AJ97: =+ITCn!X33 -> -13313.39807 | AK97: =+ITCn!Y33 -> 0 | AL97: =+ITCn!T33 -> -3569.445972 | AM97: =+ITCn!AH33 -> 31745.75282
AB98: 25 | AC98: =+ITCn!M34 -> 0 | AD98: =+ITCn!N34 -> 0 | AE98: =+ITCn!P34 -> 331825.643 | AF98: =+ITCn!Q34*100 -> 18.82976269 | AG98: =+ITCn!S34 -> 0 | AH98: =+ITCn!V34 -> 0 | AI98: =+ITCn!W34 -> -76375.62697 | AJ98: =+ITCn!X34 -> -13893.64583 | AK98: =+ITCn!Y34 -> 0 | AL98: =+ITCn!T34 -> -3605.140431 | AM98: =+ITCn!AH34 -> 44746.39894
AB99: 26 | AC99: =+ITCn!M35 -> 0 | AD99: =+ITCn!N35 -> 0 | AE99: =+ITCn!P35 -> 330166.5148 | AF99: =+ITCn!Q35*100 -> 19.20635795 | AG99: =+ITCn!S35 -> 0 | AH99: =+ITCn!V35 -> 0 | AI99: =+ITCn!W35 -> -77903.13951 | AJ99: =+ITCn!X35 -> -14490.17685 | AK99: =+ITCn!Y35 -> 0 | AL99: =+ITCn!T35 -> -3641.191836 | AM99: =+ITCn!AH35 -> 45426.54583
AB100: 27 | AC100: =+ITCn!M36 -> 0 | AD100: =+ITCn!N36 -> 0 | AE100: =+ITCn!P36 -> 328515.6822 | AF100: =+ITCn!Q36*100 -> 19.59048511 | AG100: =+ITCn!S36 -> 0 | AH100: =+ITCn!V36 -> 0 | AI100: =+ITCn!W36 -> -79461.2023 | AJ100: =+ITCn!X36 -> -15103.3865 | AK100: =+ITCn!Y36 -> 0 | AL100: =+ITCn!T36 -> -3677.603754 | AM100: =+ITCn!AH36 -> 46116.96116 | AO100: Disclaimer: The information provided within represents estimates that are a result of a set of complex calculations that are described in more detail in information provided on the download site. Changes in parameter values and its implications on profitability differences are estimates. The user should use their own reasonable judgment to determine whether results are appropriate before acting on the results. As such, this software is provided ‘as is’ and without warranties as to performance of merchantability. Further, statements may have been made to you about this software. Any such statements do not constitute warranties and shall not be relied on by the user in deciding whether to use the program or act on its results. This program is provided without any expressed or implied warranties whatsoever. Because the diversity of conditions and hardware under which this program may be used, no warranty of merchantability or warranty of fitness for a particular purpose is offered. The user is advised to test the program thoroughly before relying on it. The user assumes the entire risk of using the program. The University of Arkansas will not be liable for any claim or damage brought against the user by any third party, nor will the University of Arkansas be liable for any consequential, indirect or special damages suffered by the user as a result of the software.
AB101: 28 | AC101: =+ITCn!M37 -> 0 | AD101: =+ITCn!N37 -> 0 | AE101: =+ITCn!P37 -> 326873.1038 | AF101: =+ITCn!Q37*100 -> 19.98229481 | AG101: =+ITCn!S37 -> 0 | AH101: =+ITCn!V37 -> 0 | AI101: =+ITCn!W37 -> -81050.42635 | AJ101: =+ITCn!X37 -> -15733.67909 | AK101: =+ITCn!Y37 -> 0 | AL101: =+ITCn!T37 -> -3714.379792 | AM101: =+ITCn!AH37 -> 46817.79927
AB102: 29 | AC102: =+ITCn!M38 -> 0 | AD102: =+ITCn!N38 -> 0 | AE102: =+ITCn!P38 -> 325238.7383 | AF102: =+ITCn!Q38*100 -> 20.3819407 | AG102: =+ITCn!S38 -> 0 | AH102: =+ITCn!V38 -> 0 | AI102: =+ITCn!W38 -> -82671.43487 | AJ102: =+ITCn!X38 -> -16381.46808 | AK102: =+ITCn!Y38 -> 0 | AL102: =+ITCn!T38 -> -3751.52359 | AM102: =+ITCn!AH38 -> 47529.21683
AB103: 30 | AC103: =+ITCn!M39 -> 0 | AD103: =+ITCn!N39 -> 0 | AE103: =+ITCn!P39 -> 323612.5446 | AF103: =+ITCn!Q39*100 -> 20.78957952 | AG103: =+ITCn!S39 -> 0 | AH103: =+ITCn!V39 -> 0 | AI103: =+ITCn!W39 -> -84324.86357 | AJ103: =+ITCn!X39 -> -17047.17627 | AK103: =+ITCn!Y39 -> 0 | AL103: =+ITCn!T39 -> -3789.038826 | AM103: =+ITCn!AH39 -> 48251.37284
AB105: Disclaimer: The information provided within represents estimates that are a result of a set of complex calculations that are described in more detail in information provided on the download site. Changes in parameter values and its implications on profitability differences are estimates. The user should use their own reasonable judgment to determine whether results are appropriate before acting on the results. As such, this software is provided ‘as is’ and without warranties as to performance of merchantability. Further, statements may have been made to you about this software. Any such statements do not constitute warranties and shall not be relied on by the user in deciding whether to use the program or act on its results. This program is provided without any expressed or implied warranties whatsoever. Because the diversity of conditions and hardware under which this program may be used, no warranty of merchantability or warranty of fitness for a particular purpose is offered. The user is advised to test the program thoroughly before relying on it. The user assumes the entire risk of using the program. The University of Arkansas will not be liable for any claim or damage brought against the user by any third party, nor will the University of Arkansas be liable for any consequential, indirect or special damages suffered by the user as a result of the software.

Sheet ITC1
F1: Discount Rate | G1: =+'Farmer Input'!J14 -> 0.06
C2: Temp | F2: System Size (kW DC) | G2: =+'Farmer Input'!D7 -> 270.408237 | I2: =+'Farmer Input'!D3 -> 1384 | J2: kWh/kw | M2: Second Loan | N2: =+(N5-'Farmer Input'!F10)*(1-G3) -> 48977.69193 | AB2: (Dep. + Int. +
C3: =+'Farmer Input'!D12 -> 0.85 | F3: Amount Financed (%) | G3: =+'Farmer Input'!D12 -> 0.85 | H3: =+AH10 -> 96009.55983 | I3: =+I2*1.18 -> 1633.12 | J3: with tracking | K3: 18% increase ih kWh /w tracking | M3: Equity Amount | N3: =N5*(1-G3) -> 65303.58923 | T3: Degradation rate | U3: 0.005 | AA3: (Dep. + Int. + | AB3: Insc. + O&M +
F4: Loan Term (years) | G4: =+'Farmer Input'!D13 -> 20 | M4: Monthly Loan Payment | N4: =PMT(G5/12,G4*12,N5*G3) -> -3473.586572 | T4: property tax | U4: 0.0075 | V4: =+'Farmer Input'!J4 -> 20 | W4: Year Useful life, SLN for BV for Prop. Tax | AA4: Insc. + O&M + | AB4: Prop. Tax +
F5: Debt Financing Rate | G5: =+'Farmer Input'!D14 -> 0.096 | M5: Purchase Price | N5: =VLOOKUP(G2,F16:G23,2,TRUE)*G2*1000*(IF(G10='Farmer Input'!A3,1.1,1)) -> 435357.2616 | O5: 10% increase in cost per kW with tracking | T5: insurance at | U5: 0.0055 | Z5: Fin. + Insc. + | AA5: Prop. Tax + | AB5: Rem. Elec. Bill
F6: Electric Inflation Rate | G6: =+'Farmer Input'!J7 -> 0.02 | M6: Bonus Depreciation | N6: =+'Farmer Input'!J3 -> 148021.4689 | T6: maintenance | U6: =IF('Farmer Input'!D9='Farmer Input'!A2,0.005,0.005*1.1) -> 0.005 | V6: increase of 10% with tracking | Z6: O&M + Prop. | AA6: Rem. Elec. Bill) | AB6: - State Tax)
F7: O&M Inflation Rate | G7: =+'Farmer Input'!J8 -> 0.01 | N7: =SUM(N10:N39)/N5 -> 0.85 | Z7: Tax + Rem. Electric | AA7: * State T Rate | AB7: * Fed T Rate
F8: Federal Tax Rate | G8: =+'Farmer Input'!J10 -> 0.2 | I8: Year | J8: Annual Net After Tax Cash | K8: Discounted Annual Value | L8: Discounted Payback | M8: Income Tax Credit on Initial Cost less Grants Awarded (ITC) | N8: Depreciation | O8: Panel Output (Degredation) | P8: kWh Annual | Q8: Electric Rate | R8: Solar Value (SP) | S8: Interest Expense (I) | T8: Maintenance & Insurance (M&I) | U8: Inverter Replacement (IV) | V8: Debt Service [principal (P) only] | W8: Est. Electric Bill Without System | X8: Remaining Electricity Bill (REB) | Y8: Property Taxes (PT) | Z8: Pre-Tax Cashflow | AA8: State Tax Savings | AB8: Federal Tax Savings | AC8: After-Tax Solar Savings | AD8: Est. Yearly After Tax Net Cashflow with Solar (CFAT, S+) | AE8: Income Tax Savings (ITS) | AF8: Payback | AG8: Est. After Tax Electric Bill without Solar (CFAT,S-) | AH8: Difference in After Tax Cashflow | AI8: Neg Cashflow Years
F9: State Tax Rate | G9: =+'Farmer Input'!J11 -> 0.05 | I9: 0 | J9: =-'Farmer Input'!F12 -> -48977.69193 | K9: =J9 -> -48977.69193 | AD9: =+'Farmer Input'!F10 -> 108839.3154 | AH9: =+AD9-AG9 -> 108839.3154 | AI9: =NPV(G1,AI10:AI39) -> -2823.559567
C10: Temp Discount | F10: Tracker? | G10: =+'Farmer Input'!D9 -> No | I10: 1 | J10: =N10+R10+T10+U10+V10+S10 -> 149193.8274 | K10: =+J10*(1+$G$1)^-I10 -> 140748.8938 | L10: =IF(+K10+$J$9>0,I10+(K10+$J$9)/$J$9,"na") -> -0.8737347205 | M10: =(N5-'Farmer Input'!F10)*VLOOKUP('Monthly Cost & Use'!H36,'Monthly Cost & Use'!AB2:AC3,2,FALSE) -> 97955.38385 | N10: =IF('Farmer Input'!$J$13="MACRS",((1-VLOOKUP('Monthly Cost & Use'!H36,'Monthly Cost & Use'!AB2:AC3,2,FALSE)/2)*$N$5-N6)*0.2,IF(I10<='ITC1'!$V$4,((1-VLOOKUP('Monthly Cost & Use'!H36,'Monthly Cost & Use'!AB2:AC3,2,FALSE)/2)*$N$5-N6)/'ITC1'!$V$4,0))+N6 -> 192427.9096 | O10: 1 | P10: =IF(G10="No",G2*$I$2,G2*$I$3) -> 374245 | Q10: =G11/100 -> 0.1170686808 | R10: =P10*Q10*$G$13 -> 43812.36844 | S10: =IFERROR(CUMIPMT($G$5/12,$G$4*12,($N$5-'Farmer Input'!$F$10)*$G$3,I10*12-11,I10*12,0),0)-$N$2*'Farmer Input'!G12 -> -30402.32946 | T10: =-$G$2*1000*SUM($U$5:$U$6) -> -2839.286488 | V10: =IF(I10<=G$4,IFERROR(CUMPRINC($G$5/12,$G$4*12,($N$5-'Farmer Input'!$F$10)*$G$3,I10*12-11,I10*12,0),0),0)-$N$2 -> -53804.83465 | W10: =-'Farmer Input'!$D$4*'Monthly Cost & Use'!$R$2*(1+$G$6)^I9-12*'Farmer Input'!$J$9*(1+'Farmer Input'!$J$7)^I10 -> -47484.36844 | X10: =W10+R10 -> -3672 | Y10: =-IF(($N$5-SLN($N$5,0,$V$4)*I10)*$U$4<0,0,($N$5-SLN($N$5,0,$V$4)*I10)*$U$4) -> -3101.920489 | Z10: =+Y10+V10+U10+T10+S10+X10 -> -93820.37109 | AA10: =(+Y10+U10+T10+S10+X10-N10)*-$G$9 -> 11622.1723 | AB10: =(AA10+Y10+U10+T10+S10+X10-N10)*-$G$8 -> 44164.25475 | AC10: =+R10*(1-($G$9+(1-$G$9)*$G$8)) -> 33297.40002 | AD10: =+Z10+AA10+AB10+M10 -> 59921.43981 | AE10: =+AA10+AB10 -> 55786.42705 | AF10: =IF(+AD10-$N$5>0,I10+(AD10-$N$5)/$N$5,"na") -> na | AG10: =+W10*(1-($G$9+(1-$G$9)*$G$8)) -> -36088.12002 | AH10: =+AD10-AG10 -> 96009.55983 | AI10: =IF(AH10<0,AH10,0) -> 0
C11: =+'Farmer Input'!C69 -> 1 | F11: Electric Rate (¢/kWh) | G11: =+'Farmer Input'!J6 -> 11.70686808 | I11: 2 | J11: =N11+R11+T11+U11+V11+S11 -> 81385.51932 | K11: =+J11*(1+$G$1)^-I11 -> 72432.82246 | L11: =IF(OR(L10<>"na",L10="see above"),"see above",IF(SUM($K$10:K11)+$J$9>0,I11+(SUM($K$10:K11)+$J$9)/$J$9,"na")) -> see above | N11: =IF('Farmer Input'!$J$13="MACRS",((1-VLOOKUP('Monthly Cost & Use'!H36,'Monthly Cost & Use'!AB2:AC3,2,FALSE)/2)*$N$5-N6)*0.32,IF(I11<='ITC1'!$V$4,((1-VLOOKUP('Monthly Cost & Use'!H36,'Monthly Cost & Use'!AB2:AC3,2,FALSE)/2)*$N$5-N6)/'ITC1'!$V$4,0)) -> 71050.30509 | O11: =O10*(1-$U$3) -> 0.995 | P11: =P$10*O11 -> 372373.775 | Q11: =Q10*(1+G$6) -> 0.1194100544 | R11: =P11*Q11*$G$13 -> 44465.17273 | S11: =IFERROR(CUMIPMT($G$5/12,$G$4*12,($N$5-'Farmer Input'!$F$10)*$G$3,I11*12-11,I11*12,0),0) -> -25950.78722 | T11: =T10*(1+G$7) -> -2867.679353 | V11: =IF(I11<=G$4,IFERROR(CUMPRINC($G$5/12,$G$4*12,($N$5-'Farmer Input'!$F$10)*$G$3,I11*12-11,I11*12,0),0),0) -> -5311.491923 | W11: =-'Farmer Input'!$D$4*'Monthly Cost & Use'!$R$2*(1+$G$6)^I10-12*'Farmer Input'!$J$9*(1+'Farmer Input'!$J$7)^I11 -> -48434.05581 | X11: =W11+R11 -> -3968.883079 | Y11: -2938.661516 | Z11: =+Y11+V11+U11+T11+S11+X11 -> -41037.50309 | AA11: =(+Y11+U11+T11+S11+X11-N11)*-$G$9 -> 5338.815813 | AB11: =(AA11+Y11+U11+T11+S11+X11-N11)*-$G$8 -> 20287.50009 | AC11: =+R11*(1-($G$9+(1-$G$9)*$G$8)) -> 33793.53128 | AD11: =+Z11+AA11+AB11+M11 -> -15411.18719 | AE11: =+AA11+AB11 -> 25626.3159 | AF11: =IF(OR(AF10<>"na",AF10="see above"),"see above",IF(SUM($AD$10:AD11)-$N$5>0,I10+(SUM($AD$9:AD10)-$N$5)/-$N$5,"na")) -> na | AG11: =+W11*(1-($G$9+(1-$G$9)*$G$8)) -> -36809.88242 | AH11: =+AD11-AG11 -> 21398.69523 | AI11: =IF(AH11<0,AH11,0) -> 0
F12: *Tracker not applicable for all projects | I12: 3 | J12: =N12+R12+T12+U12+V12+S12 -> 53599.25157 | K12: 45002.96517 | L12: =IF(OR(L11<>"na",L11="see above"),"see above",IF(SUM($K$10:K12)+$J$9>0,I12+(SUM($K$10:K12)+$J$9)/$J$9,"na")) -> see above | N12: =IF('Farmer Input'!$J$13="MACRS",((1-VLOOKUP('Monthly Cost & Use'!H36,'Monthly Cost & Use'!AB2:AC3,2,FALSE)/2)*$N$5-N6)*0.192,IF(I12<='ITC1'!$V$4,((1-VLOOKUP('Monthly Cost & Use'!H36,'Monthly Cost & Use'!AB2:AC3,2,FALSE)/2)*$N$5-N6)/'ITC1'!$V$4,0)) -> 42630.18305 | O12: =O11*(1-$U$3) -> 0.990025 | P12: =P$10*O12 -> 370511.9061 | Q12: 0.1217982555 | R12: 45127.70381 | S12: =IFERROR(CUMIPMT($G$5/12,$G$4*12,($N$5-'Farmer Input'!$F$10)*$G$3,I12*12-11,I12*12,0),0) -> -25417.83906 | T12: -2896.356147 | V12: =IF(I12<=G$4,IFERROR(CUMPRINC($G$5/12,$G$4*12,($N$5-'Farmer Input'!$F$10)*$G$3,I12*12-11,I12*12,0),0),0) -> -5844.440084 | W12: =-'Farmer Input'!$D$4*'Monthly Cost & Use'!$R$2*(1+$G$6)^I11-12*'Farmer Input'!$J$9*(1+'Farmer Input'!$J$7)^I12 -> -49402.73693 | X12: -4275.033122 | Y12: -2775.402542 | Z12: -41209.07096 | AA12: 3899.740696 | AB12: 14819.01465 | AC12: 34297.05489 | AD12: =+Z12+AA12+AB12+M12 -> -22490.31561 | AE12: 18718.75534 | AF12: =IF(OR(AF11<>"na",AF11="see above"),"see above",IF(SUM($AD$10:AD12)-$N$5>0,I11+(SUM($AD$9:AD11)-$N$5)/-$N$5,"na")) -> na | AG12: -37546.08007 | AH12: 15055.76445 | AI12: 0
F13: Discount Factor | G13: =+'Farmer Input'!C69 -> 1 | I13: 4 | J13: 37190.61757 | K13: 29458.45251 | L13: =IF(OR(L12<>"na",L12="see above"),"see above",IF(SUM($K$10:K13)+$J$9>0,I13+(SUM($K$10:K13)+$J$9)/$J$9,"na")) -> see above | N13: =IF('Farmer Input'!$J$13="MACRS",((1-VLOOKUP('Monthly Cost & Use'!H36,'Monthly Cost & Use'!AB2:AC3,2,FALSE)/2)*$N$5-N6)*0.1152,IF(I13<='ITC1'!$V$4,((1-VLOOKUP('Monthly Cost & Use'!H36,'Monthly Cost & Use'!AB2:AC3,2,FALSE)/2)*$N$5-N6)/'ITC1'!$V$4,0)) -> 25578.10983 | O13: 0.985074875 | P13: 368659.3466 | Q13: 0.1242342206 | R13: 45800.10659 | S13: =IFERROR(CUMIPMT($G$5/12,$G$4*12,($N$5-'Farmer Input'!$F$10)*$G$3,I13*12-11,I13*12,0),0) -> -24831.41558 | T13: -2925.319708 | V13: =IF(I13<=G$4,IFERROR(CUMPRINC($G$5/12,$G$4*12,($N$5-'Farmer Input'!$F$10)*$G$3,I13*12-11,I13*12,0),0),0) -> -6430.863568 | W13: =-'Farmer Input'!$D$4*'Monthly Cost & Use'!$R$2*(1+$G$6)^I12-12*'Farmer Input'!$J$9*(1+'Farmer Input'!$J$7)^I13 -> -50390.79167 | X13: -4590.685073 | Y13: -2612.143569 | Z13: -41390.4275 | AA13: 3026.883688 | AB13: 11502.15801 | AC13: 34808.08101 | AD13: -26861.38579 | AE13: 14529.0417 | AF13: =IF(OR(AF12<>"na",AF12="see above"),"see above",IF(SUM($AD$10:AD13)-$N$5>0,I12+(SUM($AD$9:AD12)-$N$5)/-$N$5,"na")) -> na | AG13: -38297.00167 | AH13: 11435.61587 | AI13: 0
F14: Purchase Price Lookup Table | I14: 5 | J14: 37843.78596 | K14: 28279.07835 | L14: =IF(OR(L13<>"na",L13="see above"),"see above",IF(SUM($K$10:K14)+$J$9>0,I14+(SUM($K$10:K14)+$J$9)/$J$9,"na")) -> see above | N14: =IF('Farmer Input'!$J$13="MACRS",((1-VLOOKUP('Monthly Cost & Use'!H36,'Monthly Cost & Use'!AB2:AC3,2,FALSE)/2)*$N$5-N6)*0.1152,IF(I14<='ITC1'!$V$4,((1-VLOOKUP('Monthly Cost & Use'!H36,'Monthly Cost & Use'!AB2:AC3,2,FALSE)/2)*$N$5-N6)/'ITC1'!$V$4,0)) -> 25578.10983 | O14: 0.9801495006 | P14: 366816.0499 | Q14: 0.126718905 | R14: 46482.52818 | S14: =IFERROR(CUMIPMT($G$5/12,$G$4*12,($N$5-'Farmer Input'!$F$10)*$G$3,I14*12-11,I14*12,0),0) -> -24186.15113 | T14: -2954.572905 | V14: =IF(I14<=G$4,IFERROR(CUMPRINC($G$5/12,$G$4*12,($N$5-'Farmer Input'!$F$10)*$G$3,I14*12-11,I14*12,0),0),0) -> -7076.128018 | W14: =-'Farmer Input'!$D$4*'Monthly Cost & Use'!$R$2*(1+$G$6)^I13-12*'Farmer Input'!$J$9*(1+'Farmer Input'!$J$7)^I14 -> -51398.6075 | X14: -4916.079319 | Y14: -2448.884596 | Z14: -41581.81597 | AA14: 3004.189889 | AB14: 11415.92158 | AC14: 35326.72142 | AD14: -27161.7045 | AE14: 14420.11147 | AF14: =IF(OR(AF13<>"na",AF13="see above"),"see above",IF(SUM($AD$10:AD14)-$N$5>0,I13+(SUM($AD$9:AD13)-$N$5)/-$N$5,"na")) -> na | AG14: -39062.9417 | AH14: 11901.2372 | AI14: 0
F15: System Size (kW) | G15: Est. Cost ($/kW) | I15: 6 | J15: 25717.77499 | K15: 18130.01655 | L15: =IF(OR(L14<>"na",L14="see above"),"see above",IF(SUM($K$10:K15)+$J$9>0,I15+(SUM($K$10:K15)+$J$9)/$J$9,"na")) -> see above | N15: =IF('Farmer Input'!$J$13="MACRS",((1-VLOOKUP('Monthly Cost & Use'!$H$36,'Monthly Cost & Use'!$AB$2:$AC$3,2,FALSE)/2)*$N$5-N6)*0.0576,IF(I15<='ITC1'!$V$4,((1-VLOOKUP('Monthly Cost & Use'!$H$36,'Monthly Cost & Use'!$AB$2:$AC$3,2,FALSE)/2)*$N$5-N6)/'ITC1'!$V$4,0)) -> 12789.05492 | O15: 0.9752487531 | P15: 364981.9696 | Q15: 0.1292532831 | R15: 47175.11785 | S15: =IFERROR(CUMIPMT($G$5/12,$G$4*12,($N$5-'Farmer Input'!$F$10)*$G$3,I15*12-11,I15*12,0),0) -> -23476.14169 | T15: -2984.118634 | V15: =IF(I15<=G$4,IFERROR(CUMPRINC($G$5/12,$G$4*12,($N$5-'Farmer Input'!$F$10)*$G$3,I15*12-11,I15*12,0),0),0) -> -7786.137459 | W15: =-'Farmer Input'!$D$4*'Monthly Cost & Use'!$R$2*(1+$G$6)^I14-12*'Farmer Input'!$J$9*(1+'Farmer Input'!$J$7)^I15 -> -52426.57965 | X15: -5251.461799 | Y15: -2285.625623 | Z15: -41783.4852 | AA15: 2339.320133 | AB15: 8889.416505 | AC15: 35853.08957 | AD15: -30554.74856 | AE15: 11228.73664 | AF15: =IF(OR(AF14<>"na",AF14="see above"),"see above",IF(SUM($AD$10:AD15)-$N$5>0,I14+(SUM($AD$9:AD14)-$N$5)/-$N$5,"na")) -> na | AG15: -39844.20053 | AH15: 9289.45197 | AI15: 0
F16: 1 | G16: 1.7 | I16: 7 | J16: 13601.78814 | K16: 9045.965961 | L16: =IF(OR(L15<>"na",L15="see above"),"see above",IF(SUM($K$10:K16)+$J$9>0,I16+(SUM($K$10:K16)+$J$9)/$J$9,"na")) -> see above | N16: =IF('Farmer Input'!$J$13="MACRS",0,IF(I16<='ITC1'!$V$4,((1-VLOOKUP('Monthly Cost & Use'!$H$36,'Monthly Cost & Use'!$AB$2:$AC$3,2,FALSE)/2)*$N$5-$N$6)/'ITC1'!$V$4,0)) -> 0 | O16: 0.9703725094 | P16: 363157.0598 | Q16: 0.1318383488 | R16: 47878.02711 | S16: =IFERROR(CUMIPMT($G$5/12,$G$4*12,($N$5-'Farmer Input'!$F$10)*$G$3,I16*12-11,I16*12,0),0) -> -22694.89082 | T16: -3013.959821 | V16: =IF(I16<=G$4,IFERROR(CUMPRINC($G$5/12,$G$4*12,($N$5-'Farmer Input'!$F$10)*$G$3,I16*12-11,I16*12,0),0),0) -> -8567.388321 | W16: =-'Farmer Input'!$D$4*'Monthly Cost & Use'!$R$2*(1+$G$6)^I15-12*'Farmer Input'!$J$9*(1+'Farmer Input'!$J$7)^I16 -> -53475.11124 | X16: -5597.084136 | Y16: -2122.36665 | Z16: -41995.68975 | AA16: 1671.415072 | AB16: 6351.377272 | AC16: 36387.3006 | AD16: -33972.89741 | AE16: 8022.792343 | AF16: =IF(OR(AF15<>"na",AF15="see above"),"see above",IF(SUM($AD$10:AD16)-$N$5>0,I15+(SUM($AD$9:AD15)-$N$5)/-$N$5,"na")) -> na | AG16: -40641.08454 | AH16: 6668.187136 | AI16: 0
F17: 200 | G17: 1.61 | I17: 8 | J17: 14285.03115 | K17: 8962.605267 | L17: =IF(OR(L16<>"na",L16="see above"),"see above",IF(SUM($K$10:K17)+$J$9>0,I17+(SUM($K$10:K17)+$J$9)/$J$9,"na")) -> see above | N17: =IF('Farmer Input'!$J$13="MACRS",0,IF(I17<='ITC1'!$V$4,((1-VLOOKUP('Monthly Cost & Use'!$H$36,'Monthly Cost & Use'!$AB$2:$AC$3,2,FALSE)/2)*$N$5-$N$6)/'ITC1'!$V$4,0)) -> 0 | O17: 0.9655206468 | P17: 361341.2745 | Q17: 0.1344751158 | R17: 48591.40971 | S17: =IFERROR(CUMIPMT($G$5/12,$G$4*12,($N$5-'Farmer Input'!$F$10)*$G$3,I17*12-11,I17*12,0),0) -> -21835.25027 | T17: -3044.099419 | V17: =IF(I17<=G$4,IFERROR(CUMPRINC($G$5/12,$G$4*12,($N$5-'Farmer Input'!$F$10)*$G$3,I17*12-11,I17*12,0),0),0) -> -9427.028874 | W17: =-'Farmer Input'!$D$4*'Monthly Cost & Use'!$R$2*(1+$G$6)^I16-12*'Farmer Input'!$J$9*(1+'Farmer Input'!$J$7)^I17 -> -54544.61347 | X17: -5953.203757 | Y17: -1959.107677 | Z17: -42218.69 | AA17: 1639.583056 | AB17: 6230.415614 | AC17: 36929.47138 | AD17: -34348.69133 | AE17: 7869.99867 | AF17: =IF(OR(AF16<>"na",AF16="see above"),"see above",IF(SUM($AD$10:AD17)-$N$5>0,I16+(SUM($AD$9:AD16)-$N$5)/-$N$5,"na")) -> na | AG17: -41453.90624 | AH17: 7105.214907 | AI17: 0
F18: 500 | G18: 1.51 | I18: 9 | J18: 14978.60216 | K18: 8865.811603 | L18: =IF(OR(L17<>"na",L17="see above"),"see above",IF(SUM($K$10:K18)+$J$9>0,I18+(SUM($K$10:K18)+$J$9)/$J$9,"na")) -> see above | N18: =IF('Farmer Input'!$J$13="MACRS",0,IF(I18<='ITC1'!$V$4,((1-VLOOKUP('Monthly Cost & Use'!$H$36,'Monthly Cost & Use'!$AB$2:$AC$3,2,FALSE)/2)*$N$5-$N$6)/'ITC1'!$V$4,0)) -> 0 | O18: 0.9606930436 | P18: 359534.5681 | Q18: 0.1371646181 | R18: 49315.42172 | S18: =IFERROR(CUMIPMT($G$5/12,$G$4*12,($N$5-'Farmer Input'!$F$10)*$G$3,I18*12-11,I18*12,0),0) -> -20889.35451 | T18: -3074.540413 | V18: =IF(I18<=G$4,IFERROR(CUMPRINC($G$5/12,$G$4*12,($N$5-'Farmer Input'!$F$10)*$G$3,I18*12-11,I18*12,0),0),0) -> -10372.92464 | W18: =-'Farmer Input'!$D$4*'Monthly Cost & Use'!$R$2*(1+$G$6)^I17-12*'Farmer Input'!$J$9*(1+'Farmer Input'!$J$7)^I18 -> -55635.50574 | X18: -6320.084021 | Y18: -1795.848704 | Z18: -42452.75228 | AA18: 1603.991382 | AB18: 6095.167253 | AC18: 37479.7205 | AD18: -34753.59365 | AE18: 7699.158635 | AF18: =IF(OR(AF17<>"na",AF17="see above"),"see above",IF(SUM($AD$10:AD18)-$N$5>0,I17+(SUM($AD$9:AD17)-$N$5)/-$N$5,"na")) -> na | AG18: -42282.98436 | AH18: 7529.390712 | AI18: 0
F19: 1000 | G19: 1.35 | I19: 10 | J19: 15682.65654 | K19: 8757.113498 | L19: =IF(OR(L18<>"na",L18="see above"),"see above",IF(SUM($K$10:K19)+$J$9>0,I19+(SUM($K$10:K19)+$J$9)/$J$9,"na")) -> see above | N19: =IF('Farmer Input'!$J$13="MACRS",0,IF(I19<='ITC1'!$V$4,((1-VLOOKUP('Monthly Cost & Use'!$H$36,'Monthly Cost & Use'!$AB$2:$AC$3,2,FALSE)/2)*$N$5-$N$6)/'ITC1'!$V$4,0)) -> 0 | O19: 0.9558895784 | P19: 357736.8953 | Q19: 0.1399079104 | R19: 50050.2215 | S19: =IFERROR(CUMIPMT($G$5/12,$G$4*12,($N$5-'Farmer Input'!$F$10)*$G$3,I19*12-11,I19*12,0),0) -> -19848.5488 | T19: -3105.285817 | V19: =IF(I19<=G$4,IFERROR(CUMPRINC($G$5/12,$G$4*12,($N$5-'Farmer Input'!$F$10)*$G$3,I19*12-11,I19*12,0),0),0) -> -11413.73034 | W19: =-'Farmer Input'!$D$4*'Monthly Cost & Use'!$R$2*(1+$G$6)^I18-12*'Farmer Input'!$J$9*(1+'Farmer Input'!$J$7)^I19 -> -56748.21585 | X19: -6697.994352 | Y19: -1632.589731 | Z19: -42698.14905 | AA19: 1564.220935 | AB19: 5944.039553 | AC19: 38038.16834 | AD19: -35189.88856 | AE19: 7508.260488 | AF19: =IF(OR(AF18<>"na",AF18="see above"),"see above",IF(SUM($AD$10:AD19)-$N$5>0,I18+(SUM($AD$9:AD18)-$N$5)/-$N$5,"na")) -> na | AG19: -43128.64405 | AH19: 7938.75549 | AI19: 0
F20: 2000 | G20: 1.29 | I20: 11 | J20: 16397.35198 | K20: 8637.920472 | L20: =IF(OR(L19<>"na",L19="see above"),"see above",IF(SUM($K$10:K20)+$J$9>0,I20+(SUM($K$10:K20)+$J$9)/$J$9,"na")) -> see above | N20: =IF('Farmer Input'!$J$13="MACRS",0,IF(I20<='ITC1'!$V$4,((1-VLOOKUP('Monthly Cost & Use'!$H$36,'Monthly Cost & Use'!$AB$2:$AC$3,2,FALSE)/2)*$N$5-$N$6)/'ITC1'!$V$4,0)) -> 0 | O20: 0.9511101305 | P20: 355948.2108 | Q20: 0.1427060686 | R20: 50795.9698 | S20: =IFERROR(CUMIPMT($G$5/12,$G$4*12,($N$5-'Farmer Input'!$F$10)*$G$3,I20*12-11,I20*12,0),0) -> -18703.31001 | T20: -3136.338676 | V20: =IF(I20<=G$4,IFERROR(CUMPRINC($G$5/12,$G$4*12,($N$5-'Farmer Input'!$F$10)*$G$3,I20*12-11,I20*12,0),0),0) -> -12558.96914 | W20: =-'Farmer Input'!$D$4*'Monthly Cost & Use'!$R$2*(1+$G$6)^I19-12*'Farmer Input'!$J$9*(1+'Farmer Input'!$J$7)^I20 -> -57883.18017 | X20: -7087.210369 | Y20: -1469.330758 | Z20: -42955.15895 | AA20: 1519.80949 | AB20: 5775.276064 | AC20: 38604.93705 | AD20: -35660.07339 | AE20: 7295.085554 | AF20: =IF(OR(AF19<>"na",AF19="see above"),"see above",IF(SUM($AD$10:AD20)-$N$5>0,I19+(SUM($AD$9:AD19)-$N$5)/-$N$5,"na")) -> na | AG20: -43991.21693 | AH20: 8331.143535 | AI20: 0
F21: 5000 | G21: 1.28 | I21: 12 | J21: -1805.728047 | K21: -897.3915185 | L21: =IF(OR(L20<>"na",L20="see above"),"see above",IF(SUM($K$10:K21)+$J$9>0,I21+(SUM($K$10:K21)+$J$9)/$J$9,"na")) -> see above | N21: =IF('Farmer Input'!$J$13="MACRS",0,IF(I21<='ITC1'!$V$4,((1-VLOOKUP('Monthly Cost & Use'!$H$36,'Monthly Cost & Use'!$AB$2:$AC$3,2,FALSE)/2)*$N$5-$N$6)/'ITC1'!$V$4,0)) -> 0 | O21: 0.9463545798 | P21: 354168.4697 | Q21: 0.14556019 | R21: 51552.82975 | S21: =IFERROR(CUMIPMT($G$5/12,$G$4*12,($N$5-'Farmer Input'!$F$10)*$G$3,I21*12-11,I21*12,0),0) -> -17443.15945 | T21: -3167.702062 | U21: =-G2*1000*0.07 -> -18928.57659 | V21: =IF(I21<=G$4,IFERROR(CUMPRINC($G$5/12,$G$4*12,($N$5-'Farmer Input'!$F$10)*$G$3,I21*12-11,I21*12,0),0),0) -> -13819.1197 | W21: =-'Farmer Input'!$D$4*'Monthly Cost & Use'!$R$2*(1+$G$6)^I20-12*'Farmer Input'!$J$9*(1+'Farmer Input'!$J$7)^I21 -> -59040.84377 | X21: -7488.014022 | Y21: -1306.071785 | Z21: -62152.6436 | AA21: 2416.676195 | AB21: 9183.369543 | AC21: 39180.15061 | AD21: -50552.59787 | AE21: 11600.04574 | AF21: =IF(OR(AF20<>"na",AF20="see above"),"see above",IF(SUM($AD$10:AD21)-$N$5>0,I20+(SUM($AD$9:AD20)-$N$5)/-$N$5,"na")) -> na | AG21: -44871.04127 | AH21: -5681.556599 | AI21: -5681.556599
F22: 10000 | G22: 1.26 | I22: 13 | J22: 17859.30868 | K22: 8373.140822 | L22: =IF(OR(L21<>"na",L21="see above"),"see above",IF(SUM($K$10:K22)+$J$9>0,I22+(SUM($K$10:K22)+$J$9)/$J$9,"na")) -> see above | N22: =IF('Farmer Input'!$J$13="MACRS",0,IF(I22<='ITC1'!$V$4,((1-VLOOKUP('Monthly Cost & Use'!$H$36,'Monthly Cost & Use'!$AB$2:$AC$3,2,FALSE)/2)*$N$5-$N$6)/'ITC1'!$V$4,0)) -> 0 | O22: 0.9416228069 | P22: 352397.6274 | Q22: 0.1484713938 | R22: 52320.96691 | S22: =IFERROR(CUMIPMT($G$5/12,$G$4*12,($N$5-'Farmer Input'!$F$10)*$G$3,I22*12-11,I22*12,0),0) -> -16056.56703 | T22: -3199.379083 | V22: =IF(I22<=G$4,IFERROR(CUMPRINC($G$5/12,$G$4*12,($N$5-'Farmer Input'!$F$10)*$G$3,I22*12-11,I22*12,0),0),0) -> -15205.71211 | W22: =-'Farmer Input'!$D$4*'Monthly Cost & Use'!$R$2*(1+$G$6)^I21-12*'Farmer Input'!$J$9*(1+'Farmer Input'!$J$7)^I22 -> -60221.66065 | X22: -7900.693735 | Y22: -1142.812812 | Z22: -43505.16477 | AA22: 1414.972633 | AB22: 5376.896005 | AC22: 39763.93485 | AD22: -36713.29614 | AE22: 6791.868638 | AF22: =IF(OR(AF21<>"na",AF21="see above"),"see above",IF(SUM($AD$10:AD22)-$N$5>0,I21+(SUM($AD$9:AD21)-$N$5)/-$N$5,"na")) -> na | AG22: -45768.46209 | AH22: 9055.165956 | AI22: 0
F23: 20000 | G23: 1.25 | I23: 14 | J23: 18606.8973 | K23: 8229.84862 | L23: =IF(OR(L22<>"na",L22="see above"),"see above",IF(SUM($K$10:K23)+$J$9>0,I23+(SUM($K$10:K23)+$J$9)/$J$9,"na")) -> see above | N23: =IF('Farmer Input'!$J$13="MACRS",0,IF(I23<='ITC1'!$V$4,((1-VLOOKUP('Monthly Cost & Use'!$H$36,'Monthly Cost & Use'!$AB$2:$AC$3,2,FALSE)/2)*$N$5-$N$6)/'ITC1'!$V$4,0)) -> 0 | O23: 0.9369146929 | P23: 350635.6392 | Q23: 0.1514408217 | R23: 53100.54932 | S23: =IFERROR(CUMIPMT($G$5/12,$G$4*12,($N$5-'Farmer Input'!$F$10)*$G$3,I23*12-11,I23*12,0),0) -> -14530.84574 | T23: -3231.372874 | V23: =IF(I23<=G$4,IFERROR(CUMPRINC($G$5/12,$G$4*12,($N$5-'Farmer Input'!$F$10)*$G$3,I23*12-11,I23*12,0),0),0) -> -16731.43341 | W23: =-'Farmer Input'!$D$4*'Monthly Cost & Use'!$R$2*(1+$G$6)^I22-12*'Farmer Input'!$J$9*(1+'Farmer Input'!$J$7)^I23 -> -61426.09386 | X23: -8325.544541 | Y23: -979.5538385 | Z23: -43798.7504 | AA23: 1353.36585 | AB23: 5142.790229 | AC23: 40356.41748 | AD23: -37302.59432 | AE23: 6496.156078 | AF23: =IF(OR(AF22<>"na",AF22="see above"),"see above",IF(SUM($AD$10:AD23)-$N$5>0,I22+(SUM($AD$9:AD22)-$N$5)/-$N$5,"na")) -> na | AG23: -46683.83133 | AH23: 9381.237014 | AI23: 0
I24: 15 | J24: 19365.78176 | K24: 8080.664101 | L24: =IF(OR(L23<>"na",L23="see above"),"see above",IF(SUM($K$10:K24)+$J$9>0,I24+(SUM($K$10:K24)+$J$9)/$J$9,"na")) -> see above | N24: =IF('Farmer Input'!$J$13="MACRS",0,IF(I24<='ITC1'!$V$4,((1-VLOOKUP('Monthly Cost & Use'!$H$36,'Monthly Cost & Use'!$AB$2:$AC$3,2,FALSE)/2)*$N$5-$N$6)/'ITC1'!$V$4,0)) -> 0 | O24: 0.9322301194 | P24: 348882.461 | Q24: 0.1544696381 | R24: 53891.7475 | S24: =IFERROR(CUMIPMT($G$5/12,$G$4*12,($N$5-'Farmer Input'!$F$10)*$G$3,I24*12-11,I24*12,0),0) -> -12852.03557 | T24: -3263.686602 | V24: =IF(I24<=G$4,IFERROR(CUMPRINC($G$5/12,$G$4*12,($N$5-'Farmer Input'!$F$10)*$G$3,I24*12-11,I24*12,0),0),0) -> -18410.24358 | W24: =-'Farmer Input'!$D$4*'Monthly Cost & Use'!$R$2*(1+$G$6)^I23-12*'Farmer Input'!$J$9*(1+'Farmer Input'!$J$7)^I24 -> -62654.61574 | X24: -8762.868233 | Y24: -816.2948654 | Z24: -44105.12885 | AA24: 1284.744263 | AB24: 4882.028201 | AC24: 40957.7281 | AD24: -37938.35638 | AE24: 6166.772465 | AF24: =IF(OR(AF23<>"na",AF23="see above"),"see above",IF(SUM($AD$10:AD24)-$N$5>0,I23+(SUM($AD$9:AD23)-$N$5)/-$N$5,"na")) -> na | AG24: -47617.50796 | AH24: 9679.151579 | AI24: 0
I25: 16 | J25: 20136.13193 | K25: 7926.513502 | L25: =IF(OR(L24<>"na",L24="see above"),"see above",IF(SUM($K$10:K25)+$J$9>0,I25+(SUM($K$10:K25)+$J$9)/$J$9,"na")) -> see above | N25: =IF('Farmer Input'!$J$13="MACRS",0,IF(I25<='ITC1'!$V$4,((1-VLOOKUP('Monthly Cost & Use'!$H$36,'Monthly Cost & Use'!$AB$2:$AC$3,2,FALSE)/2)*$N$5-$N$6)/'ITC1'!$V$4,0)) -> 0 | O25: 0.9275689688 | P25: 347138.0487 | Q25: 0.1575590309 | R25: 54694.73454 | S25: =IFERROR(CUMIPMT($G$5/12,$G$4*12,($N$5-'Farmer Input'!$F$10)*$G$3,I25*12-11,I25*12,0),0) -> -11004.77578 | T25: -3296.323468 | V25: =IF(I25<=G$4,IFERROR(CUMPRINC($G$5/12,$G$4*12,($N$5-'Farmer Input'!$F$10)*$G$3,I25*12-11,I25*12,0),0),0) -> -20257.50337 | W25: =-'Farmer Input'!$D$4*'Monthly Cost & Use'!$R$2*(1+$G$6)^I24-12*'Farmer Input'!$J$9*(1+'Farmer Input'!$J$7)^I25 -> -63907.70805 | X25: -9212.97351 | Y25: -653.0358923 | Z25: -44424.61202 | AA25: 1208.355432 | AB25: 4591.750643 | AC25: 41567.99825 | AD25: -38624.50594 | AE25: 5800.106075 | AF25: =IF(OR(AF24<>"na",AF24="see above"),"see above",IF(SUM($AD$10:AD25)-$N$5>0,I24+(SUM($AD$9:AD24)-$N$5)/-$N$5,"na")) -> na | AG25: -48569.85812 | AH25: 9945.352179 | AI25: 0
I26: 17 | J26: 20918.12024 | K26: 7768.245561 | L26: =IF(OR(L25<>"na",L25="see above"),"see above",IF(SUM($K$10:K26)+$J$9>0,I26+(SUM($K$10:K26)+$J$9)/$J$9,"na")) -> see above | N26: =IF('Farmer Input'!$J$13="MACRS",0,IF(I26<='ITC1'!$V$4,((1-VLOOKUP('Monthly Cost & Use'!$H$36,'Monthly Cost & Use'!$AB$2:$AC$3,2,FALSE)/2)*$N$5-$N$6)/'ITC1'!$V$4,0)) -> 0 | O26: 0.922931124 | P26: 345402.3585 | Q26: 0.1607102115 | R26: 55509.68609 | S26: =IFERROR(CUMIPMT($G$5/12,$G$4*12,($N$5-'Farmer Input'!$F$10)*$G$3,I26*12-11,I26*12,0),0) -> -8972.164351 | T26: -3329.286703 | V26: =IF(I26<=G$4,IFERROR(CUMPRINC($G$5/12,$G$4*12,($N$5-'Farmer Input'!$F$10)*$G$3,I26*12-11,I26*12,0),0),0) -> -22290.11479 | W26: =-'Farmer Input'!$D$4*'Monthly Cost & Use'!$R$2*(1+$G$6)^I25-12*'Farmer Input'!$J$9*(1+'Farmer Input'!$J$7)^I26 -> -65185.86221 | X26: -9676.176126 | Y26: -489.7769193 | Z26: -44757.51889 | AA26: 1123.370205 | AB26: 4268.806779 | AC26: 42187.36143 | AD26: -39365.34191 | AE26: 5392.176984 | AF26: =IF(OR(AF25<>"na",AF25="see above"),"see above",IF(SUM($AD$10:AD26)-$N$5>0,I25+(SUM($AD$9:AD25)-$N$5)/-$N$5,"na")) -> na | AG26: -49541.25528 | AH26: 10175.91337 | AI26: 0
I27: 18 | J27: 21711.92169 | K27: 7606.636959 | L27: =IF(OR(L26<>"na",L26="see above"),"see above",IF(SUM($K$10:K27)+$J$9>0,I27+(SUM($K$10:K27)+$J$9)/$J$9,"na")) -> see above | N27: =IF('Farmer Input'!$J$13="MACRS",0,IF(I27<='ITC1'!$V$4,((1-VLOOKUP('Monthly Cost & Use'!$H$36,'Monthly Cost & Use'!$AB$2:$AC$3,2,FALSE)/2)*$N$5-$N$6)/'ITC1'!$V$4,0)) -> 0 | O27: 0.9183164684 | P27: 343675.3467 | Q27: 0.1639244157 | R27: 56336.78041 | S27: =IFERROR(CUMIPMT($G$5/12,$G$4*12,($N$5-'Farmer Input'!$F$10)*$G$3,I27*12-11,I27*12,0),0) -> -6735.60335 | T27: -3362.57957 | V27: =IF(I27<=G$4,IFERROR(CUMPRINC($G$5/12,$G$4*12,($N$5-'Farmer Input'!$F$10)*$G$3,I27*12-11,I27*12,0),0),0) -> -24526.6758 | W27: =-'Farmer Input'!$D$4*'Monthly Cost & Use'!$R$2*(1+$G$6)^I26-12*'Farmer Input'!$J$9*(1+'Farmer Input'!$J$7)^I27 -> -66489.57946 | X27: -10152.79905 | Y27: -326.5179462 | Z27: -45104.17571 | AA27: 1028.874996 | AB27: 3909.724984 | AC27: 42815.95311 | AD27: -40165.57573 | AE27: 4938.599979 | AF27: =IF(OR(AF26<>"na",AF26="see above"),"see above",IF(SUM($AD$10:AD27)-$N$5>0,I26+(SUM($AD$9:AD26)-$N$5)/-$N$5,"na")) -> na | AG27: -50532.08039 | AH27: 10366.50466 | AI27: 0
I28: 19 | J28: 22517.71393 | K28: 7442.39742 | L28: =IF(OR(L27<>"na",L27="see above"),"see above",IF(SUM($K$10:K28)+$J$9>0,I28+(SUM($K$10:K28)+$J$9)/$J$9,"na")) -> see above | N28: =IF('Farmer Input'!$J$13="MACRS",0,IF(I28<='ITC1'!$V$4,((1-VLOOKUP('Monthly Cost & Use'!$H$36,'Monthly Cost & Use'!$AB$2:$AC$3,2,FALSE)/2)*$N$5-$N$6)/'ITC1'!$V$4,0)) -> 0 | O28: 0.913724886 | P28: 341956.97 | Q28: 0.167202904 | R28: 57176.19844 | S28: =IFERROR(CUMIPMT($G$5/12,$G$4*12,($N$5-'Farmer Input'!$F$10)*$G$3,I28*12-11,I28*12,0),0) -> -4274.628739 | T28: -3396.205366 | V28: =IF(I28<=G$4,IFERROR(CUMPRINC($G$5/12,$G$4*12,($N$5-'Farmer Input'!$F$10)*$G$3,I28*12-11,I28*12,0),0),0) -> -26987.65041 | W28: =-'Farmer Input'!$D$4*'Monthly Cost & Use'!$R$2*(1+$G$6)^I27-12*'Farmer Input'!$J$9*(1+'Farmer Input'!$J$7)^I28 -> -67819.37105 | X28: -10643.17261 | Y28: -163.2589731 | Z28: -45464.91609 | AA28: 923.8632844 | AB28: 3510.680481 | AC28: 43453.91081 | AD28: -41030.37233 | AE28: 4434.543765 | AF28: =IF(OR(AF27<>"na",AF27="see above"),"see above",IF(SUM($AD$10:AD28)-$N$5>0,I27+(SUM($AD$9:AD27)-$N$5)/-$N$5,"na")) -> na | AG28: -51542.722 | AH28: 10512.34967 | AI28: 0
I29: 20 | J29: 23335.67723 | K29: 7276.174465 | L29: =IF(OR(L28<>"na",L28="see above"),"see above",IF(SUM($K$10:K29)+$J$9>0,I29+(SUM($K$10:K29)+$J$9)/$J$9,"na")) -> see above | N29: =IF('Farmer Input'!$J$13="MACRS",0,IF(I29<='ITC1'!$V$4,((1-VLOOKUP('Monthly Cost & Use'!$H$36,'Monthly Cost & Use'!$AB$2:$AC$3,2,FALSE)/2)*$N$5-$N$6)/'ITC1'!$V$4,0)) -> 0 | O29: 0.9091562616 | P29: 340247.1851 | Q29: 0.1705469621 | R29: 58028.12379 | S29: =IFERROR(CUMIPMT($G$5/12,$G$4*12,($N$5-'Farmer Input'!$F$10)*$G$3,I29*12-11,I29*12,0),0) -> -1566.723151 | T29: -3430.16742 | V29: =IF(I29<=G$4,IFERROR(CUMPRINC($G$5/12,$G$4*12,($N$5-'Farmer Input'!$F$10)*$G$3,I29*12-11,I29*12,0),0),0) -> -29695.55599 | W29: =-'Farmer Input'!$D$4*'Monthly Cost & Use'!$R$2*(1+$G$6)^I28-12*'Farmer Input'!$J$9*(1+'Farmer Input'!$J$7)^I29 -> -69175.75847 | X29: -11147.63467 | Y29: 0 | Z29: -45840.08124 | AA29: 807.2262622 | AB29: 3067.459796 | AC29: 44101.37408 | AD29: -41965.39518 | AE29: 3874.686058 | AF29: =IF(OR(AF28<>"na",AF28="see above"),"see above",IF(SUM($AD$10:AD29)-$N$5>0,I28+(SUM($AD$9:AD28)-$N$5)/-$N$5,"na")) -> na | AG29: -52573.57644 | AH29: 10608.18126 | AI29: 0
I30: 21 | J30: 55428.27375 | K30: 16304.52619 | L30: =IF(OR(L29<>"na",L29="see above"),"see above",IF(SUM($K$10:K30)+$J$9>0,I30+(SUM($K$10:K30)+$J$9)/$J$9,"na")) -> see above | N30: =IF('Farmer Input'!$J$13="MACRS",0,IF(I30<='ITC1'!$V$4,((1-VLOOKUP('Monthly Cost & Use'!$H$36,'Monthly Cost & Use'!$AB$2:$AC$3,2,FALSE)/2)*$N$5-$N$6)/'ITC1'!$V$4,0)) -> 0 | O30: 0.9046104803 | P30: 338545.9492 | Q30: 0.1739579014 | R30: 58892.74284 | S30: =IFERROR(CUMIPMT($G$5/12,$G$4*12,($N$5-'Farmer Input'!$F$10)*$G$3,I30*12-11,I30*12,0),0) -> 0 | T30: -3464.469094 | V30: =IF(I30<=G$4,IFERROR(CUMPRINC($G$5/12,$G$4*12,($N$5-'Farmer Input'!$F$10)*$G$3,I30*12-11,I30*12,0),0),0) -> 0 | W30: =-'Farmer Input'!$D$4*'Monthly Cost & Use'!$R$2*(1+$G$6)^I29-12*'Farmer Input'!$J$9*(1+'Farmer Input'!$J$7)^I30 -> -70559.27364 | X30: -11666.5308 | Y30: 0 | Z30: -15130.99989 | AA30: 756.5499946 | AB30: 2874.889979 | AC30: 44758.48456 | AD30: -11499.55992 | AE30: 3631.439974 | AF30: =IF(OR(AF29<>"na",AF29="see above"),"see above",IF(SUM($AD$10:AD30)-$N$5>0,I29+(SUM($AD$9:AD29)-$N$5)/-$N$5,"na")) -> na | AG30: -53625.04796 | AH30: 42125.48805 | AI30: 0
I31: 22 | J31: 56271.13092 | K31: 15615.52564 | L31: =IF(OR(L30<>"na",L30="see above"),"see above",IF(SUM($K$10:K31)+$J$9>0,I31+(SUM($K$10:K31)+$J$9)/$J$9,"na")) -> see above | N31: =IF('Farmer Input'!$J$13="MACRS",0,IF(I31<='ITC1'!$V$4,((1-VLOOKUP('Monthly Cost & Use'!$H$36,'Monthly Cost & Use'!$AB$2:$AC$3,2,FALSE)/2)*$N$5-$N$6)/'ITC1'!$V$4,0)) -> 0 | O31: 0.9000874279 | P31: 336853.2194 | Q31: 0.1774370594 | R31: 59770.24471 | S31: =IFERROR(CUMIPMT($G$5/12,$G$4*12,($N$5-'Farmer Input'!$F$10)*$G$3,I31*12-11,I31*12,0),0) -> 0 | T31: -3499.113785 | V31: =IF(I31<=G$4,IFERROR(CUMPRINC($G$5/12,$G$4*12,($N$5-'Farmer Input'!$F$10)*$G$3,I31*12-11,I31*12,0),0),0) -> 0 | W31: =-'Farmer Input'!$D$4*'Monthly Cost & Use'!$R$2*(1+$G$6)^I30-12*'Farmer Input'!$J$9*(1+'Farmer Input'!$J$7)^I31 -> -71970.45911 | X31: -12200.2144 | Y31: 0 | Z31: -15699.32819 | AA31: 784.9664094 | AB31: 2982.872356 | AC31: 45425.38598 | AD31: -11931.48942 | AE31: 3767.838765 | AF31: =IF(OR(AF30<>"na",AF30="see above"),"see above",IF(SUM($AD$10:AD31)-$N$5>0,I30+(SUM($AD$9:AD30)-$N$5)/-$N$5,"na")) -> na | AG31: -54697.54892 | AH31: 42766.0595 | AI31: 0
I32: 23 | J32: 57126.71643 | K32: 14955.61791 | L32: =IF(OR(L31<>"na",L31="see above"),"see above",IF(SUM($K$10:K32)+$J$9>0,I32+(SUM($K$10:K32)+$J$9)/$J$9,"na")) -> see above | N32: =IF('Farmer Input'!$J$13="MACRS",0,IF(I32<='ITC1'!$V$4,((1-VLOOKUP('Monthly Cost & Use'!$H$36,'Monthly Cost & Use'!$AB$2:$AC$3,2,FALSE)/2)*$N$5-$N$6)/'ITC1'!$V$4,0)) -> 0 | O32: 0.8955869907 | P32: 335168.9533 | Q32: 0.1809858006 | R32: 60660.82135 | S32: =IFERROR(CUMIPMT($G$5/12,$G$4*12,($N$5-'Farmer Input'!$F$10)*$G$3,I32*12-11,I32*12,0),0) -> 0 | T32: -3534.104923 | V32: =IF(I32<=G$4,IFERROR(CUMPRINC($G$5/12,$G$4*12,($N$5-'Farmer Input'!$F$10)*$G$3,I32*12-11,I32*12,0),0),0) -> 0 | W32: =-'Farmer Input'!$D$4*'Monthly Cost & Use'!$R$2*(1+$G$6)^I31-12*'Farmer Input'!$J$9*(1+'Farmer Input'!$J$7)^I32 -> -73409.86829 | X32: -12749.04694 | Y32: 0 | Z32: -16283.15186 | AA32: 814.157593 | AB32: 3093.798854 | AC32: 46102.22423 | AD32: -12375.19541 | AE32: 3907.956447 | AF32: =IF(OR(AF31<>"na",AF31="see above"),"see above",IF(SUM($AD$10:AD32)-$N$5>0,I31+(SUM($AD$9:AD31)-$N$5)/-$N$5,"na")) -> na | AG32: -55791.4999 | AH32: 43416.30449 | AI32: 0
I33: 24 | J33: 41770.7274 | K33: 10316.47362 | L33: =IF(OR(L32<>"na",L32="see above"),"see above",IF(SUM($K$10:K33)+$J$9>0,I33+(SUM($K$10:K33)+$J$9)/$J$9,"na")) -> see above | N33: =IF('Farmer Input'!$J$13="MACRS",0,IF(I33<='ITC1'!$V$4,((1-VLOOKUP('Monthly Cost & Use'!$H$36,'Monthly Cost & Use'!$AB$2:$AC$3,2,FALSE)/2)*$N$5-$N$6)/'ITC1'!$V$4,0)) -> 0 | O33: 0.8911090558 | P33: 333493.1086 | Q33: 0.1846055166 | R33: 61564.66759 | S33: =IFERROR(CUMIPMT($G$5/12,$G$4*12,($N$5-'Farmer Input'!$F$10)*$G$3,I33*12-11,I33*12,0),0) -> 0 | T33: -3569.445972 | U33: =-G2*1000*0.06 -> -16224.49422 | V33: =IF(I33<=G$4,IFERROR(CUMPRINC($G$5/12,$G$4*12,($N$5-'Farmer Input'!$F$10)*$G$3,I33*12-11,I33*12,0),0),0) -> 0 | W33: =-'Farmer Input'!$D$4*'Monthly Cost & Use'!$R$2*(1+$G$6)^I32-12*'Farmer Input'!$J$9*(1+'Farmer Input'!$J$7)^I33 -> -74878.06566 | X33: -13313.39807 | Y33: 0 | Z33: -33107.33826 | AA33: 1655.366913 | AB33: 6290.394269 | AC33: 46789.14737 | AD33: -25161.57708 | AE33: 7945.761182 | AF33: =IF(OR(AF32<>"na",AF32="see above"),"see above",IF(SUM($AD$10:AD33)-$N$5>0,I32+(SUM($AD$9:AD32)-$N$5)/-$N$5,"na")) -> na | AG33: -56907.3299 | AH33: 31745.75282 | AI33: 0
I34: 25 | J34: 58876.84071 | K34: 13718.22325 | L34: =IF(OR(L33<>"na",L33="see above"),"see above",IF(SUM($K$10:K34)+$J$9>0,I34+(SUM($K$10:K34)+$J$9)/$J$9,"na")) -> see above | N34: =IF('Farmer Input'!$J$13="MACRS",0,IF(I34<='ITC1'!$V$4,((1-VLOOKUP('Monthly Cost & Use'!$H$36,'Monthly Cost & Use'!$AB$2:$AC$3,2,FALSE)/2)*$N$5-$N$6)/'ITC1'!$V$4,0)) -> 0 | O34: 0.8866535105 | P34: 331825.643 | Q34: 0.1882976269 | R34: 62481.98114 | S34: =IFERROR(CUMIPMT($G$5/12,$G$4*12,($N$5-'Farmer Input'!$F$10)*$G$3,I34*12-11,I34*12,0),0) -> 0 | T34: -3605.140431 | V34: =IF(I34<=G$4,IFERROR(CUMPRINC($G$5/12,$G$4*12,($N$5-'Farmer Input'!$F$10)*$G$3,I34*12-11,I34*12,0),0),0) -> 0 | W34: =-'Farmer Input'!$D$4*'Monthly Cost & Use'!$R$2*(1+$G$6)^I33-12*'Farmer Input'!$J$9*(1+'Farmer Input'!$J$7)^I34 -> -76375.62697 | X34: -13893.64583 | Y34: 0 | Z34: -17498.78626 | AA34: 874.9393132 | AB34: 3324.76939 | AC34: 47486.30567 | AD34: -13299.07756 | AE34: 4199.708703 | AF34: =IF(OR(AF33<>"na",AF33="see above"),"see above",IF(SUM($AD$10:AD34)-$N$5>0,I33+(SUM($AD$9:AD33)-$N$5)/-$N$5,"na")) -> na | AG34: -58045.4765 | AH34: 44746.39894 | AI34: 0
I35: 26 | J35: 59771.77082 | K35: 13138.43466 | L35: =IF(OR(L34<>"na",L34="see above"),"see above",IF(SUM($K$10:K35)+$J$9>0,I35+(SUM($K$10:K35)+$J$9)/$J$9,"na")) -> see above | N35: =IF('Farmer Input'!$J$13="MACRS",0,IF(I35<='ITC1'!$V$4,((1-VLOOKUP('Monthly Cost & Use'!$H$36,'Monthly Cost & Use'!$AB$2:$AC$3,2,FALSE)/2)*$N$5-$N$6)/'ITC1'!$V$4,0)) -> 0 | O35: 0.8822202429 | P35: 330166.5148 | Q35: 0.1920635795 | R35: 63412.96266 | S35: =IFERROR(CUMIPMT($G$5/12,$G$4*12,($N$5-'Farmer Input'!$F$10)*$G$3,I35*12-11,I35*12,0),0) -> 0 | T35: -3641.191836 | V35: =IF(I35<=G$4,IFERROR(CUMPRINC($G$5/12,$G$4*12,($N$5-'Farmer Input'!$F$10)*$G$3,I35*12-11,I35*12,0),0),0) -> 0 | W35: =-'Farmer Input'!$D$4*'Monthly Cost & Use'!$R$2*(1+$G$6)^I34-12*'Farmer Input'!$J$9*(1+'Farmer Input'!$J$7)^I35 -> -77903.13951 | X35: -14490.17685 | Y35: 0 | Z35: -18131.36869 | AA35: 906.5684344 | AB35: 3444.960051 | AC35: 48193.85162 | AD35: -13779.8402 | AE35: 4351.528485 | AF35: =IF(OR(AF34<>"na",AF34="see above"),"see above",IF(SUM($AD$10:AD35)-$N$5>0,I34+(SUM($AD$9:AD34)-$N$5)/-$N$5,"na")) -> na | AG35: -59206.38603 | AH35: 45426.54583 | AI35: 0
I36: 27 | J36: 60680.21205 | K36: 12583.13128 | L36: =IF(OR(L35<>"na",L35="see above"),"see above",IF(SUM($K$10:K36)+$J$9>0,I36+(SUM($K$10:K36)+$J$9)/$J$9,"na")) -> see above | N36: =IF('Farmer Input'!$J$13="MACRS",0,IF(I36<='ITC1'!$V$4,((1-VLOOKUP('Monthly Cost & Use'!$H$36,'Monthly Cost & Use'!$AB$2:$AC$3,2,FALSE)/2)*$N$5-$N$6)/'ITC1'!$V$4,0)) -> 0 | O36: 0.8778091417 | P36: 328515.6822 | Q36: 0.1959048511 | R36: 64357.8158 | S36: =IFERROR(CUMIPMT($G$5/12,$G$4*12,($N$5-'Farmer Input'!$F$10)*$G$3,I36*12-11,I36*12,0),0) -> 0 | T36: -3677.603754 | V36: =IF(I36<=G$4,IFERROR(CUMPRINC($G$5/12,$G$4*12,($N$5-'Farmer Input'!$F$10)*$G$3,I36*12-11,I36*12,0),0),0) -> 0 | W36: =-'Farmer Input'!$D$4*'Monthly Cost & Use'!$R$2*(1+$G$6)^I35-12*'Farmer Input'!$J$9*(1+'Farmer Input'!$J$7)^I36 -> -79461.2023 | X36: -15103.3865 | Y36: 0 | Z36: -18780.99025 | AA36: 939.0495127 | AB36: 3568.388148 | AC36: 48911.94001 | AD36: -14273.55259 | AE36: 4507.437661 | AF36: =IF(OR(AF35<>"na",AF35="see above"),"see above",IF(SUM($AD$10:AD36)-$N$5>0,I35+(SUM($AD$9:AD35)-$N$5)/-$N$5,"na")) -> na | AG36: -60390.51375 | AH36: 46116.96116 | AI36: 0
I37: 28 | J37: 61602.36747 | K37: 12051.27996 | L37: =IF(OR(L36<>"na",L36="see above"),"see above",IF(SUM($K$10:K37)+$J$9>0,I37+(SUM($K$10:K37)+$J$9)/$J$9,"na")) -> see above | N37: =IF('Farmer Input'!$J$13="MACRS",0,IF(I37<='ITC1'!$V$4,((1-VLOOKUP('Monthly Cost & Use'!$H$36,'Monthly Cost & Use'!$AB$2:$AC$3,2,FALSE)/2)*$N$5-$N$6)/'ITC1'!$V$4,0)) -> 0 | O37: 0.873420096 | P37: 326873.1038 | Q37: 0.1998229481 | R37: 65316.74726 | S37: =IFERROR(CUMIPMT($G$5/12,$G$4*12,($N$5-'Farmer Input'!$F$10)*$G$3,I37*12-11,I37*12,0),0) -> 0 | T37: -3714.379792 | V37: =IF(I37<=G$4,IFERROR(CUMPRINC($G$5/12,$G$4*12,($N$5-'Farmer Input'!$F$10)*$G$3,I37*12-11,I37*12,0),0),0) -> 0 | W37: =-'Farmer Input'!$D$4*'Monthly Cost & Use'!$R$2*(1+$G$6)^I36-12*'Farmer Input'!$J$9*(1+'Farmer Input'!$J$7)^I37 -> -81050.42635 | X37: -15733.67909 | Y37: 0 | Z37: -19448.05888 | AA37: 972.4029441 | AB37: 3695.131187 | AC37: 49640.72792 | AD37: -14780.52475 | AE37: 4667.534132 | AF37: =IF(OR(AF36<>"na",AF36="see above"),"see above",IF(SUM($AD$10:AD37)-$N$5>0,I36+(SUM($AD$9:AD36)-$N$5)/-$N$5,"na")) -> na | AG37: -61598.32402 | AH37: 46817.79927 | AI37: 0
I38: 29 | J38: 62538.4432 | K38: 11541.89112 | L38: =IF(OR(L37<>"na",L37="see above"),"see above",IF(SUM($K$10:K38)+$J$9>0,I38+(SUM($K$10:K38)+$J$9)/$J$9,"na")) -> see above | N38: =IF('Farmer Input'!$J$13="MACRS",0,IF(I38<='ITC1'!$V$4,((1-VLOOKUP('Monthly Cost & Use'!$H$36,'Monthly Cost & Use'!$AB$2:$AC$3,2,FALSE)/2)*$N$5-$N$6)/'ITC1'!$V$4,0)) -> 0 | O38: 0.8690529955 | P38: 325238.7383 | Q38: 0.203819407 | R38: 66289.96679 | S38: =IFERROR(CUMIPMT($G$5/12,$G$4*12,($N$5-'Farmer Input'!$F$10)*$G$3,I38*12-11,I38*12,0),0) -> 0 | T38: -3751.52359 | V38: =IF(I38<=G$4,IFERROR(CUMPRINC($G$5/12,$G$4*12,($N$5-'Farmer Input'!$F$10)*$G$3,I38*12-11,I38*12,0),0),0) -> 0 | W38: =-'Farmer Input'!$D$4*'Monthly Cost & Use'!$R$2*(1+$G$6)^I37-12*'Farmer Input'!$J$9*(1+'Farmer Input'!$J$7)^I38 -> -82671.43487 | X38: -16381.46808 | Y38: 0 | Z38: -20132.99167 | AA38: 1006.649584 | AB38: 3825.268418 | AC38: 50380.37476 | AD38: -15301.07367 | AE38: 4831.918001 | AF38: =IF(OR(AF37<>"na",AF37="see above"),"see above",IF(SUM($AD$10:AD38)-$N$5>0,I37+(SUM($AD$9:AD37)-$N$5)/-$N$5,"na")) -> na | AG38: -62830.2905 | AH38: 47529.21683 | AI38: 0
I39: 30 | J39: 63488.64847 | K39: 11054.0169 | L39: =IF(OR(L38<>"na",L38="see above"),"see above",IF(SUM($K$10:K39)+$J$9>0,I39+(SUM($K$10:K39)+$J$9)/$J$9,"na")) -> see above | N39: =IF('Farmer Input'!$J$13="MACRS",0,IF(I39<='ITC1'!$V$4,((1-VLOOKUP('Monthly Cost & Use'!$H$36,'Monthly Cost & Use'!$AB$2:$AC$3,2,FALSE)/2)*$N$5-$N$6)/'ITC1'!$V$4,0)) -> 0 | O39: 0.8647077306 | P39: 323612.5446 | Q39: 0.2078957952 | R39: 67277.6873 | S39: =IFERROR(CUMIPMT($G$5/12,$G$4*12,($N$5-'Farmer Input'!$F$10)*$G$3,I39*12-11,I39*12,0),0) -> 0 | T39: -3789.038826 | V39: =IF(I39<=G$4,IFERROR(CUMPRINC($G$5/12,$G$4*12,($N$5-'Farmer Input'!$F$10)*$G$3,I39*12-11,I39*12,0),0),0) -> 0 | W39: =-'Farmer Input'!$D$4*'Monthly Cost & Use'!$R$2*(1+$G$6)^I38-12*'Farmer Input'!$J$9*(1+'Farmer Input'!$J$7)^I39 -> -84324.86357 | X39: -17047.17627 | Y39: 0 | Z39: -20836.2151 | AA39: 1041.810755 | AB39: 3958.880869 | AC39: 51131.04235 | AD39: -15835.52348 | AE39: 5000.691624 | AF39: =IF(OR(AF38<>"na",AF38="see above"),"see above",IF(SUM($AD$10:AD39)-$N$5>0,I38+(SUM($AD$9:AD38)-$N$5)/-$N$5,"na")) -> na | AG39: -64086.89631 | AH39: 48251.37284 | AI39: 0
AC41: 30-Yr After Tax NPV | AD41: =AD9+NPV('Farmer Input'!$J$14,'ITC1'!AD10:AD39) -> -212408.1825 | AF41: 30-Yr After Tax NPV | AG41: =AG9+NPV('Farmer Input'!$J$14,'ITC1'!AG10:AG39) -> -617669.4638 | AH41: =AH9+NPV('Farmer Input'!$J$14,'ITC1'!AH10:AH39) -> 405261.2813 | AI41: Net NPV
AC42: 23-Yr After Tax NPV | AD42: =AD9+NPV('Farmer Input'!$J$14,'ITC1'!AD10:AD32) -> -188633.7639 | AF42: 23-Yr After Tax NPV | AG42: =AG9+NPV('Farmer Input'!$J$14,'ITC1'!AG10:AG32) -> -529748.4226 | AH42: =AH9+NPV('Farmer Input'!$J$14,'ITC1'!AH10:AH32) -> 341114.6587

Sheet ITCn
F1: Discount Rate | G1: =+'Farmer Input'!J14 -> 0.06
C2: Temp | F2: System Size (kW DC) | G2: =+'Farmer Input'!D7 -> 270.408237 | I2: =+'Farmer Input'!D3 -> 1384 | J2: kWh/kw | K2: kWh/kw | M2: Second Loan | N2: =+(N5-'Farmer Input'!F10)*(1-G3) -> 48977.69193
C3: =+'Farmer Input'!D12 -> 0.85 | F3: Amount Financed (%) | G3: =+'Farmer Input'!D12 -> 0.85 | I3: =+I2*1.18 -> 1633.12 | J3: with tracking | K3: with tracking | L3: 18% increase ih kWh /w tracking | M3: Equity Amount | N3: =N5*(1-G3) -> 65303.58923 | AB3: (Dep. + Int. +
F4: Loan Term (years) | G4: =+'Farmer Input'!D13 -> 20 | M4: Monthly Loan Payment | N4: =PMT(G5/12,G4*12,N5*G3) -> -3473.586572 | AA4: (Dep. + Int. + | AB4: Insc. + O&M +
F5: Debt Financing Rate | G5: =+'Farmer Input'!D14 -> 0.096 | M5: Purchase Price | N5: =VLOOKUP(G2,F16:G23,2,TRUE)*G2*1000*(IF(G10='Farmer Input'!A3,1.1,1)) -> 435357.2616 | O5: 10% increase in cost per kW with tracking | Z5: Fin. + Insc. + | AA5: Insc. + O&M + | AB5: Prop. Tax
F6: Electric Inflation Rate | G6: =+'Farmer Input'!J7 -> 0.02 | Z6: O&M + Prop. | AA6: Prop. Tax) | AB6: - State Tax)
F7: O&M Inflation Rate | G7: =+'Farmer Input'!J8 -> 0.01 | Z7: Tax | AA7: * State T Rate | AB7: * Fed T Rate
F8: Federal Tax Rate | G8: =+'Farmer Input'!J10 -> 0.2 | I8: Year | J8: Annual Net After Tax Cash | K8: Discounted Annual Value | L8: Discounted Payback | M8: ITC | N8: Depreciation | O8: Panel Output (Degredation) | P8: kWh Annual | Q8: Electric Rate | R8: Pre-Tax Solar Value | S8: Interest Expense | T8: Maintenance & Insurance | U8: Inverter Replacement | V8: Debt Service (principal only) | W8: Est. Electric Bill Without System | X8: Est. Electric Bill With System | Y8: Property Taxes | Z8: Pre-Tax Cashflow | AA8: State Tax Savings | AB8: Federal Tax Savings | AC8: After-Tax Solar Savings | AD8: Est. Yearly After Tax Net Cashflow with Solar | AE8: Income Tax Savings | AF8: Payback | AG8: Est. After Tax Electric Bill without Solar | AH8: Difference in After Tax Cashflow | AI8: Neg Cashflow Years
F9: State Tax Rate | G9: =+'Farmer Input'!J11 -> 0.05 | I9: 0 | J9: =-N5*(1-G3) -> -65303.58923 | K9: =+J9 -> -65303.58923 | AD9: =+'Farmer Input'!F10 -> 108839.3154 | AH9: =+AD9-AG9 -> 108839.3154 | AI9: =NPV(G1,AI10:AI39) -> -2823.559567
F10: Tracker? | G10: =+'Farmer Input'!D9 -> No | I10: 1 | J10: =N10+R10+T10+U10+V10+S10 -> 71776.29754 | K10: =+J10*(1+$G$1)^-I10 -> 67713.48825 | L10: =IF(+K10+$J$9>0,I10+(K10+$J$9)/$J$9,"na") -> 0.9630969899 | M10: =IF(IF('Farmer Input'!$J$12<22,'Farmer Input'!$J$12,22)>=I10,(($N$5-'Farmer Input'!$F$10)*VLOOKUP('Monthly Cost & Use'!$H$36,'Monthly Cost & Use'!$AB$2:$AC$3,2,FALSE))/(IF('Farmer Input'!$J$12<23,'Farmer Input'!$J$12,22)),0) -> 19591.07677 | N10: =IF('Farmer Input'!$J$13="MACRS",(1-VLOOKUP('Monthly Cost & Use'!H36,'Monthly Cost & Use'!AB2:AC3,2,FALSE)/2)*$N$5*0.2,IF(I10<='ITC1'!$V$4,(1-VLOOKUP('Monthly Cost & Use'!H36,'Monthly Cost & Use'!AB2:AC3,2,FALSE)/2)*$N$5/'ITC1'!$V$4,0)) -> 74010.73447 | O10: 1 | P10: =IF(G10="No",G2*$I$2,G2*$I$3) -> 374245 | Q10: =G11/100 -> 0.1170686808 | R10: =P10*Q10*$G$13 -> 43812.36844 | S10: =IFERROR(CUMIPMT($G$5/12,$G$4*12,($N$5-'Farmer Input'!$F$10)*$G$3,I10*12-11,I10*12,0),0)+IFERROR(CUMIPMT('Farmer Input'!$G$12/12,'Farmer Input'!$J$12*12,$N$2,I10*12-11,I10*12,0),0) -> -30099.378 | T10: =-$G$2*1000*SUM('ITC1'!U5:U6) -> -2839.286488 | V10: =IFERROR(CUMPRINC($G$5/12,$G$4*12,($N$5-'Farmer Input'!$F$10)*$G$3,I10*12-11,I10*12,0),0)+IFERROR(CUMPRINC('Farmer Input'!G$12/12,'Farmer Input'!$J$12*12,$N$2,I10*12-11,I10*12,0),0) -> -13108.14087 | W10: =-'Farmer Input'!$D$4*'Monthly Cost & Use'!$R$2*(1+$G$6)^I9-12*'Farmer Input'!$J$9*(1+'Farmer Input'!$J$7)^I10 -> -47484.36844 | X10: =W10+R10 -> -3672 | Y10: =-IF(($N$5-SLN($N$5,0,'ITC1'!$V$4)*I10)*'ITC1'!$U$4<0,0,($N$5-SLN($N$5,0,'ITC1'!$V$4)*I10)*'ITC1'!$U$4) -> -3101.920489 | Z10: =+Y10+V10+U10+T10+S10+X10 -> -52820.72585 | AA10: =(+Y10+U10+T10+S10+X10-N10)*-$G$9 -> 5686.165972 | AB10: =(AA10+Y10+U10+T10+S10+X10-N10)*-$G$8 -> 21607.43069 | AC10: =+R10*(1-($G$9+(1-$G$9)*$G$8)) -> 33297.40002 | AD10: =+Z10+AA10+AB10+M10 -> -5936.052416 | AE10: =+AA10+AB10 -> 27293.59667 | AF10: =IF(+AD10-$N$5>0,I10+(AD10-$N$5)/$N$5,"na") -> na | AG10: =+W10*(1-($G$9+(1-$G$9)*$G$8)) -> -36088.12002 | AH10: =+AD10-AG10 -> 30152.0676 | AI10: =IF(AH10<0,AH10,0) -> 0
F11: Electric Rate (₵/kWh) | G11: =+'Farmer Input'!J6 -> 11.70686808 | I11: 2 | J11: =N11+R11+T11+U11+V11+S11 -> 116807.1496 | K11: =+J11*(1+$G$1)^-I11 -> 103957.9474 | L11: =IF(OR(L10<>"na",L10="see above"),"see above",IF(SUM($K$10:K11)+$J$9>0,I11+(SUM($K$10:K11)+$J$9)/$J$9,"na")) -> see above | M11: =IF(IF('Farmer Input'!$J$12<22,'Farmer Input'!$J$12,22)>=I11,(($N$5-'Farmer Input'!$F$10)*VLOOKUP('Monthly Cost & Use'!$H$36,'Monthly Cost & Use'!$AB$2:$AC$3,2,FALSE))/(IF('Farmer Input'!$J$12<23,'Farmer Input'!$J$12,22)),0) -> 19591.07677 | N11: =IF('Farmer Input'!$J$13="MACRS",(1-VLOOKUP('Monthly Cost & Use'!H36,'Monthly Cost & Use'!AB2:AC3,2,FALSE)/2)*$N$5*0.32,IF(I11<='ITC1'!$V$4,(1-VLOOKUP('Monthly Cost & Use'!H36,'Monthly Cost & Use'!AB2:AC3,2,FALSE)/2)*$N$5/'ITC1'!$V$4,0)) -> 118417.1751 | O11: =O10*(1-'ITC1'!$U$3) -> 0.995 | P11: =P$10*O11 -> 372373.775 | Q11: =Q10*(1+G$6) -> 0.1194100544 | R11: =P11*Q11*$G$13 -> 44465.17273 | S11: =IFERROR(CUMIPMT($G$5/12,$G$4*12,($N$5-'Farmer Input'!$F$10)*$G$3,I11*12-11,I11*12,0),0)+IFERROR(CUMIPMT('Farmer Input'!$G$12/12,'Farmer Input'!$J$12*12,$N$2,I11*12-11,I11*12,0),0) -> -28918.79707 | T11: =T10*(1+G$7) -> -2867.679353 | V11: =IFERROR(CUMPRINC($G$5/12,$G$4*12,($N$5-'Farmer Input'!$F$10)*$G$3,I11*12-11,I11*12,0),0)+IFERROR(CUMPRINC('Farmer Input'!G$12/12,'Farmer Input'!$J$12*12,$N$2,I11*12-11,I11*12,0),0) -> -14288.72181 | W11: =-'Farmer Input'!$D$4*'Monthly Cost & Use'!$R$2*(1+$G$6)^I10-12*'Farmer Input'!$J$9*(1+'Farmer Input'!$J$7)^I11 -> -48434.05581 | X11: =W11+R11 -> -3968.883079 | Y11: =-IF(($N$5-SLN($N$5,0,'ITC1'!$V$4)*I11)*'ITC1'!$U$4<0,0,($N$5-SLN($N$5,0,'ITC1'!$V$4)*I11)*'ITC1'!$U$4) -> -2938.661516 | Z11: =+Y11+V11+U11+T11+S11+X11 -> -52982.74282 | AA11: =(+Y11+U11+T11+S11+X11-N11)*-$G$9 -> 7855.559808 | AB11: =(AA11+Y11+U11+T11+S11+X11-N11)*-$G$8 -> 29851.12727 | AC11: 33793.53128 | AD11: =+Z11+AA11+AB11+M11 -> 4315.021024 | AE11: =+AA11+AB11 -> 37706.68708 | AF11: =IF(OR(AF10<>"na",AF10="see above"),"see above",IF(SUM($AD$10:AD11)-$N$5>0,I10+(SUM($AD$9:AD10)-$N$5)/-$N$5,"na")) -> na | AG11: =+W11*(1-($G$9+(1-$G$9)*$G$8)) -> -36809.88242 | AH11: =+AD11-AG11 -> 41124.90344 | AI11: =IF(AH11<0,AH11,0) -> 0
F12: *Tracker not applicable for all projects | I12: 3 | J12: 70074.13387 | K12: 58835.59404 | L12: =IF(OR(L11<>"na",L11="see above"),"see above",IF(SUM($K$10:K12)+$J$9>0,I12+(SUM($K$10:K12)+$J$9)/$J$9,"na")) -> see above | M12: =IF(IF('Farmer Input'!$J$12<22,'Farmer Input'!$J$12,22)>=I12,(($N$5-'Farmer Input'!$F$10)*VLOOKUP('Monthly Cost & Use'!$H$36,'Monthly Cost & Use'!$AB$2:$AC$3,2,FALSE))/(IF('Farmer Input'!$J$12<23,'Farmer Input'!$J$12,22)),0) -> 19591.07677 | N12: =IF('Farmer Input'!$J$13="MACRS",(1-VLOOKUP('Monthly Cost & Use'!H36,'Monthly Cost & Use'!AB2:AC3,2,FALSE)/2)*$N$5*0.192,IF(I12<='ITC1'!$V$4,(1-VLOOKUP('Monthly Cost & Use'!H36,'Monthly Cost & Use'!AB2:AC3,2,FALSE)/2)*$N$5/'ITC1'!$V$4,0)) -> 71050.30509 | O12: =O11*(1-'ITC1'!$U$3) -> 0.990025 | P12: =P$10*O12 -> 370511.9061 | Q12: 0.1217982555 | R12: 45127.70381 | S12: =IFERROR(CUMIPMT($G$5/12,$G$4*12,($N$5-'Farmer Input'!$F$10)*$G$3,I12*12-11,I12*12,0),0)+IFERROR(CUMIPMT('Farmer Input'!$G$12/12,'Farmer Input'!$J$12*12,$N$2,I12*12-11,I12*12,0),0) -> -27631.0809 | T12: -2896.356147 | V12: =IFERROR(CUMPRINC($G$5/12,$G$4*12,($N$5-'Farmer Input'!$F$10)*$G$3,I12*12-11,I12*12,0),0)+IFERROR(CUMPRINC('Farmer Input'!G$12/12,'Farmer Input'!$J$12*12,$N$2,I12*12-11,I12*12,0),0) -> -15576.43797 | W12: =-'Farmer Input'!$D$4*'Monthly Cost & Use'!$R$2*(1+$G$6)^I11-12*'Farmer Input'!$J$9*(1+'Farmer Input'!$J$7)^I12 -> -49402.73693 | X12: -4275.033122 | Y12: =-IF(($N$5-SLN($N$5,0,'ITC1'!$V$4)*I12)*'ITC1'!$U$4<0,0,($N$5-SLN($N$5,0,'ITC1'!$V$4)*I12)*'ITC1'!$U$4) -> -2775.402542 | Z12: -53154.31069 | AA12: 5431.40889 | AB12: 20639.35378 | AC12: 34297.05489 | AD12: -7492.471244 | AE12: 26070.76267 | AF12: =IF(OR(AF11<>"na",AF11="see above"),"see above",IF(SUM($AD$10:AD12)-$N$5>0,I11+(SUM($AD$9:AD11)-$N$5)/-$N$5,"na")) -> na | AG12: -37546.08007 | AH12: 30053.60882 | AI12: 0
F13: Discount Factor | G13: =+'Farmer Input'!C69 -> 1 | I13: 4 | J13: 42297.45106 | K13: 33503.54296 | L13: =IF(OR(L12<>"na",L12="see above"),"see above",IF(SUM($K$10:K13)+$J$9>0,I13+(SUM($K$10:K13)+$J$9)/$J$9,"na")) -> see above | M13: =IF(IF('Farmer Input'!$J$12<22,'Farmer Input'!$J$12,22)>=I13,(($N$5-'Farmer Input'!$F$10)*VLOOKUP('Monthly Cost & Use'!$H$36,'Monthly Cost & Use'!$AB$2:$AC$3,2,FALSE))/(IF('Farmer Input'!$J$12<23,'Farmer Input'!$J$12,22)),0) -> 19591.07677 | N13: =IF('Farmer Input'!$J$13="MACRS",(1-VLOOKUP('Monthly Cost & Use'!H36,'Monthly Cost & Use'!AB2:AC3,2,FALSE)/2)*$N$5*0.1152,IF(I13<='ITC1'!$V$4,(1-VLOOKUP('Monthly Cost & Use'!H36,'Monthly Cost & Use'!AB2:AC3,2,FALSE)/2)*$N$5/'ITC1'!$V$4,0)) -> 42630.18305 | O13: =O12*(1-'ITC1'!$U$3) -> 0.985074875 | P13: 368659.3466 | Q13: 0.1242342206 | R13: 45800.10659 | S13: =IFERROR(CUMIPMT($G$5/12,$G$4*12,($N$5-'Farmer Input'!$F$10)*$G$3,I13*12-11,I13*12,0),0)+IFERROR(CUMIPMT('Farmer Input'!$G$12/12,'Farmer Input'!$J$12*12,$N$2,I13*12-11,I13*12,0),0) -> -26226.43168 | T13: -2925.319708 | V13: =IFERROR(CUMPRINC($G$5/12,$G$4*12,($N$5-'Farmer Input'!$F$10)*$G$3,I13*12-11,I13*12,0),0)+IFERROR(CUMPRINC('Farmer Input'!G$12/12,'Farmer Input'!$J$12*12,$N$2,I13*12-11,I13*12,0),0) -> -16981.0872 | W13: =-'Farmer Input'!$D$4*'Monthly Cost & Use'!$R$2*(1+$G$6)^I12-12*'Farmer Input'!$J$9*(1+'Farmer Input'!$J$7)^I13 -> -50390.79167 | X13: -4590.685073 | Y13: =-IF(($N$5-SLN($N$5,0,'ITC1'!$V$4)*I13)*'ITC1'!$U$4<0,0,($N$5-SLN($N$5,0,'ITC1'!$V$4)*I13)*'ITC1'!$U$4) -> -2612.143569 | Z13: -53335.66723 | AA13: 3949.238154 | AB13: 15007.10499 | AC13: 34808.08101 | AD13: -14788.24732 | AE13: 18956.34314 | AF13: =IF(OR(AF12<>"na",AF12="see above"),"see above",IF(SUM($AD$10:AD13)-$N$5>0,I12+(SUM($AD$9:AD12)-$N$5)/-$N$5,"na")) -> na | AG13: -38297.00167 | AH13: 23508.75435 | AI13: 0
F14: Purchase Price Lookup Table | I14: 5 | J14: 42950.61945 | K14: 32095.20142 | L14: =IF(OR(L13<>"na",L13="see above"),"see above",IF(SUM($K$10:K14)+$J$9>0,I14+(SUM($K$10:K14)+$J$9)/$J$9,"na")) -> see above | M14: =IF(IF('Farmer Input'!$J$12<22,'Farmer Input'!$J$12,22)>=I14,(($N$5-'Farmer Input'!$F$10)*VLOOKUP('Monthly Cost & Use'!$H$36,'Monthly Cost & Use'!$AB$2:$AC$3,2,FALSE))/(IF('Farmer Input'!$J$12<23,'Farmer Input'!$J$12,22)),0) -> 19591.07677 | N14: =IF('Farmer Input'!$J$13="MACRS",(1-VLOOKUP('Monthly Cost & Use'!H36,'Monthly Cost & Use'!AB2:AC3,2,FALSE)/2)*$N$5*0.1152,IF(I14<='ITC1'!$V$4,(1-VLOOKUP('Monthly Cost & Use'!H36,'Monthly Cost & Use'!AB2:AC3,2,FALSE)/2)*$N$5/'ITC1'!$V$4,0)) -> 42630.18305 | O14: =O13*(1-'ITC1'!$U$3) -> 0.9801495006 | P14: 366816.0499 | Q14: 0.126718905 | R14: 46482.52818 | S14: =IFERROR(CUMIPMT($G$5/12,$G$4*12,($N$5-'Farmer Input'!$F$10)*$G$3,I14*12-11,I14*12,0),0)+IFERROR(CUMIPMT('Farmer Input'!$G$12/12,'Farmer Input'!$J$12*12,$N$2,I14*12-11,I14*12,0),0) -> -24694.14848 | T14: -2954.572905 | V14: =IFERROR(CUMPRINC($G$5/12,$G$4*12,($N$5-'Farmer Input'!$F$10)*$G$3,I14*12-11,I14*12,0),0)+IFERROR(CUMPRINC('Farmer Input'!G$12/12,'Farmer Input'!$J$12*12,$N$2,I14*12-11,I14*12,0),0) -> -18513.37039 | W14: =-'Farmer Input'!$D$4*'Monthly Cost & Use'!$R$2*(1+$G$6)^I13-12*'Farmer Input'!$J$9*(1+'Farmer Input'!$J$7)^I14 -> -51398.6075 | X14: -4916.079319 | Y14: =-IF(($N$5-SLN($N$5,0,'ITC1'!$V$4)*I14)*'ITC1'!$U$4<0,0,($N$5-SLN($N$5,0,'ITC1'!$V$4)*I14)*'ITC1'!$U$4) -> -2448.884596 | Z14: -53527.0557 | AA14: 3882.193418 | AB14: 14752.33499 | AC14: 35326.72142 | AD14: -15301.45052 | AE14: 18634.52841 | AF14: =IF(OR(AF13<>"na",AF13="see above"),"see above",IF(SUM($AD$10:AD14)-$N$5>0,I13+(SUM($AD$9:AD13)-$N$5)/-$N$5,"na")) -> na | AG14: -39062.9417 | AH14: 23761.49118 | AI14: 0
F15: System Size (kW) | G15: Est. Cost ($/W) | I15: 6 | J15: 34243.8116 | K15: 24140.53593 | L15: =IF(OR(L14<>"na",L14="see above"),"see above",IF(SUM($K$10:K15)+$J$9>0,I15+(SUM($K$10:K15)+$J$9)/$J$9,"na")) -> see above | M15: =IF(IF('Farmer Input'!$J$12<22,'Farmer Input'!$J$12,22)>=I15,(($N$5-'Farmer Input'!$F$10)*VLOOKUP('Monthly Cost & Use'!$H$36,'Monthly Cost & Use'!$AB$2:$AC$3,2,FALSE))/(IF('Farmer Input'!$J$12<23,'Farmer Input'!$J$12,22)),0) -> 0 | N15: =IF('Farmer Input'!$J$13="MACRS",(1-VLOOKUP('Monthly Cost & Use'!H36,'Monthly Cost & Use'!AB2:AC3,2,FALSE)/2)*$N$5*0.0576,IF(I15<='ITC1'!$V$4,(1-VLOOKUP('Monthly Cost & Use'!H36,'Monthly Cost & Use'!AB2:AC3,2,FALSE)/2)*$N$5/'ITC1'!$V$4,0)) -> 21315.09153 | O15: =O14*(1-'ITC1'!$U$3) -> 0.9752487531 | P15: 364981.9696 | Q15: 0.1292532831 | R15: 47175.11785 | S15: =IFERROR(CUMIPMT($G$5/12,$G$4*12,($N$5-'Farmer Input'!$F$10)*$G$3,I15*12-11,I15*12,0),0)+IFERROR(CUMIPMT('Farmer Input'!$G$12/12,'Farmer Input'!$J$12*12,$N$2,I15*12-11,I15*12,0),0) -> -23476.14169 | T15: -2984.118634 | V15: =IFERROR(CUMPRINC($G$5/12,$G$4*12,($N$5-'Farmer Input'!$F$10)*$G$3,I15*12-11,I15*12,0),0)+IFERROR(CUMPRINC('Farmer Input'!G$12/12,'Farmer Input'!$J$12*12,$N$2,I15*12-11,I15*12,0),0) -> -7786.137459 | W15: =-'Farmer Input'!$D$4*'Monthly Cost & Use'!$R$2*(1+$G$6)^I14-12*'Farmer Input'!$J$9*(1+'Farmer Input'!$J$7)^I15 -> -52426.57965 | X15: -5251.461799 | Y15: =-IF(($N$5-SLN($N$5,0,'ITC1'!$V$4)*I15)*'ITC1'!$U$4<0,0,($N$5-SLN($N$5,0,'ITC1'!$V$4)*I15)*'ITC1'!$U$4) -> -2285.625623 | Z15: -41783.4852 | AA15: 2765.621963 | AB15: 10509.36346 | AC15: 35853.08957 | AD15: -28508.49978 | AE15: 13274.98542 | AF15: =IF(OR(AF14<>"na",AF14="see above"),"see above",IF(SUM($AD$10:AD15)-$N$5>0,I14+(SUM($AD$9:AD14)-$N$5)/-$N$5,"na")) -> na | AG15: -39844.20053 | AH15: 11335.70076 | AI15: 0
F16: 1 | G16: 1.7 | I16: 7 | J16: 13601.78814 | K16: 9045.965961 | L16: =IF(OR(L15<>"na",L15="see above"),"see above",IF(SUM($K$10:K16)+$J$9>0,I16+(SUM($K$10:K16)+$J$9)/$J$9,"na")) -> see above | M16: =IF(IF('Farmer Input'!$J$12<22,'Farmer Input'!$J$12,22)>=I16,(($N$5-'Farmer Input'!$F$10)*VLOOKUP('Monthly Cost & Use'!$H$36,'Monthly Cost & Use'!$AB$2:$AC$3,2,FALSE))/(IF('Farmer Input'!$J$12<23,'Farmer Input'!$J$12,22)),0) -> 0 | N16: =IF('Farmer Input'!$J$13="MACRS",0,IF(I16<='ITC1'!$V$4,(1-VLOOKUP('Monthly Cost & Use'!$H$36,'Monthly Cost & Use'!$AB$2:$AC$3,2,FALSE)/2)*$N$5/'ITC1'!$V$4,0)) -> 0 | O16: =O15*(1-'ITC1'!$U$3) -> 0.9703725094 | P16: 363157.0598 | Q16: 0.1318383488 | R16: 47878.02711 | S16: =IFERROR(CUMIPMT($G$5/12,$G$4*12,($N$5-'Farmer Input'!$F$10)*$G$3,I16*12-11,I16*12,0),0)+IFERROR(CUMIPMT('Farmer Input'!$G$12/12,'Farmer Input'!$J$12*12,$N$2,I16*12-11,I16*12,0),0) -> -22694.89082 | T16: -3013.959821 | V16: =IFERROR(CUMPRINC($G$5/12,$G$4*12,($N$5-'Farmer Input'!$F$10)*$G$3,I16*12-11,I16*12,0),0)+IFERROR(CUMPRINC('Farmer Input'!G$12/12,'Farmer Input'!$J$12*12,$N$2,I16*12-11,I16*12,0),0) -> -8567.388321 | W16: =-'Farmer Input'!$D$4*'Monthly Cost & Use'!$R$2*(1+$G$6)^I15-12*'Farmer Input'!$J$9*(1+'Farmer Input'!$J$7)^I16 -> -53475.11124 | X16: -5597.084136 | Y16: =-IF(($N$5-SLN($N$5,0,'ITC1'!$V$4)*I16)*'ITC1'!$U$4<0,0,($N$5-SLN($N$5,0,'ITC1'!$V$4)*I16)*'ITC1'!$U$4) -> -2122.36665 | Z16: -41995.68975 | AA16: 1671.415072 | AB16: 6351.377272 | AC16: 36387.3006 | AD16: -33972.89741 | AE16: 8022.792343 | AF16: =IF(OR(AF15<>"na",AF15="see above"),"see above",IF(SUM($AD$10:AD16)-$N$5>0,I15+(SUM($AD$9:AD15)-$N$5)/-$N$5,"na")) -> na | AG16: -40641.08454 | AH16: 6668.187136 | AI16: 0
F17: 200 | G17: 1.61 | I17: 8 | J17: 14285.03115 | K17: 8962.605267 | L17: =IF(OR(L16<>"na",L16="see above"),"see above",IF(SUM($K$10:K17)+$J$9>0,I17+(SUM($K$10:K17)+$J$9)/$J$9,"na")) -> see above | M17: =IF(IF('Farmer Input'!$J$12<22,'Farmer Input'!$J$12,22)>=I17,(($N$5-'Farmer Input'!$F$10)*VLOOKUP('Monthly Cost & Use'!$H$36,'Monthly Cost & Use'!$AB$2:$AC$3,2,FALSE))/(IF('Farmer Input'!$J$12<23,'Farmer Input'!$J$12,22)),0) -> 0 | N17: =IF('Farmer Input'!$J$13="MACRS",0,IF(I17<='ITC1'!$V$4,(1-VLOOKUP('Monthly Cost & Use'!$H$36,'Monthly Cost & Use'!$AB$2:$AC$3,2,FALSE)/2)*$N$5/'ITC1'!$V$4,0)) -> 0 | O17: =O16*(1-'ITC1'!$U$3) -> 0.9655206468 | P17: 361341.2745 | Q17: 0.1344751158 | R17: 48591.40971 | S17: =IFERROR(CUMIPMT($G$5/12,$G$4*12,($N$5-'Farmer Input'!$F$10)*$G$3,I17*12-11,I17*12,0),0)+IFERROR(CUMIPMT('Farmer Input'!$G$12/12,'Farmer Input'!$J$12*12,$N$2,I17*12-11,I17*12,0),0) -> -21835.25027 | T17: -3044.099419 | V17: =IFERROR(CUMPRINC($G$5/12,$G$4*12,($N$5-'Farmer Input'!$F$10)*$G$3,I17*12-11,I17*12,0),0)+IFERROR(CUMPRINC('Farmer Input'!G$12/12,'Farmer Input'!$J$12*12,$N$2,I17*12-11,I17*12,0),0) -> -9427.028874 | W17: =-'Farmer Input'!$D$4*'Monthly Cost & Use'!$R$2*(1+$G$6)^I16-12*'Farmer Input'!$J$9*(1+'Farmer Input'!$J$7)^I17 -> -54544.61347 | X17: -5953.203757 | Y17: =-IF(($N$5-SLN($N$5,0,'ITC1'!$V$4)*I17)*'ITC1'!$U$4<0,0,($N$5-SLN($N$5,0,'ITC1'!$V$4)*I17)*'ITC1'!$U$4) -> -1959.107677 | Z17: -42218.69 | AA17: 1639.583056 | AB17: 6230.415614 | AC17: 36929.47138 | AD17: -34348.69133 | AE17: 7869.99867 | AF17: =IF(OR(AF16<>"na",AF16="see above"),"see above",IF(SUM($AD$10:AD17)-$N$5>0,I16+(SUM($AD$9:AD16)-$N$5)/-$N$5,"na")) -> na | AG17: -41453.90624 | AH17: 7105.214907 | AI17: 0
F18: 500 | G18: 1.51 | I18: 9 | J18: 14978.60216 | K18: 8865.811603 | L18: =IF(OR(L17<>"na",L17="see above"),"see above",IF(SUM($K$10:K18)+$J$9>0,I18+(SUM($K$10:K18)+$J$9)/$J$9,"na")) -> see above | M18: =IF(IF('Farmer Input'!$J$12<22,'Farmer Input'!$J$12,22)>=I18,(($N$5-'Farmer Input'!$F$10)*VLOOKUP('Monthly Cost & Use'!$H$36,'Monthly Cost & Use'!$AB$2:$AC$3,2,FALSE))/(IF('Farmer Input'!$J$12<23,'Farmer Input'!$J$12,22)),0) -> 0 | N18: =IF('Farmer Input'!$J$13="MACRS",0,IF(I18<='ITC1'!$V$4,(1-VLOOKUP('Monthly Cost & Use'!$H$36,'Monthly Cost & Use'!$AB$2:$AC$3,2,FALSE)/2)*$N$5/'ITC1'!$V$4,0)) -> 0 | O18: =O17*(1-'ITC1'!$U$3) -> 0.9606930436 | P18: 359534.5681 | Q18: 0.1371646181 | R18: 49315.42172 | S18: =IFERROR(CUMIPMT($G$5/12,$G$4*12,($N$5-'Farmer Input'!$F$10)*$G$3,I18*12-11,I18*12,0),0)+IFERROR(CUMIPMT('Farmer Input'!$G$12/12,'Farmer Input'!$J$12*12,$N$2,I18*12-11,I18*12,0),0) -> -20889.35451 | T18: -3074.540413 | V18: =IFERROR(CUMPRINC($G$5/12,$G$4*12,($N$5-'Farmer Input'!$F$10)*$G$3,I18*12-11,I18*12,0),0)+IFERROR(CUMPRINC('Farmer Input'!G$12/12,'Farmer Input'!$J$12*12,$N$2,I18*12-11,I18*12,0),0) -> -10372.92464 | W18: =-'Farmer Input'!$D$4*'Monthly Cost & Use'!$R$2*(1+$G$6)^I17-12*'Farmer Input'!$J$9*(1+'Farmer Input'!$J$7)^I18 -> -55635.50574 | X18: -6320.084021 | Y18: =-IF(($N$5-SLN($N$5,0,'ITC1'!$V$4)*I18)*'ITC1'!$U$4<0,0,($N$5-SLN($N$5,0,'ITC1'!$V$4)*I18)*'ITC1'!$U$4) -> -1795.848704 | Z18: -42452.75228 | AA18: 1603.991382 | AB18: 6095.167253 | AC18: 37479.7205 | AD18: -34753.59365 | AE18: 7699.158635 | AF18: =IF(OR(AF17<>"na",AF17="see above"),"see above",IF(SUM($AD$10:AD18)-$N$5>0,I17+(SUM($AD$9:AD17)-$N$5)/-$N$5,"na")) -> na | AG18: -42282.98436 | AH18: 7529.390712 | AI18: 0
F19: 1000 | G19: 1.35 | I19: 10 | J19: 15682.65654 | K19: 8757.113498 | L19: =IF(OR(L18<>"na",L18="see above"),"see above",IF(SUM($K$10:K19)+$J$9>0,I19+(SUM($K$10:K19)+$J$9)/$J$9,"na")) -> see above | M19: =IF(IF('Farmer Input'!$J$12<22,'Farmer Input'!$J$12,22)>=I19,(($N$5-'Farmer Input'!$F$10)*VLOOKUP('Monthly Cost & Use'!$H$36,'Monthly Cost & Use'!$AB$2:$AC$3,2,FALSE))/(IF('Farmer Input'!$J$12<23,'Farmer Input'!$J$12,22)),0) -> 0 | N19: =IF('Farmer Input'!$J$13="MACRS",0,IF(I19<='ITC1'!$V$4,(1-VLOOKUP('Monthly Cost & Use'!$H$36,'Monthly Cost & Use'!$AB$2:$AC$3,2,FALSE)/2)*$N$5/'ITC1'!$V$4,0)) -> 0 | O19: =O18*(1-'ITC1'!$U$3) -> 0.9558895784 | P19: 357736.8953 | Q19: 0.1399079104 | R19: 50050.2215 | S19: =IFERROR(CUMIPMT($G$5/12,$G$4*12,($N$5-'Farmer Input'!$F$10)*$G$3,I19*12-11,I19*12,0),0)+IFERROR(CUMIPMT('Farmer Input'!$G$12/12,'Farmer Input'!$J$12*12,$N$2,I19*12-11,I19*12,0),0) -> -19848.5488 | T19: -3105.285817 | V19: =IFERROR(CUMPRINC($G$5/12,$G$4*12,($N$5-'Farmer Input'!$F$10)*$G$3,I19*12-11,I19*12,0),0)+IFERROR(CUMPRINC('Farmer Input'!G$12/12,'Farmer Input'!$J$12*12,$N$2,I19*12-11,I19*12,0),0) -> -11413.73034 | W19: =-'Farmer Input'!$D$4*'Monthly Cost & Use'!$R$2*(1+$G$6)^I18-12*'Farmer Input'!$J$9*(1+'Farmer Input'!$J$7)^I19 -> -56748.21585 | X19: -6697.994352 | Y19: =-IF(($N$5-SLN($N$5,0,'ITC1'!$V$4)*I19)*'ITC1'!$U$4<0,0,($N$5-SLN($N$5,0,'ITC1'!$V$4)*I19)*'ITC1'!$U$4) -> -1632.589731 | Z19: -42698.14905 | AA19: 1564.220935 | AB19: 5944.039553 | AC19: 38038.16834 | AD19: -35189.88856 | AE19: 7508.260488 | AF19: =IF(OR(AF18<>"na",AF18="see above"),"see above",IF(SUM($AD$10:AD19)-$N$5>0,I18+(SUM($AD$9:AD18)-$N$5)/-$N$5,"na")) -> na | AG19: -43128.64405 | AH19: 7938.75549 | AI19: 0
F20: 2000 | G20: 1.29 | I20: 11 | J20: 16397.35198 | K20: 8637.920472 | L20: =IF(OR(L19<>"na",L19="see above"),"see above",IF(SUM($K$10:K20)+$J$9>0,I20+(SUM($K$10:K20)+$J$9)/$J$9,"na")) -> see above | M20: =IF(IF('Farmer Input'!$J$12<22,'Farmer Input'!$J$12,22)>=I20,(($N$5-'Farmer Input'!$F$10)*VLOOKUP('Monthly Cost & Use'!$H$36,'Monthly Cost & Use'!$AB$2:$AC$3,2,FALSE))/(IF('Farmer Input'!$J$12<23,'Farmer Input'!$J$12,22)),0) -> 0 | N20: =IF('Farmer Input'!$J$13="MACRS",0,IF(I20<='ITC1'!$V$4,(1-VLOOKUP('Monthly Cost & Use'!$H$36,'Monthly Cost & Use'!$AB$2:$AC$3,2,FALSE)/2)*$N$5/'ITC1'!$V$4,0)) -> 0 | O20: =O19*(1-'ITC1'!$U$3) -> 0.9511101305 | P20: 355948.2108 | Q20: 0.1427060686 | R20: 50795.9698 | S20: =IFERROR(CUMIPMT($G$5/12,$G$4*12,($N$5-'Farmer Input'!$F$10)*$G$3,I20*12-11,I20*12,0),0)+IFERROR(CUMIPMT('Farmer Input'!$G$12/12,'Farmer Input'!$J$12*12,$N$2,I20*12-11,I20*12,0),0) -> -18703.31001 | T20: -3136.338676 | V20: =IFERROR(CUMPRINC($G$5/12,$G$4*12,($N$5-'Farmer Input'!$F$10)*$G$3,I20*12-11,I20*12,0),0)+IFERROR(CUMPRINC('Farmer Input'!G$12/12,'Farmer Input'!$J$12*12,$N$2,I20*12-11,I20*12,0),0) -> -12558.96914 | W20: =-'Farmer Input'!$D$4*'Monthly Cost & Use'!$R$2*(1+$G$6)^I19-12*'Farmer Input'!$J$9*(1+'Farmer Input'!$J$7)^I20 -> -57883.18017 | X20: -7087.210369 | Y20: =-IF(($N$5-SLN($N$5,0,'ITC1'!$V$4)*I20)*'ITC1'!$U$4<0,0,($N$5-SLN($N$5,0,'ITC1'!$V$4)*I20)*'ITC1'!$U$4) -> -1469.330758 | Z20: -42955.15895 | AA20: 1519.80949 | AB20: 5775.276064 | AC20: 38604.93705 | AD20: -35660.07339 | AE20: 7295.085554 | AF20: =IF(OR(AF19<>"na",AF19="see above"),"see above",IF(SUM($AD$10:AD20)-$N$5>0,I19+(SUM($AD$9:AD19)-$N$5)/-$N$5,"na")) -> na | AG20: -43991.21693 | AH20: 8331.143535 | AI20: 0
F21: 5000 | G21: 1.28 | I21: 12 | J21: -1805.728047 | K21: -897.3915185 | L21: =IF(OR(L20<>"na",L20="see above"),"see above",IF(SUM($K$10:K21)+$J$9>0,I21+(SUM($K$10:K21)+$J$9)/$J$9,"na")) -> see above | M21: =IF(IF('Farmer Input'!$J$12<22,'Farmer Input'!$J$12,22)>=I21,(($N$5-'Farmer Input'!$F$10)*VLOOKUP('Monthly Cost & Use'!$H$36,'Monthly Cost & Use'!$AB$2:$AC$3,2,FALSE))/(IF('Farmer Input'!$J$12<23,'Farmer Input'!$J$12,22)),0) -> 0 | N21: =IF('Farmer Input'!$J$13="MACRS",0,IF(I21<='ITC1'!$V$4,(1-VLOOKUP('Monthly Cost & Use'!$H$36,'Monthly Cost & Use'!$AB$2:$AC$3,2,FALSE)/2)*$N$5/'ITC1'!$V$4,0)) -> 0 | O21: =O20*(1-'ITC1'!$U$3) -> 0.9463545798 | P21: 354168.4697 | Q21: 0.14556019 | R21: 51552.82975 | S21: =IFERROR(CUMIPMT($G$5/12,$G$4*12,($N$5-'Farmer Input'!$F$10)*$G$3,I21*12-11,I21*12,0),0)+IFERROR(CUMIPMT('Farmer Input'!$G$12/12,'Farmer Input'!$J$12*12,$N$2,I21*12-11,I21*12,0),0) -> -17443.15945 | T21: -3167.702062 | U21: =-G2*1000*0.07 -> -18928.57659 | V21: =IFERROR(CUMPRINC($G$5/12,$G$4*12,($N$5-'Farmer Input'!$F$10)*$G$3,I21*12-11,I21*12,0),0)+IFERROR(CUMPRINC('Farmer Input'!G$12/12,'Farmer Input'!$J$12*12,$N$2,I21*12-11,I21*12,0),0) -> -13819.1197 | W21: =-'Farmer Input'!$D$4*'Monthly Cost & Use'!$R$2*(1+$G$6)^I20-12*'Farmer Input'!$J$9*(1+'Farmer Input'!$J$7)^I21 -> -59040.84377 | X21: -7488.014022 | Y21: =-IF(($N$5-SLN($N$5,0,'ITC1'!$V$4)*I21)*'ITC1'!$U$4<0,0,($N$5-SLN($N$5,0,'ITC1'!$V$4)*I21)*'ITC1'!$U$4) -> -1306.071785 | Z21: -62152.6436 | AA21: 2416.676195 | AB21: 9183.369543 | AC21: 39180.15061 | AD21: -50552.59787 | AE21: 11600.04574 | AF21: =IF(OR(AF20<>"na",AF20="see above"),"see above",IF(SUM($AD$10:AD21)-$N$5>0,I20+(SUM($AD$9:AD20)-$N$5)/-$N$5,"na")) -> na | AG21: -44871.04127 | AH21: -5681.556599 | AI21: -5681.556599
F22: 10000 | G22: 1.26 | I22: 13 | J22: 17859.30868 | K22: 8373.140822 | L22: =IF(OR(L21<>"na",L21="see above"),"see above",IF(SUM($K$10:K22)+$J$9>0,I22+(SUM($K$10:K22)+$J$9)/$J$9,"na")) -> see above | M22: =IF(IF('Farmer Input'!$J$12<22,'Farmer Input'!$J$12,22)>=I22,(($N$5-'Farmer Input'!$F$10)*VLOOKUP('Monthly Cost & Use'!$H$36,'Monthly Cost & Use'!$AB$2:$AC$3,2,FALSE))/(IF('Farmer Input'!$J$12<23,'Farmer Input'!$J$12,22)),0) -> 0 | N22: =IF('Farmer Input'!$J$13="MACRS",0,IF(I22<='ITC1'!$V$4,(1-VLOOKUP('Monthly Cost & Use'!$H$36,'Monthly Cost & Use'!$AB$2:$AC$3,2,FALSE)/2)*$N$5/'ITC1'!$V$4,0)) -> 0 | O22: =O21*(1-'ITC1'!$U$3) -> 0.9416228069 | P22: 352397.6274 | Q22: 0.1484713938 | R22: 52320.96691 | S22: =IFERROR(CUMIPMT($G$5/12,$G$4*12,($N$5-'Farmer Input'!$F$10)*$G$3,I22*12-11,I22*12,0),0)+IFERROR(CUMIPMT('Farmer Input'!$G$12/12,'Farmer Input'!$J$12*12,$N$2,I22*12-11,I22*12,0),0) -> -16056.56703 | T22: -3199.379083 | V22: =IFERROR(CUMPRINC($G$5/12,$G$4*12,($N$5-'Farmer Input'!$F$10)*$G$3,I22*12-11,I22*12,0),0)+IFERROR(CUMPRINC('Farmer Input'!G$12/12,'Farmer Input'!$J$12*12,$N$2,I22*12-11,I22*12,0),0) -> -15205.71211 | W22: =-'Farmer Input'!$D$4*'Monthly Cost & Use'!$R$2*(1+$G$6)^I21-12*'Farmer Input'!$J$9*(1+'Farmer Input'!$J$7)^I22 -> -60221.66065 | X22: -7900.693735 | Y22: =-IF(($N$5-SLN($N$5,0,'ITC1'!$V$4)*I22)*'ITC1'!$U$4<0,0,($N$5-SLN($N$5,0,'ITC1'!$V$4)*I22)*'ITC1'!$U$4) -> -1142.812812 | Z22: -43505.16477 | AA22: 1414.972633 | AB22: 5376.896005 | AC22: 39763.93485 | AD22: -36713.29614 | AE22: 6791.868638 | AF22: =IF(OR(AF21<>"na",AF21="see above"),"see above",IF(SUM($AD$10:AD22)-$N$5>0,I21+(SUM($AD$9:AD21)-$N$5)/-$N$5,"na")) -> na | AG22: -45768.46209 | AH22: 9055.165956 | AI22: 0
F23: 20000 | G23: 1.25 | I23: 14 | J23: 18606.8973 | K23: 8229.84862 | L23: =IF(OR(L22<>"na",L22="see above"),"see above",IF(SUM($K$10:K23)+$J$9>0,I23+(SUM($K$10:K23)+$J$9)/$J$9,"na")) -> see above | M23: =IF(IF('Farmer Input'!$J$12<22,'Farmer Input'!$J$12,22)>=I23,(($N$5-'Farmer Input'!$F$10)*VLOOKUP('Monthly Cost & Use'!$H$36,'Monthly Cost & Use'!$AB$2:$AC$3,2,FALSE))/(IF('Farmer Input'!$J$12<23,'Farmer Input'!$J$12,22)),0) -> 0 | N23: =IF('Farmer Input'!$J$13="MACRS",0,IF(I23<='ITC1'!$V$4,(1-VLOOKUP('Monthly Cost & Use'!$H$36,'Monthly Cost & Use'!$AB$2:$AC$3,2,FALSE)/2)*$N$5/'ITC1'!$V$4,0)) -> 0 | O23: =O22*(1-'ITC1'!$U$3) -> 0.9369146929 | P23: 350635.6392 | Q23: 0.1514408217 | R23: 53100.54932 | S23: =IFERROR(CUMIPMT($G$5/12,$G$4*12,($N$5-'Farmer Input'!$F$10)*$G$3,I23*12-11,I23*12,0),0)+IFERROR(CUMIPMT('Farmer Input'!$G$12/12,'Farmer Input'!$J$12*12,$N$2,I23*12-11,I23*12,0),0) -> -14530.84574 | T23: -3231.372874 | V23: =IFERROR(CUMPRINC($G$5/12,$G$4*12,($N$5-'Farmer Input'!$F$10)*$G$3,I23*12-11,I23*12,0),0)+IFERROR(CUMPRINC('Farmer Input'!G$12/12,'Farmer Input'!$J$12*12,$N$2,I23*12-11,I23*12,0),0) -> -16731.43341 | W23: =-'Farmer Input'!$D$4*'Monthly Cost & Use'!$R$2*(1+$G$6)^I22-12*'Farmer Input'!$J$9*(1+'Farmer Input'!$J$7)^I23 -> -61426.09386 | X23: -8325.544541 | Y23: =-IF(($N$5-SLN($N$5,0,'ITC1'!$V$4)*I23)*'ITC1'!$U$4<0,0,($N$5-SLN($N$5,0,'ITC1'!$V$4)*I23)*'ITC1'!$U$4) -> -979.5538385 | Z23: -43798.7504 | AA23: 1353.36585 | AB23: 5142.790229 | AC23: 40356.41748 | AD23: -37302.59432 | AE23: 6496.156078 | AF23: =IF(OR(AF22<>"na",AF22="see above"),"see above",IF(SUM($AD$10:AD23)-$N$5>0,I22+(SUM($AD$9:AD22)-$N$5)/-$N$5,"na")) -> na | AG23: -46683.83133 | AH23: 9381.237014 | AI23: 0
I24: 15 | J24: 19365.78176 | K24: 8080.664101 | L24: =IF(OR(L23<>"na",L23="see above"),"see above",IF(SUM($K$10:K24)+$J$9>0,I24+(SUM($K$10:K24)+$J$9)/$J$9,"na")) -> see above | M24: =IF(IF('Farmer Input'!$J$12<22,'Farmer Input'!$J$12,22)>=I24,(($N$5-'Farmer Input'!$F$10)*VLOOKUP('Monthly Cost & Use'!$H$36,'Monthly Cost & Use'!$AB$2:$AC$3,2,FALSE))/(IF('Farmer Input'!$J$12<23,'Farmer Input'!$J$12,22)),0) -> 0 | N24: =IF('Farmer Input'!$J$13="MACRS",0,IF(I24<='ITC1'!$V$4,(1-VLOOKUP('Monthly Cost & Use'!$H$36,'Monthly Cost & Use'!$AB$2:$AC$3,2,FALSE)/2)*$N$5/'ITC1'!$V$4,0)) -> 0 | O24: =O23*(1-'ITC1'!$U$3) -> 0.9322301194 | P24: 348882.461 | Q24: 0.1544696381 | R24: 53891.7475 | S24: =IFERROR(CUMIPMT($G$5/12,$G$4*12,($N$5-'Farmer Input'!$F$10)*$G$3,I24*12-11,I24*12,0),0)+IFERROR(CUMIPMT('Farmer Input'!$G$12/12,'Farmer Input'!$J$12*12,$N$2,I24*12-11,I24*12,0),0) -> -12852.03557 | T24: -3263.686602 | V24: =IFERROR(CUMPRINC($G$5/12,$G$4*12,($N$5-'Farmer Input'!$F$10)*$G$3,I24*12-11,I24*12,0),0)+IFERROR(CUMPRINC('Farmer Input'!G$12/12,'Farmer Input'!$J$12*12,$N$2,I24*12-11,I24*12,0),0) -> -18410.24358 | W24: =-'Farmer Input'!$D$4*'Monthly Cost & Use'!$R$2*(1+$G$6)^I23-12*'Farmer Input'!$J$9*(1+'Farmer Input'!$J$7)^I24 -> -62654.61574 | X24: -8762.868233 | Y24: =-IF(($N$5-SLN($N$5,0,'ITC1'!$V$4)*I24)*'ITC1'!$U$4<0,0,($N$5-SLN($N$5,0,'ITC1'!$V$4)*I24)*'ITC1'!$U$4) -> -816.2948654 | Z24: -44105.12885 | AA24: 1284.744263 | AB24: 4882.028201 | AC24: 40957.7281 | AD24: -37938.35638 | AE24: 6166.772465 | AF24: =IF(OR(AF23<>"na",AF23="see above"),"see above",IF(SUM($AD$10:AD24)-$N$5>0,I23+(SUM($AD$9:AD23)-$N$5)/-$N$5,"na")) -> na | AG24: -47617.50796 | AH24: 9679.151579 | AI24: 0
I25: 16 | J25: 20136.13193 | K25: 7926.513502 | L25: =IF(OR(L24<>"na",L24="see above"),"see above",IF(SUM($K$10:K25)+$J$9>0,I25+(SUM($K$10:K25)+$J$9)/$J$9,"na")) -> see above | M25: =IF(IF('Farmer Input'!$J$12<22,'Farmer Input'!$J$12,22)>=I25,(($N$5-'Farmer Input'!$F$10)*VLOOKUP('Monthly Cost & Use'!$H$36,'Monthly Cost & Use'!$AB$2:$AC$3,2,FALSE))/(IF('Farmer Input'!$J$12<23,'Farmer Input'!$J$12,22)),0) -> 0 | N25: =IF('Farmer Input'!$J$13="MACRS",0,IF(I25<='ITC1'!$V$4,(1-VLOOKUP('Monthly Cost & Use'!$H$36,'Monthly Cost & Use'!$AB$2:$AC$3,2,FALSE)/2)*$N$5/'ITC1'!$V$4,0)) -> 0 | O25: =O24*(1-'ITC1'!$U$3) -> 0.9275689688 | P25: 347138.0487 | Q25: 0.1575590309 | R25: 54694.73454 | S25: =IFERROR(CUMIPMT($G$5/12,$G$4*12,($N$5-'Farmer Input'!$F$10)*$G$3,I25*12-11,I25*12,0),0)+IFERROR(CUMIPMT('Farmer Input'!$G$12/12,'Farmer Input'!$J$12*12,$N$2,I25*12-11,I25*12,0),0) -> -11004.77578 | T25: -3296.323468 | V25: =IFERROR(CUMPRINC($G$5/12,$G$4*12,($N$5-'Farmer Input'!$F$10)*$G$3,I25*12-11,I25*12,0),0)+IFERROR(CUMPRINC('Farmer Input'!G$12/12,'Farmer Input'!$J$12*12,$N$2,I25*12-11,I25*12,0),0) -> -20257.50337 | W25: =-'Farmer Input'!$D$4*'Monthly Cost & Use'!$R$2*(1+$G$6)^I24-12*'Farmer Input'!$J$9*(1+'Farmer Input'!$J$7)^I25 -> -63907.70805 | X25: -9212.97351 | Y25: =-IF(($N$5-SLN($N$5,0,'ITC1'!$V$4)*I25)*'ITC1'!$U$4<0,0,($N$5-SLN($N$5,0,'ITC1'!$V$4)*I25)*'ITC1'!$U$4) -> -653.0358923 | Z25: -44424.61202 | AA25: 1208.355432 | AB25: 4591.750643 | AC25: 41567.99825 | AD25: -38624.50594 | AE25: 5800.106075 | AF25: =IF(OR(AF24<>"na",AF24="see above"),"see above",IF(SUM($AD$10:AD25)-$N$5>0,I24+(SUM($AD$9:AD24)-$N$5)/-$N$5,"na")) -> na | AG25: -48569.85812 | AH25: 9945.352179 | AI25: 0
I26: 17 | J26: 20918.12024 | K26: 7768.245561 | L26: =IF(OR(L25<>"na",L25="see above"),"see above",IF(SUM($K$10:K26)+$J$9>0,I26+(SUM($K$10:K26)+$J$9)/$J$9,"na")) -> see above | M26: =IF(IF('Farmer Input'!$J$12<22,'Farmer Input'!$J$12,22)>=I26,(($N$5-'Farmer Input'!$F$10)*VLOOKUP('Monthly Cost & Use'!$H$36,'Monthly Cost & Use'!$AB$2:$AC$3,2,FALSE))/(IF('Farmer Input'!$J$12<23,'Farmer Input'!$J$12,22)),0) -> 0 | N26: =IF('Farmer Input'!$J$13="MACRS",0,IF(I26<='ITC1'!$V$4,(1-VLOOKUP('Monthly Cost & Use'!$H$36,'Monthly Cost & Use'!$AB$2:$AC$3,2,FALSE)/2)*$N$5/'ITC1'!$V$4,0)) -> 0 | O26: =O25*(1-'ITC1'!$U$3) -> 0.922931124 | P26: 345402.3585 | Q26: 0.1607102115 | R26: 55509.68609 | S26: =IFERROR(CUMIPMT($G$5/12,$G$4*12,($N$5-'Farmer Input'!$F$10)*$G$3,I26*12-11,I26*12,0),0)+IFERROR(CUMIPMT('Farmer Input'!$G$12/12,'Farmer Input'!$J$12*12,$N$2,I26*12-11,I26*12,0),0) -> -8972.164351 | T26: -3329.286703 | V26: =IFERROR(CUMPRINC($G$5/12,$G$4*12,($N$5-'Farmer Input'!$F$10)*$G$3,I26*12-11,I26*12,0),0)+IFERROR(CUMPRINC('Farmer Input'!G$12/12,'Farmer Input'!$J$12*12,$N$2,I26*12-11,I26*12,0),0) -> -22290.11479 | W26: =-'Farmer Input'!$D$4*'Monthly Cost & Use'!$R$2*(1+$G$6)^I25-12*'Farmer Input'!$J$9*(1+'Farmer Input'!$J$7)^I26 -> -65185.86221 | X26: -9676.176126 | Y26: =-IF(($N$5-SLN($N$5,0,'ITC1'!$V$4)*I26)*'ITC1'!$U$4<0,0,($N$5-SLN($N$5,0,'ITC1'!$V$4)*I26)*'ITC1'!$U$4) -> -489.7769193 | Z26: -44757.51889 | AA26: 1123.370205 | AB26: 4268.806779 | AC26: 42187.36143 | AD26: -39365.34191 | AE26: 5392.176984 | AF26: =IF(OR(AF25<>"na",AF25="see above"),"see above",IF(SUM($AD$10:AD26)-$N$5>0,I25+(SUM($AD$9:AD25)-$N$5)/-$N$5,"na")) -> na | AG26: -49541.25528 | AH26: 10175.91337 | AI26: 0
I27: 18 | J27: 21711.92169 | K27: 7606.636959 | L27: =IF(OR(L26<>"na",L26="see above"),"see above",IF(SUM($K$10:K27)+$J$9>0,I27+(SUM($K$10:K27)+$J$9)/$J$9,"na")) -> see above | M27: =IF(IF('Farmer Input'!$J$12<22,'Farmer Input'!$J$12,22)>=I27,(($N$5-'Farmer Input'!$F$10)*VLOOKUP('Monthly Cost & Use'!$H$36,'Monthly Cost & Use'!$AB$2:$AC$3,2,FALSE))/(IF('Farmer Input'!$J$12<23,'Farmer Input'!$J$12,22)),0) -> 0 | N27: =IF('Farmer Input'!$J$13="MACRS",0,IF(I27<='ITC1'!$V$4,(1-VLOOKUP('Monthly Cost & Use'!$H$36,'Monthly Cost & Use'!$AB$2:$AC$3,2,FALSE)/2)*$N$5/'ITC1'!$V$4,0)) -> 0 | O27: =O26*(1-'ITC1'!$U$3) -> 0.9183164684 | P27: 343675.3467 | Q27: 0.1639244157 | R27: 56336.78041 | S27: =IFERROR(CUMIPMT($G$5/12,$G$4*12,($N$5-'Farmer Input'!$F$10)*$G$3,I27*12-11,I27*12,0),0)+IFERROR(CUMIPMT('Farmer Input'!$G$12/12,'Farmer Input'!$J$12*12,$N$2,I27*12-11,I27*12,0),0) -> -6735.60335 | T27: -3362.57957 | V27: =IFERROR(CUMPRINC($G$5/12,$G$4*12,($N$5-'Farmer Input'!$F$10)*$G$3,I27*12-11,I27*12,0),0)+IFERROR(CUMPRINC('Farmer Input'!G$12/12,'Farmer Input'!$J$12*12,$N$2,I27*12-11,I27*12,0),0) -> -24526.6758 | W27: =-'Farmer Input'!$D$4*'Monthly Cost & Use'!$R$2*(1+$G$6)^I26-12*'Farmer Input'!$J$9*(1+'Farmer Input'!$J$7)^I27 -> -66489.57946 | X27: -10152.79905 | Y27: =-IF(($N$5-SLN($N$5,0,'ITC1'!$V$4)*I27)*'ITC1'!$U$4<0,0,($N$5-SLN($N$5,0,'ITC1'!$V$4)*I27)*'ITC1'!$U$4) -> -326.5179462 | Z27: -45104.17571 | AA27: 1028.874996 | AB27: 3909.724984 | AC27: 42815.95311 | AD27: -40165.57573 | AE27: 4938.599979 | AF27: =IF(OR(AF26<>"na",AF26="see above"),"see above",IF(SUM($AD$10:AD27)-$N$5>0,I26+(SUM($AD$9:AD26)-$N$5)/-$N$5,"na")) -> na | AG27: -50532.08039 | AH27: 10366.50466 | AI27: 0
I28: 19 | J28: 22517.71393 | K28: 7442.39742 | L28: =IF(OR(L27<>"na",L27="see above"),"see above",IF(SUM($K$10:K28)+$J$9>0,I28+(SUM($K$10:K28)+$J$9)/$J$9,"na")) -> see above | M28: =IF(IF('Farmer Input'!$J$12<22,'Farmer Input'!$J$12,22)>=I28,(($N$5-'Farmer Input'!$F$10)*VLOOKUP('Monthly Cost & Use'!$H$36,'Monthly Cost & Use'!$AB$2:$AC$3,2,FALSE))/(IF('Farmer Input'!$J$12<23,'Farmer Input'!$J$12,22)),0) -> 0 | N28: =IF('Farmer Input'!$J$13="MACRS",0,IF(I28<='ITC1'!$V$4,(1-VLOOKUP('Monthly Cost & Use'!$H$36,'Monthly Cost & Use'!$AB$2:$AC$3,2,FALSE)/2)*$N$5/'ITC1'!$V$4,0)) -> 0 | O28: =O27*(1-'ITC1'!$U$3) -> 0.913724886 | P28: 341956.97 | Q28: 0.167202904 | R28: 57176.19844 | S28: =IFERROR(CUMIPMT($G$5/12,$G$4*12,($N$5-'Farmer Input'!$F$10)*$G$3,I28*12-11,I28*12,0),0)+IFERROR(CUMIPMT('Farmer Input'!$G$12/12,'Farmer Input'!$J$12*12,$N$2,I28*12-11,I28*12,0),0) -> -4274.628739 | T28: -3396.205366 | V28: =IFERROR(CUMPRINC($G$5/12,$G$4*12,($N$5-'Farmer Input'!$F$10)*$G$3,I28*12-11,I28*12,0),0)+IFERROR(CUMPRINC('Farmer Input'!G$12/12,'Farmer Input'!$J$12*12,$N$2,I28*12-11,I28*12,0),0) -> -26987.65041 | W28: =-'Farmer Input'!$D$4*'Monthly Cost & Use'!$R$2*(1+$G$6)^I27-12*'Farmer Input'!$J$9*(1+'Farmer Input'!$J$7)^I28 -> -67819.37105 | X28: -10643.17261 | Y28: =-IF(($N$5-SLN($N$5,0,'ITC1'!$V$4)*I28)*'ITC1'!$U$4<0,0,($N$5-SLN($N$5,0,'ITC1'!$V$4)*I28)*'ITC1'!$U$4) -> -163.2589731 | Z28: -45464.91609 | AA28: 923.8632844 | AB28: 3510.680481 | AC28: 43453.91081 | AD28: -41030.37233 | AE28: 4434.543765 | AF28: =IF(OR(AF27<>"na",AF27="see above"),"see above",IF(SUM($AD$10:AD28)-$N$5>0,I27+(SUM($AD$9:AD27)-$N$5)/-$N$5,"na")) -> na | AG28: -51542.722 | AH28: 10512.34967 | AI28: 0
I29: 20 | J29: 23335.67723 | K29: 7276.174465 | L29: =IF(OR(L28<>"na",L28="see above"),"see above",IF(SUM($K$10:K29)+$J$9>0,I29+(SUM($K$10:K29)+$J$9)/$J$9,"na")) -> see above | M29: =IF(IF('Farmer Input'!$J$12<22,'Farmer Input'!$J$12,22)>=I29,(($N$5-'Farmer Input'!$F$10)*VLOOKUP('Monthly Cost & Use'!$H$36,'Monthly Cost & Use'!$AB$2:$AC$3,2,FALSE))/(IF('Farmer Input'!$J$12<23,'Farmer Input'!$J$12,22)),0) -> 0 | N29: =IF('Farmer Input'!$J$13="MACRS",0,IF(I29<='ITC1'!$V$4,(1-VLOOKUP('Monthly Cost & Use'!$H$36,'Monthly Cost & Use'!$AB$2:$AC$3,2,FALSE)/2)*$N$5/'ITC1'!$V$4,0)) -> 0 | O29: =O28*(1-'ITC1'!$U$3) -> 0.9091562616 | P29: 340247.1851 | Q29: 0.1705469621 | R29: 58028.12379 | S29: =IFERROR(CUMIPMT($G$5/12,$G$4*12,($N$5-'Farmer Input'!$F$10)*$G$3,I29*12-11,I29*12,0),0)+IFERROR(CUMIPMT('Farmer Input'!$G$12/12,'Farmer Input'!$J$12*12,$N$2,I29*12-11,I29*12,0),0) -> -1566.723151 | T29: -3430.16742 | V29: =IFERROR(CUMPRINC($G$5/12,$G$4*12,($N$5-'Farmer Input'!$F$10)*$G$3,I29*12-11,I29*12,0),0)+IFERROR(CUMPRINC('Farmer Input'!G$12/12,'Farmer Input'!$J$12*12,$N$2,I29*12-11,I29*12,0),0) -> -29695.55599 | W29: =-'Farmer Input'!$D$4*'Monthly Cost & Use'!$R$2*(1+$G$6)^I28-12*'Farmer Input'!$J$9*(1+'Farmer Input'!$J$7)^I29 -> -69175.75847 | X29: -11147.63467 | Y29: =-IF(($N$5-SLN($N$5,0,'ITC1'!$V$4)*I29)*'ITC1'!$U$4<0,0,($N$5-SLN($N$5,0,'ITC1'!$V$4)*I29)*'ITC1'!$U$4) -> 0 | Z29: -45840.08124 | AA29: 807.2262622 | AB29: 3067.459796 | AC29: 44101.37408 | AD29: -41965.39518 | AE29: 3874.686058 | AF29: =IF(OR(AF28<>"na",AF28="see above"),"see above",IF(SUM($AD$10:AD29)-$N$5>0,I28+(SUM($AD$9:AD28)-$N$5)/-$N$5,"na")) -> na | AG29: -52573.57644 | AH29: 10608.18126 | AI29: 0
I30: 21 | J30: 55428.27375 | K30: 16304.52619 | L30: =IF(OR(L29<>"na",L29="see above"),"see above",IF(SUM($K$10:K30)+$J$9>0,I30+(SUM($K$10:K30)+$J$9)/$J$9,"na")) -> see above | M30: =IF(IF('Farmer Input'!$J$12<22,'Farmer Input'!$J$12,22)>=I30,(($N$5-'Farmer Input'!$F$10)*VLOOKUP('Monthly Cost & Use'!$H$36,'Monthly Cost & Use'!$AB$2:$AC$3,2,FALSE))/(IF('Farmer Input'!$J$12<23,'Farmer Input'!$J$12,22)),0) -> 0 | N30: =IF('Farmer Input'!$J$13="MACRS",0,IF(I30<='ITC1'!$V$4,(1-VLOOKUP('Monthly Cost & Use'!$H$36,'Monthly Cost & Use'!$AB$2:$AC$3,2,FALSE)/2)*$N$5/'ITC1'!$V$4,0)) -> 0 | O30: =O29*(1-'ITC1'!$U$3) -> 0.9046104803 | P30: 338545.9492 | Q30: 0.1739579014 | R30: 58892.74284 | S30: =IFERROR(CUMIPMT($G$5/12,$G$4*12,($N$5-'Farmer Input'!$F$10)*$G$3,I30*12-11,I30*12,0),0)+IFERROR(CUMIPMT('Farmer Input'!$G$12/12,'Farmer Input'!$J$12*12,$N$2,I30*12-11,I30*12,0),0) -> 0 | T30: -3464.469094 | V30: =IFERROR(CUMPRINC($G$5/12,$G$4*12,($N$5-'Farmer Input'!$F$10)*$G$3,I30*12-11,I30*12,0),0)+IFERROR(CUMPRINC('Farmer Input'!G$12/12,'Farmer Input'!$J$12*12,$N$2,I30*12-11,I30*12,0),0) -> 0 | W30: =-'Farmer Input'!$D$4*'Monthly Cost & Use'!$R$2*(1+$G$6)^I29-12*'Farmer Input'!$J$9*(1+'Farmer Input'!$J$7)^I30 -> -70559.27364 | X30: -11666.5308 | Y30: =-IF(($N$5-SLN($N$5,0,'ITC1'!$V$4)*I30)*'ITC1'!$U$4<0,0,($N$5-SLN($N$5,0,'ITC1'!$V$4)*I30)*'ITC1'!$U$4) -> 0 | Z30: -15130.99989 | AA30: 756.5499946 | AB30: 2874.889979 | AC30: 44758.48456 | AD30: -11499.55992 | AE30: 3631.439974 | AF30: =IF(OR(AF29<>"na",AF29="see above"),"see above",IF(SUM($AD$10:AD30)-$N$5>0,I29+(SUM($AD$9:AD29)-$N$5)/-$N$5,"na")) -> na | AG30: -53625.04796 | AH30: 42125.48805 | AI30: 0
I31: 22 | J31: 56271.13092 | K31: 15615.52564 | L31: =IF(OR(L30<>"na",L30="see above"),"see above",IF(SUM($K$10:K31)+$J$9>0,I31+(SUM($K$10:K31)+$J$9)/$J$9,"na")) -> see above | M31: =IF(IF('Farmer Input'!$J$12<22,'Farmer Input'!$J$12,22)>=I31,(($N$5-'Farmer Input'!$F$10)*VLOOKUP('Monthly Cost & Use'!$H$36,'Monthly Cost & Use'!$AB$2:$AC$3,2,FALSE))/(IF('Farmer Input'!$J$12<23,'Farmer Input'!$J$12,22)),0) -> 0 | N31: =IF('Farmer Input'!$J$13="MACRS",0,IF(I31<='ITC1'!$V$4,(1-VLOOKUP('Monthly Cost & Use'!$H$36,'Monthly Cost & Use'!$AB$2:$AC$3,2,FALSE)/2)*$N$5/'ITC1'!$V$4,0)) -> 0 | O31: =O30*(1-'ITC1'!$U$3) -> 0.9000874279 | P31: 336853.2194 | Q31: 0.1774370594 | R31: 59770.24471 | S31: =IFERROR(CUMIPMT($G$5/12,$G$4*12,($N$5-'Farmer Input'!$F$10)*$G$3,I31*12-11,I31*12,0),0)+IFERROR(CUMIPMT('Farmer Input'!$G$12/12,'Farmer Input'!$J$12*12,$N$2,I31*12-11,I31*12,0),0) -> 0 | T31: -3499.113785 | V31: =IFERROR(CUMPRINC($G$5/12,$G$4*12,($N$5-'Farmer Input'!$F$10)*$G$3,I31*12-11,I31*12,0),0)+IFERROR(CUMPRINC('Farmer Input'!G$12/12,'Farmer Input'!$J$12*12,$N$2,I31*12-11,I31*12,0),0) -> 0 | W31: =-'Farmer Input'!$D$4*'Monthly Cost & Use'!$R$2*(1+$G$6)^I30-12*'Farmer Input'!$J$9*(1+'Farmer Input'!$J$7)^I31 -> -71970.45911 | X31: -12200.2144 | Y31: =-IF(($N$5-SLN($N$5,0,'ITC1'!$V$4)*I31)*'ITC1'!$U$4<0,0,($N$5-SLN($N$5,0,'ITC1'!$V$4)*I31)*'ITC1'!$U$4) -> 0 | Z31: -15699.32819 | AA31: 784.9664094 | AB31: 2982.872356 | AC31: 45425.38598 | AD31: -11931.48942 | AE31: 3767.838765 | AF31: =IF(OR(AF30<>"na",AF30="see above"),"see above",IF(SUM($AD$10:AD31)-$N$5>0,I30+(SUM($AD$9:AD30)-$N$5)/-$N$5,"na")) -> na | AG31: -54697.54892 | AH31: 42766.0595 | AI31: 0
I32: 23 | J32: 57126.71643 | K32: 14955.61791 | L32: =IF(OR(L31<>"na",L31="see above"),"see above",IF(SUM($K$10:K32)+$J$9>0,I32+(SUM($K$10:K32)+$J$9)/$J$9,"na")) -> see above | M32: =IF(IF('Farmer Input'!$J$12<22,'Farmer Input'!$J$12,22)>=I32,(($N$5-'Farmer Input'!$F$10)*VLOOKUP('Monthly Cost & Use'!$H$36,'Monthly Cost & Use'!$AB$2:$AC$3,2,FALSE))/(IF('Farmer Input'!$J$12<23,'Farmer Input'!$J$12,22)),0) -> 0 | N32: =IF('Farmer Input'!$J$13="MACRS",0,IF(I32<='ITC1'!$V$4,(1-VLOOKUP('Monthly Cost & Use'!$H$36,'Monthly Cost & Use'!$AB$2:$AC$3,2,FALSE)/2)*$N$5/'ITC1'!$V$4,0)) -> 0 | O32: =O31*(1-'ITC1'!$U$3) -> 0.8955869907 | P32: 335168.9533 | Q32: 0.1809858006 | R32: 60660.82135 | S32: =IFERROR(CUMIPMT($G$5/12,$G$4*12,($N$5-'Farmer Input'!$F$10)*$G$3,I32*12-11,I32*12,0),0)+IFERROR(CUMIPMT('Farmer Input'!$G$12/12,'Farmer Input'!$J$12*12,$N$2,I32*12-11,I32*12,0),0) -> 0 | T32: -3534.104923 | V32: =IFERROR(CUMPRINC($G$5/12,$G$4*12,($N$5-'Farmer Input'!$F$10)*$G$3,I32*12-11,I32*12,0),0)+IFERROR(CUMPRINC('Farmer Input'!G$12/12,'Farmer Input'!$J$12*12,$N$2,I32*12-11,I32*12,0),0) -> 0 | W32: =-'Farmer Input'!$D$4*'Monthly Cost & Use'!$R$2*(1+$G$6)^I31-12*'Farmer Input'!$J$9*(1+'Farmer Input'!$J$7)^I32 -> -73409.86829 | X32: -12749.04694 | Y32: =-IF(($N$5-SLN($N$5,0,'ITC1'!$V$4)*I32)*'ITC1'!$U$4<0,0,($N$5-SLN($N$5,0,'ITC1'!$V$4)*I32)*'ITC1'!$U$4) -> 0 | Z32: -16283.15186 | AA32: 814.157593 | AB32: 3093.798854 | AC32: 46102.22423 | AD32: -12375.19541 | AE32: 3907.956447 | AF32: =IF(OR(AF31<>"na",AF31="see above"),"see above",IF(SUM($AD$10:AD32)-$N$5>0,I31+(SUM($AD$9:AD31)-$N$5)/-$N$5,"na")) -> na | AG32: -55791.4999 | AH32: 43416.30449 | AI32: 0
I33: 24 | J33: 41770.7274 | K33: 10316.47362 | L33: =IF(OR(L32<>"na",L32="see above"),"see above",IF(SUM($K$10:K33)+$J$9>0,I33+(SUM($K$10:K33)+$J$9)/$J$9,"na")) -> see above | M33: =IF(IF('Farmer Input'!$J$12<22,'Farmer Input'!$J$12,22)>=I33,(($N$5-'Farmer Input'!$F$10)*VLOOKUP('Monthly Cost & Use'!$H$36,'Monthly Cost & Use'!$AB$2:$AC$3,2,FALSE))/(IF('Farmer Input'!$J$12<23,'Farmer Input'!$J$12,22)),0) -> 0 | N33: =IF('Farmer Input'!$J$13="MACRS",0,IF(I33<='ITC1'!$V$4,(1-VLOOKUP('Monthly Cost & Use'!$H$36,'Monthly Cost & Use'!$AB$2:$AC$3,2,FALSE)/2)*$N$5/'ITC1'!$V$4,0)) -> 0 | O33: =O32*(1-'ITC1'!$U$3) -> 0.8911090558 | P33: 333493.1086 | Q33: 0.1846055166 | R33: 61564.66759 | S33: =IFERROR(CUMIPMT($G$5/12,$G$4*12,($N$5-'Farmer Input'!$F$10)*$G$3,I33*12-11,I33*12,0),0)+IFERROR(CUMIPMT('Farmer Input'!$G$12/12,'Farmer Input'!$J$12*12,$N$2,I33*12-11,I33*12,0),0) -> 0 | T33: -3569.445972 | U33: =-G2*1000*0.06 -> -16224.49422 | V33: =IFERROR(CUMPRINC($G$5/12,$G$4*12,($N$5-'Farmer Input'!$F$10)*$G$3,I33*12-11,I33*12,0),0)+IFERROR(CUMPRINC('Farmer Input'!G$12/12,'Farmer Input'!$J$12*12,$N$2,I33*12-11,I33*12,0),0) -> 0 | W33: =-'Farmer Input'!$D$4*'Monthly Cost & Use'!$R$2*(1+$G$6)^I32-12*'Farmer Input'!$J$9*(1+'Farmer Input'!$J$7)^I33 -> -74878.06566 | X33: -13313.39807 | Y33: =-IF(($N$5-SLN($N$5,0,'ITC1'!$V$4)*I33)*'ITC1'!$U$4<0,0,($N$5-SLN($N$5,0,'ITC1'!$V$4)*I33)*'ITC1'!$U$4) -> 0 | Z33: -33107.33826 | AA33: 1655.366913 | AB33: 6290.394269 | AC33: 46789.14737 | AD33: -25161.57708 | AE33: 7945.761182 | AF33: =IF(OR(AF32<>"na",AF32="see above"),"see above",IF(SUM($AD$10:AD33)-$N$5>0,I32+(SUM($AD$9:AD32)-$N$5)/-$N$5,"na")) -> na | AG33: -56907.3299 | AH33: 31745.75282 | AI33: 0
I34: 25 | J34: 58876.84071 | K34: 13718.22325 | L34: =IF(OR(L33<>"na",L33="see above"),"see above",IF(SUM($K$10:K34)+$J$9>0,I34+(SUM($K$10:K34)+$J$9)/$J$9,"na")) -> see above | M34: =IF(IF('Farmer Input'!$J$12<22,'Farmer Input'!$J$12,22)>=I34,(($N$5-'Farmer Input'!$F$10)*VLOOKUP('Monthly Cost & Use'!$H$36,'Monthly Cost & Use'!$AB$2:$AC$3,2,FALSE))/(IF('Farmer Input'!$J$12<23,'Farmer Input'!$J$12,22)),0) -> 0 | N34: =IF('Farmer Input'!$J$13="MACRS",0,IF(I34<='ITC1'!$V$4,(1-VLOOKUP('Monthly Cost & Use'!$H$36,'Monthly Cost & Use'!$AB$2:$AC$3,2,FALSE)/2)*$N$5/'ITC1'!$V$4,0)) -> 0 | O34: =O33*(1-'ITC1'!$U$3) -> 0.8866535105 | P34: 331825.643 | Q34: 0.1882976269 | R34: 62481.98114 | S34: =IFERROR(CUMIPMT($G$5/12,$G$4*12,($N$5-'Farmer Input'!$F$10)*$G$3,I34*12-11,I34*12,0),0)+IFERROR(CUMIPMT('Farmer Input'!$G$12/12,'Farmer Input'!$J$12*12,$N$2,I34*12-11,I34*12,0),0) -> 0 | T34: -3605.140431 | V34: =IFERROR(CUMPRINC($G$5/12,$G$4*12,($N$5-'Farmer Input'!$F$10)*$G$3,I34*12-11,I34*12,0),0)+IFERROR(CUMPRINC('Farmer Input'!G$12/12,'Farmer Input'!$J$12*12,$N$2,I34*12-11,I34*12,0),0) -> 0 | W34: =-'Farmer Input'!$D$4*'Monthly Cost & Use'!$R$2*(1+$G$6)^I33-12*'Farmer Input'!$J$9*(1+'Farmer Input'!$J$7)^I34 -> -76375.62697 | X34: -13893.64583 | Y34: =-IF(($N$5-SLN($N$5,0,'ITC1'!$V$4)*I34)*'ITC1'!$U$4<0,0,($N$5-SLN($N$5,0,'ITC1'!$V$4)*I34)*'ITC1'!$U$4) -> 0 | Z34: -17498.78626 | AA34: 874.9393132 | AB34: 3324.76939 | AC34: 47486.30567 | AD34: -13299.07756 | AE34: 4199.708703 | AF34: =IF(OR(AF33<>"na",AF33="see above"),"see above",IF(SUM($AD$10:AD34)-$N$5>0,I33+(SUM($AD$9:AD33)-$N$5)/-$N$5,"na")) -> na | AG34: -58045.4765 | AH34: 44746.39894 | AI34: 0
I35: 26 | J35: 59771.77082 | K35: 13138.43466 | L35: =IF(OR(L34<>"na",L34="see above"),"see above",IF(SUM($K$10:K35)+$J$9>0,I35+(SUM($K$10:K35)+$J$9)/$J$9,"na")) -> see above | M35: =IF(IF('Farmer Input'!$J$12<22,'Farmer Input'!$J$12,22)>=I35,(($N$5-'Farmer Input'!$F$10)*VLOOKUP('Monthly Cost & Use'!$H$36,'Monthly Cost & Use'!$AB$2:$AC$3,2,FALSE))/(IF('Farmer Input'!$J$12<23,'Farmer Input'!$J$12,22)),0) -> 0 | N35: =IF('Farmer Input'!$J$13="MACRS",0,IF(I35<='ITC1'!$V$4,(1-VLOOKUP('Monthly Cost & Use'!$H$36,'Monthly Cost & Use'!$AB$2:$AC$3,2,FALSE)/2)*$N$5/'ITC1'!$V$4,0)) -> 0 | O35: =O34*(1-'ITC1'!$U$3) -> 0.8822202429 | P35: 330166.5148 | Q35: 0.1920635795 | R35: 63412.96266 | S35: =IFERROR(CUMIPMT($G$5/12,$G$4*12,($N$5-'Farmer Input'!$F$10)*$G$3,I35*12-11,I35*12,0),0)+IFERROR(CUMIPMT('Farmer Input'!$G$12/12,'Farmer Input'!$J$12*12,$N$2,I35*12-11,I35*12,0),0) -> 0 | T35: -3641.191836 | V35: =IFERROR(CUMPRINC($G$5/12,$G$4*12,($N$5-'Farmer Input'!$F$10)*$G$3,I35*12-11,I35*12,0),0)+IFERROR(CUMPRINC('Farmer Input'!G$12/12,'Farmer Input'!$J$12*12,$N$2,I35*12-11,I35*12,0),0) -> 0 | W35: =-'Farmer Input'!$D$4*'Monthly Cost & Use'!$R$2*(1+$G$6)^I34-12*'Farmer Input'!$J$9*(1+'Farmer Input'!$J$7)^I35 -> -77903.13951 | X35: -14490.17685 | Y35: =-IF(($N$5-SLN($N$5,0,'ITC1'!$V$4)*I35)*'ITC1'!$U$4<0,0,($N$5-SLN($N$5,0,'ITC1'!$V$4)*I35)*'ITC1'!$U$4) -> 0 | Z35: -18131.36869 | AA35: 906.5684344 | AB35: 3444.960051 | AC35: 48193.85162 | AD35: -13779.8402 | AE35: 4351.528485 | AF35: =IF(OR(AF34<>"na",AF34="see above"),"see above",IF(SUM($AD$10:AD35)-$N$5>0,I34+(SUM($AD$9:AD34)-$N$5)/-$N$5,"na")) -> na | AG35: -59206.38603 | AH35: 45426.54583 | AI35: 0
I36: 27 | J36: 60680.21205 | K36: 12583.13128 | L36: =IF(OR(L35<>"na",L35="see above"),"see above",IF(SUM($K$10:K36)+$J$9>0,I36+(SUM($K$10:K36)+$J$9)/$J$9,"na")) -> see above | M36: =IF(IF('Farmer Input'!$J$12<22,'Farmer Input'!$J$12,22)>=I36,(($N$5-'Farmer Input'!$F$10)*VLOOKUP('Monthly Cost & Use'!$H$36,'Monthly Cost & Use'!$AB$2:$AC$3,2,FALSE))/(IF('Farmer Input'!$J$12<23,'Farmer Input'!$J$12,22)),0) -> 0 | N36: =IF('Farmer Input'!$J$13="MACRS",0,IF(I36<='ITC1'!$V$4,(1-VLOOKUP('Monthly Cost & Use'!$H$36,'Monthly Cost & Use'!$AB$2:$AC$3,2,FALSE)/2)*$N$5/'ITC1'!$V$4,0)) -> 0 | O36: =O35*(1-'ITC1'!$U$3) -> 0.8778091417 | P36: 328515.6822 | Q36: 0.1959048511 | R36: 64357.8158 | S36: =IFERROR(CUMIPMT($G$5/12,$G$4*12,($N$5-'Farmer Input'!$F$10)*$G$3,I36*12-11,I36*12,0),0)+IFERROR(CUMIPMT('Farmer Input'!$G$12/12,'Farmer Input'!$J$12*12,$N$2,I36*12-11,I36*12,0),0) -> 0 | T36: -3677.603754 | V36: =IFERROR(CUMPRINC($G$5/12,$G$4*12,($N$5-'Farmer Input'!$F$10)*$G$3,I36*12-11,I36*12,0),0)+IFERROR(CUMPRINC('Farmer Input'!G$12/12,'Farmer Input'!$J$12*12,$N$2,I36*12-11,I36*12,0),0) -> 0 | W36: =-'Farmer Input'!$D$4*'Monthly Cost & Use'!$R$2*(1+$G$6)^I35-12*'Farmer Input'!$J$9*(1+'Farmer Input'!$J$7)^I36 -> -79461.2023 | X36: -15103.3865 | Y36: =-IF(($N$5-SLN($N$5,0,'ITC1'!$V$4)*I36)*'ITC1'!$U$4<0,0,($N$5-SLN($N$5,0,'ITC1'!$V$4)*I36)*'ITC1'!$U$4) -> 0 | Z36: -18780.99025 | AA36: 939.0495127 | AB36: 3568.388148 | AC36: 48911.94001 | AD36: -14273.55259 | AE36: 4507.437661 | AF36: =IF(OR(AF35<>"na",AF35="see above"),"see above",IF(SUM($AD$10:AD36)-$N$5>0,I35+(SUM($AD$9:AD35)-$N$5)/-$N$5,"na")) -> na | AG36: -60390.51375 | AH36: 46116.96116 | AI36: 0
I37: 28 | J37: 61602.36747 | K37: 12051.27996 | L37: =IF(OR(L36<>"na",L36="see above"),"see above",IF(SUM($K$10:K37)+$J$9>0,I37+(SUM($K$10:K37)+$J$9)/$J$9,"na")) -> see above | M37: =IF(IF('Farmer Input'!$J$12<22,'Farmer Input'!$J$12,22)>=I37,(($N$5-'Farmer Input'!$F$10)*VLOOKUP('Monthly Cost & Use'!$H$36,'Monthly Cost & Use'!$AB$2:$AC$3,2,FALSE))/(IF('Farmer Input'!$J$12<23,'Farmer Input'!$J$12,22)),0) -> 0 | N37: =IF('Farmer Input'!$J$13="MACRS",0,IF(I37<='ITC1'!$V$4,(1-VLOOKUP('Monthly Cost & Use'!$H$36,'Monthly Cost & Use'!$AB$2:$AC$3,2,FALSE)/2)*$N$5/'ITC1'!$V$4,0)) -> 0 | O37: =O36*(1-'ITC1'!$U$3) -> 0.873420096 | P37: 326873.1038 | Q37: 0.1998229481 | R37: 65316.74726 | S37: =IFERROR(CUMIPMT($G$5/12,$G$4*12,($N$5-'Farmer Input'!$F$10)*$G$3,I37*12-11,I37*12,0),0)+IFERROR(CUMIPMT('Farmer Input'!$G$12/12,'Farmer Input'!$J$12*12,$N$2,I37*12-11,I37*12,0),0) -> 0 | T37: -3714.379792 | V37: =IFERROR(CUMPRINC($G$5/12,$G$4*12,($N$5-'Farmer Input'!$F$10)*$G$3,I37*12-11,I37*12,0),0)+IFERROR(CUMPRINC('Farmer Input'!G$12/12,'Farmer Input'!$J$12*12,$N$2,I37*12-11,I37*12,0),0) -> 0 | W37: =-'Farmer Input'!$D$4*'Monthly Cost & Use'!$R$2*(1+$G$6)^I36-12*'Farmer Input'!$J$9*(1+'Farmer Input'!$J$7)^I37 -> -81050.42635 | X37: -15733.67909 | Y37: =-IF(($N$5-SLN($N$5,0,'ITC1'!$V$4)*I37)*'ITC1'!$U$4<0,0,($N$5-SLN($N$5,0,'ITC1'!$V$4)*I37)*'ITC1'!$U$4) -> 0 | Z37: -19448.05888 | AA37: 972.4029441 | AB37: 3695.131187 | AC37: 49640.72792 | AD37: -14780.52475 | AE37: 4667.534132 | AF37: =IF(OR(AF36<>"na",AF36="see above"),"see above",IF(SUM($AD$10:AD37)-$N$5>0,I36+(SUM($AD$9:AD36)-$N$5)/-$N$5,"na")) -> na | AG37: -61598.32402 | AH37: 46817.79927 | AI37: 0
I38: 29 | J38: 62538.4432 | K38: 11541.89112 | L38: =IF(OR(L37<>"na",L37="see above"),"see above",IF(SUM($K$10:K38)+$J$9>0,I38+(SUM($K$10:K38)+$J$9)/$J$9,"na")) -> see above | M38: =IF(IF('Farmer Input'!$J$12<22,'Farmer Input'!$J$12,22)>=I38,(($N$5-'Farmer Input'!$F$10)*VLOOKUP('Monthly Cost & Use'!$H$36,'Monthly Cost & Use'!$AB$2:$AC$3,2,FALSE))/(IF('Farmer Input'!$J$12<23,'Farmer Input'!$J$12,22)),0) -> 0 | N38: =IF('Farmer Input'!$J$13="MACRS",0,IF(I38<='ITC1'!$V$4,(1-VLOOKUP('Monthly Cost & Use'!$H$36,'Monthly Cost & Use'!$AB$2:$AC$3,2,FALSE)/2)*$N$5/'ITC1'!$V$4,0)) -> 0 | O38: =O37*(1-'ITC1'!$U$3) -> 0.8690529955 | P38: 325238.7383 | Q38: 0.203819407 | R38: 66289.96679 | S38: =IFERROR(CUMIPMT($G$5/12,$G$4*12,($N$5-'Farmer Input'!$F$10)*$G$3,I38*12-11,I38*12,0),0)+IFERROR(CUMIPMT('Farmer Input'!$G$12/12,'Farmer Input'!$J$12*12,$N$2,I38*12-11,I38*12,0),0) -> 0 | T38: -3751.52359 | V38: =IFERROR(CUMPRINC($G$5/12,$G$4*12,($N$5-'Farmer Input'!$F$10)*$G$3,I38*12-11,I38*12,0),0)+IFERROR(CUMPRINC('Farmer Input'!G$12/12,'Farmer Input'!$J$12*12,$N$2,I38*12-11,I38*12,0),0) -> 0 | W38: =-'Farmer Input'!$D$4*'Monthly Cost & Use'!$R$2*(1+$G$6)^I37-12*'Farmer Input'!$J$9*(1+'Farmer Input'!$J$7)^I38 -> -82671.43487 | X38: -16381.46808 | Y38: =-IF(($N$5-SLN($N$5,0,'ITC1'!$V$4)*I38)*'ITC1'!$U$4<0,0,($N$5-SLN($N$5,0,'ITC1'!$V$4)*I38)*'ITC1'!$U$4) -> 0 | Z38: -20132.99167 | AA38: 1006.649584 | AB38: 3825.268418 | AC38: 50380.37476 | AD38: -15301.07367 | AE38: 4831.918001 | AF38: =IF(OR(AF37<>"na",AF37="see above"),"see above",IF(SUM($AD$10:AD38)-$N$5>0,I37+(SUM($AD$9:AD37)-$N$5)/-$N$5,"na")) -> na | AG38: -62830.2905 | AH38: 47529.21683 | AI38: 0
I39: 30 | J39: 63488.64847 | K39: 11054.0169 | L39: =IF(OR(L38<>"na",L38="see above"),"see above",IF(SUM($K$10:K39)+$J$9>0,I39+(SUM($K$10:K39)+$J$9)/$J$9,"na")) -> see above | M39: =IF(IF('Farmer Input'!$J$12<22,'Farmer Input'!$J$12,22)>=I39,(($N$5-'Farmer Input'!$F$10)*VLOOKUP('Monthly Cost & Use'!$H$36,'Monthly Cost & Use'!$AB$2:$AC$3,2,FALSE))/(IF('Farmer Input'!$J$12<23,'Farmer Input'!$J$12,22)),0) -> 0 | N39: =IF('Farmer Input'!$J$13="MACRS",0,IF(I39<='ITC1'!$V$4,(1-VLOOKUP('Monthly Cost & Use'!$H$36,'Monthly Cost & Use'!$AB$2:$AC$3,2,FALSE)/2)*$N$5/'ITC1'!$V$4,0)) -> 0 | O39: =O38*(1-'ITC1'!$U$3) -> 0.8647077306 | P39: 323612.5446 | Q39: 0.2078957952 | R39: 67277.6873 | S39: =IFERROR(CUMIPMT($G$5/12,$G$4*12,($N$5-'Farmer Input'!$F$10)*$G$3,I39*12-11,I39*12,0),0)+IFERROR(CUMIPMT('Farmer Input'!$G$12/12,'Farmer Input'!$J$12*12,$N$2,I39*12-11,I39*12,0),0) -> 0 | T39: -3789.038826 | V39: =IFERROR(CUMPRINC($G$5/12,$G$4*12,($N$5-'Farmer Input'!$F$10)*$G$3,I39*12-11,I39*12,0),0)+IFERROR(CUMPRINC('Farmer Input'!G$12/12,'Farmer Input'!$J$12*12,$N$2,I39*12-11,I39*12,0),0) -> 0 | W39: =-'Farmer Input'!$D$4*'Monthly Cost & Use'!$R$2*(1+$G$6)^I38-12*'Farmer Input'!$J$9*(1+'Farmer Input'!$J$7)^I39 -> -84324.86357 | X39: -17047.17627 | Y39: =-IF(($N$5-SLN($N$5,0,'ITC1'!$V$4)*I39)*'ITC1'!$U$4<0,0,($N$5-SLN($N$5,0,'ITC1'!$V$4)*I39)*'ITC1'!$U$4) -> 0 | Z39: -20836.2151 | AA39: 1041.810755 | AB39: 3958.880869 | AC39: 51131.04235 | AD39: -15835.52348 | AE39: 5000.691624 | AF39: =IF(OR(AF38<>"na",AF38="see above"),"see above",IF(SUM($AD$10:AD39)-$N$5>0,I38+(SUM($AD$9:AD38)-$N$5)/-$N$5,"na")) -> na | AG39: -64086.89631 | AH39: 48251.37284 | AI39: 0
AC41: 30-Yr Before Tax NPV | AD41: =AD9+NPV('Farmer Input'!$J$14,ITCn!AD10:AD39) -> -224520.9048 | AF41: 30-Yr Before Tax NPV | AG41: =AG9+NPV('Farmer Input'!$J$14,ITCn!AG10:AG39) -> -617669.4638 | AH41: =AH9+NPV('Farmer Input'!$J$14,ITCn!AH10:AH39) -> 393148.559 | AI41: Net NPV
AC42: 23-Yr Before Tax NPV | AD42: =AD9+NPV('Farmer Input'!$J$14,ITCn!AD10:AD32) -> -200746.4863 | AF42: 23-Yr Before Tax NPV | AG42: =AG9+NPV('Farmer Input'!$J$14,ITCn!AG10:AG32) -> -529748.4226 | AH42: =AH9+NPV('Farmer Input'!$J$14,ITCn!AH10:AH32) -> 329001.9364

Sheet Immediate Tax Bfts. (Lease) (hidden)
F1: Discount rate | G1: 0.05
F2: System Size (kW DC) | G2: 192 | M2: IRR Without Purchase | P2: IRR With Purchase | AV2: Yes
F3: Tax Credit Value (%) | G3: 0.26 | M3: Equity Amount | N3: =N5*(1-G4) -> 244800 | P3: Equity Amount | Q3: =Q5*(1-G4) -> 244800 | AV3: No
F4: Amount Financed (%) | G4: 0.25 | M4: Monthly Loan Payment | N4: =PMT(G6/12,G5*12,N5*G4) -> -645.2875994 | P4: Monthly Loan Payment | Q4: =PMT(G6/12,G5*12,Q5*G4) -> -645.2875994
F5: Loan Term (years) | G5: 15 | M5: Purchase Price | N5: =VLOOKUP(G2,F20:G27,2,TRUE)*G2*1000 -> 326400 | P5: Purchase Price | Q5: =VLOOKUP(G2,F20:G27,2,TRUE)*G2*1000 -> 326400
F6: Debt Financing Rate | G6: 0.05 | M6: IRR | N6: =IRR(M9:M39) -> 0.1342732577 | P6: IRR | Q6: =IRR(J9:INDIRECT("J"&G13+9&"")) -> 0.1341296726
F7: O&M Inflation Rate | G7: 0.01 | M7: Discounted Payback | N7: =SUM(L10:L39) -> 7.978129921
F8: Federal Tax Rate | G8: 0.3 | I8: Year | J8: Annual Value with Sale | K8: Discounted Annual Value | L8: Discounted Payback | M8: Annual Value | N8: Maximum Depreciation & ITC | O8: Actual Tax Benefits | P8: System Sale | Q8: Panel Output (Degredation) | R8: kWh Annual | S8: Effective Lease Rate | T8: Solar Revenue | U8: Sales Tax | V8: Interest Expense | W8: Maintenance & Insurance | X8: Inverter Replacement | Y8: Debt Service
F9: State Tax Rate | G9: 0.059 | H9: * | I9: 0 | J9: =-N5*(1-G4) -> -244800 | K9: =+J9 -> -244800 | M9: =-N5*(1-G4) -> -244800 | P9: =IF(I9>=G$13,G$15,0) -> 0
F10: Tracker? | G10: No | I10: 1 | J10: =IF(SUM(P$9:P9)>0,0,IF(P10=0,O10+P10+T10+U10+V10+W10+X10+Y10,P10)) -> 185348.6448 | K10: =+J10*(1+$G$1)^-I10 -> 176522.5189 | L10: =IF(+K10+$J$9>0,I10+(K10+$J$9)/$J$9,"na") -> na | M10: =O10+T10+U10+V10+W10+X10+Y10 -> 185348.6448 | N10: =N5*G3+N5*0.87*G8+N5*0.2*G9 -> 173905.92 | O10: =N10 -> 173905.92 | P10: =IF(I10=G$13,G$15,0) -> 0 | Q10: 1 | R10: =IF(G10="No",G2*1510,G2*1700) -> 289920 | S10: =G11 -> 0.08 | T10: =R10*S10 -> 23193.6 | U10: =T10*-0.09 -> -2087.424 | V10: =IF(I10<=G$5,IFERROR(CUMIPMT($G$6/12,$G$5*12,$N$5*$G$4,I10*12-11,I10*12,0),0),0) -> -3994.868876 | W10: =IF(G10="No",-G2*1000*0.01,-G2*1000*0.015) -> -1920 | Y10: =IF(I10<=G$5,IFERROR(CUMPRINC($G$6/12,$G$5*12,$N$5*$G$4,I10*12-11,I10*12,0),0),0) -> -3748.582317
F11: Lease Rate ($/kWh) | G11: 0.08 | I11: 2 | J11: =IF(SUM(P$9:P10)>0,0,IF(P11=0,O11+P11+T11+U11+V11+W11+X11+Y11,P11)) -> 17480.42593 | K11: =+J11*(1+$G$1)^-I11 -> 15855.26161 | L11: =IF(OR(L10<>"na",L10="see above"),"see above",IF(SUM($K$10:K11)+$J$9>0,I11+(SUM($K$10:K11)+$J$9)/$J$9,"na")) -> na | M11: =O11+T11+U11+V11+W11+X11+Y11 -> 17480.42593 | N11: =N5*0.32*G9 -> 6162.432 | O11: =N11 -> 6162.432 | P11: 0 | Q11: =Q10*0.995 -> 0.995 | R11: =R$10*Q11 -> 288470.4 | S11: =S10*(1+G$12) -> 0.08 | T11: =R11*S11 -> 23077.632 | U11: =T11*-0.09 -> -2076.98688 | V11: -3803.084291 | W11: =W10*(1+G$7) -> -1939.2 | Y11: =IF(I11<=G$5,IFERROR(CUMPRINC($G$6/12,$G$5*12,$N$5*$G$4,I11*12-11,I11*12,0),0),0) -> -3940.366902
F12: Lease Escalator (%) | G12: 0 | I12: 3 | J12: =IF(SUM(P$9:P11)>0,0,IF(P12=0,O12+P12+T12+U12+V12+W12+X12+Y12,P12)) -> 14891.0579 | K12: 12863.4557 | L12: =IF(OR(L11<>"na",L11="see above"),"see above",IF(SUM($K$10:K12)+$J$9>0,I12+(SUM($K$10:K12)+$J$9)/$J$9,"na")) -> na | M12: 14891.0579 | N12: =N5*0.192*G9 -> 3697.4592 | O12: 3697.4592 | P12: 0 | Q12: =Q11*0.995 -> 0.990025 | R12: =R$10*Q12 -> 287028.048 | S12: 0.08 | T12: 22962.24384 | U12: -2066.601946 | V12: -3601.487642 | W12: -1958.592 | Y12: -4141.963551
F13: System Sale in Year | G13: 30 | I13: 4 | J13: =IF(SUM(P$9:P12)>0,0,IF(P13=0,O13+P13+T13+U13+V13+W13+X13+Y13,P13)) -> 13288.01009 | K13: 10932.07879 | L13: =IF(OR(L12<>"na",L12="see above"),"see above",IF(SUM($K$10:K13)+$J$9>0,I13+(SUM($K$10:K13)+$J$9)/$J$9,"na")) -> na | M13: 13288.01009 | N13: =N5*0.1152*G9 -> 2218.47552 | O13: 2218.47552 | P13: 0 | Q13: 0.985074875 | R13: 285592.9078 | S13: 0.08 | T13: 22847.43262 | U13: -2056.268936 | V13: -3389.576925 | W13: -1978.17792 | Y13: -4353.874268
F14: Future Payments | G14: =SUM(INDIRECT("K"&G13+9&""):M39) -> 15688.42611 | I14: 5 | J14: =IF(SUM(P$9:P13)>0,0,IF(P14=0,O14+P14+T14+U14+V14+W14+X14+Y14,P14)) -> 13164.27249 | K14: 10314.55196 | L14: =IF(OR(L13<>"na",L13="see above"),"see above",IF(SUM($K$10:K14)+$J$9>0,I14+(SUM($K$10:K14)+$J$9)/$J$9,"na")) -> na | M14: 13164.27249 | N14: =N5*0.1152*G9 -> 2218.47552 | O14: 2218.47552 | P14: 0 | Q14: 0.9801495006 | R14: 284164.9432 | S14: 0.08 | T14: 22733.19546 | U14: -2045.987591 | V14: -3166.824455 | W14: -1997.959699 | Y14: -4576.626738
F15: Sale Price of System | G15: =G14*0.7 -> 10981.89827 | I15: 6 | J15: =IF(SUM(P$9:P14)>0,0,IF(P15=0,O15+P15+T15+U15+V15+W15+X15+Y15,P15)) -> 11931.6191 | K15: 8903.557878 | L15: =IF(OR(L14<>"na",L14="see above"),"see above",IF(SUM($K$10:K15)+$J$9>0,I15+(SUM($K$10:K15)+$J$9)/$J$9,"na")) -> na | M15: 11931.6191 | N15: =N5*0.0576*G9 -> 1109.23776 | O15: 1109.23776 | P15: 0 | Q15: 0.9752487531 | R15: 282744.1185 | S15: 0.08 | T15: 22619.52948 | U15: -2035.757653 | V15: -2932.675545 | W15: -2017.939296 | Y15: -4810.775648
F16: *Tracker not applicable for all projects | I16: 7 | J16: =IF(SUM(P$9:P15)>0,0,IF(P16=0,O16+P16+T16+U16+V16+W16+X16+Y16,P16)) -> 10699.28309 | K16: 7603.780735 | L16: =IF(OR(L15<>"na",L15="see above"),"see above",IF(SUM($K$10:K16)+$J$9>0,I16+(SUM($K$10:K16)+$J$9)/$J$9,"na")) -> na | M16: 10699.28309 | O16: 0 | P16: 0 | Q16: 0.9703725094 | R16: 281330.3979 | S16: 0.08 | T16: 22506.43183 | U16: -2025.578865 | V16: -2686.547132 | W16: -2038.118689 | Y16: -5056.904061
I17: 8 | J17: =IF(SUM(P$9:P16)>0,0,IF(P17=0,O17+P17+T17+U17+V17+W17+X17+Y17,P17)) -> 10576.49763 | K17: 7158.589911 | L17: =IF(OR(L16<>"na",L16="see above"),"see above",IF(SUM($K$10:K17)+$J$9>0,I17+(SUM($K$10:K17)+$J$9)/$J$9,"na")) -> 7.978129921 | M17: 10576.49763 | O17: 0 | P17: 0 | Q17: 0.9655206468 | R17: 279923.7459 | S17: 0.08 | T17: 22393.89967 | U17: -2015.450971 | V17: -2427.826323 | W17: -2058.499876 | Y17: -5315.62487
F18: Build Price Lookup Table | I18: 9 | J18: =IF(SUM(P$9:P17)>0,0,IF(P18=0,O18+P18+T18+U18+V18+W18+X18+Y18,P18)) -> 10454.02039 | K18: 6738.754755 | L18: =IF(OR(L17<>"na",L17="see above"),"see above",IF(SUM($K$10:K18)+$J$9>0,I18+(SUM($K$10:K18)+$J$9)/$J$9,"na")) -> see above | M18: 10454.02039 | O18: 0 | P18: 0 | Q18: 0.9606930436 | R18: 278524.1272 | S18: 0.08 | T18: 22281.93018 | U18: -2005.373716 | V18: -2155.868867 | W18: -2079.084875 | Y18: -5587.582327
F19: System Size (kW) | G19: Est. Cost ($/W) | I19: 10 | J19: =IF(SUM(P$9:P18)>0,0,IF(P19=0,O19+P19+T19+U19+V19+W19+X19+Y19,P19)) -> 10331.84676 | K19: 6342.85766 | L19: =IF(OR(L18<>"na",L18="see above"),"see above",IF(SUM($K$10:K19)+$J$9>0,I19+(SUM($K$10:K19)+$J$9)/$J$9,"na")) -> see above | M19: 10331.84676 | O19: 0 | P19: 0 | Q19: 0.9558895784 | R19: 277131.5066 | S19: 0.08 | T19: 22170.52052 | U19: -1995.346847 | V19: -1869.99755 | W19: -2099.875724 | Y19: -5873.453643
F20: 1 | G20: 1.7 | I20: 11 | J20: =IF(SUM(P$9:P19)>0,0,IF(P20=0,O20+P20+T20+U20+V20+W20+X20+Y20,P20)) -> 10209.97214 | K20: 5969.55925 | L20: =IF(OR(L19<>"na",L19="see above"),"see above",IF(SUM($K$10:K20)+$J$9>0,I20+(SUM($K$10:K20)+$J$9)/$J$9,"na")) -> see above | M20: 10209.97214 | O20: 0 | P20: 0 | Q20: 0.9511101305 | R20: 275745.849 | S20: 0.08 | T20: 22059.66792 | U20: -1985.370113 | V20: -1569.500515 | W20: -2120.874481 | Y20: -6173.950678
F21: 200 | G21: 1.55 | I21: 12 | J21: =IF(SUM(P$9:P20)>0,0,IF(P21=0,O21+P21+T21+U21+V21+W21+X21+Y21,P21)) -> -3351.608099 | K21: -1866.3008 | L21: =IF(OR(L20<>"na",L20="see above"),"see above",IF(SUM($K$10:K21)+$J$9>0,I21+(SUM($K$10:K21)+$J$9)/$J$9,"na")) -> see above | M21: -3351.608099 | O21: 0 | P21: 0 | Q21: 0.9463545798 | R21: 274367.1198 | S21: 0.08 | T21: 21949.36958 | U21: -1975.443262 | V21: -1253.62948 | W21: -2142.083226 | X21: =-G2*1000*0.07 -> -13440 | Y21: -6489.821713
F22: 500 | G22: 1.5 | I22: 13 | J22: =IF(SUM(P$9:P21)>0,0,IF(P22=0,O22+P22+T22+U22+V22+W22+X22+Y22,P22)) -> 9967.101437 | K22: 5285.766696 | L22: =IF(OR(L21<>"na",L21="see above"),"see above",IF(SUM($K$10:K22)+$J$9>0,I22+(SUM($K$10:K22)+$J$9)/$J$9,"na")) -> see above | M22: 9967.101437 | O22: 0 | P22: 0 | Q22: 0.9416228069 | R22: 272995.2842 | S22: 0.08 | T22: 21839.62273 | U22: -1965.566046 | V22: -921.5978848 | W22: -2163.504058 | Y22: -6821.853308
F23: 1000 | G23: 1.45 | I23: 14 | J23: =IF(SUM(P$9:P22)>0,0,IF(P23=0,O23+P23+T23+U23+V23+W23+X23+Y23,P23)) -> 9846.096113 | K23: 4972.947609 | L23: =IF(OR(L22<>"na",L22="see above"),"see above",IF(SUM($K$10:K23)+$J$9>0,I23+(SUM($K$10:K23)+$J$9)/$J$9,"na")) -> see above | M23: 9846.096113 | O23: 0 | P23: 0 | Q23: 0.9369146929 | R23: 271630.3078 | S23: 0.08 | T23: 21730.42462 | U23: -1955.738216 | V23: -572.5789224 | W23: -2185.139098 | Y23: -7170.872271
F24: 2000 | G24: 1.35 | I24: 15 | J24: =IF(SUM(P$9:P23)>0,0,IF(P24=0,O24+P24+T24+U24+V24+W24+X24+Y24,P24)) -> 9725.37129 | K24: 4678.069876 | L24: =IF(OR(L23<>"na",L23="see above"),"see above",IF(SUM($K$10:K24)+$J$9>0,I24+(SUM($K$10:K24)+$J$9)/$J$9,"na")) -> see above | M24: 9725.37129 | O24: 0 | P24: 0 | Q24: 0.9322301194 | R24: 270272.1562 | S24: 0.08 | T24: 21621.7725 | U24: -1945.959525 | V24: -205.7034876 | W24: -2206.990489 | Y24: -7537.747705
F25: 5000 | G25: 1.31 | I25: 16 | J25: =IF(SUM(P$9:P24)>0,0,IF(P25=0,O25+P25+T25+U25+V25+W25+X25+Y25,P25)) -> 17348.37351 | K25: 7947.489794 | L25: =IF(OR(L24<>"na",L24="see above"),"see above",IF(SUM($K$10:K25)+$J$9>0,I25+(SUM($K$10:K25)+$J$9)/$J$9,"na")) -> see above | M25: 17348.37351 | O25: 0 | P25: 0 | Q25: 0.9275689688 | R25: 268920.7954 | S25: 0.08 | T25: 21513.66364 | U25: -1936.229727 | V25: 0 | W25: -2229.060394 | Y25: 0
F26: 10000 | G26: 1.28 | I26: 17 | J26: =IF(SUM(P$9:P25)>0,0,IF(P26=0,O26+P26+T26+U26+V26+W26+X26+Y26,P26)) -> 17228.19574 | K26: =+J26*(1+$G$1)^-I26 -> 7516.604735 | L26: =IF(OR(L25<>"na",L25="see above"),"see above",IF(SUM($K$10:K26)+$J$9>0,I26+(SUM($K$10:K26)+$J$9)/$J$9,"na")) -> see above | M26: 17228.19574 | O26: 0 | P26: 0 | Q26: 0.922931124 | R26: 267576.1915 | S26: 0.08 | T26: 21406.09532 | U26: -1926.548579 | V26: 0 | W26: -2251.350998 | Y26: 0
F27: 20000 | G27: 1.25 | I27: 18 | J27: =IF(SUM(P$9:P26)>0,0,IF(P27=0,O27+P27+T27+U27+V27+W27+X27+Y27,P27)) -> 17108.2845 | K27: 7108.845578 | L27: =IF(OR(L26<>"na",L26="see above"),"see above",IF(SUM($K$10:K27)+$J$9>0,I27+(SUM($K$10:K27)+$J$9)/$J$9,"na")) -> see above | M27: 17108.2845 | O27: 0 | P27: 0 | Q27: 0.9183164684 | R27: 266238.3105 | S27: 0.08 | T27: 21299.06484 | U27: -1916.915836 | V27: 0 | W27: -2273.864508 | Y27: 0
I28: 19 | J28: =IF(SUM(P$9:P27)>0,0,IF(P28=0,O28+P28+T28+U28+V28+W28+X28+Y28,P28)) -> 16988.63511 | K28: 6722.979795 | L28: =IF(OR(L27<>"na",L27="see above"),"see above",IF(SUM($K$10:K28)+$J$9>0,I28+(SUM($K$10:K28)+$J$9)/$J$9,"na")) -> see above | M28: 16988.63511 | O28: 0 | P28: 0 | Q28: 0.913724886 | R28: 264907.119 | S28: 0.08 | T28: 21192.56952 | U28: -1907.331256 | V28: 0 | W28: -2296.603153 | Y28: 0
I29: 20 | J29: =IF(SUM(P$9:P28)>0,0,IF(P29=0,O29+P29+T29+U29+V29+W29+X29+Y29,P29)) -> 16869.24288 | K29: 6357.840227 | L29: =IF(OR(L28<>"na",L28="see above"),"see above",IF(SUM($K$10:K29)+$J$9>0,I29+(SUM($K$10:K29)+$J$9)/$J$9,"na")) -> see above | M29: 16869.24288 | O29: 0 | P29: 0 | Q29: 0.9091562616 | R29: 263582.5834 | S29: 0.08 | T29: 21086.60667 | U29: -1897.7946 | V29: 0 | W29: -2319.569185 | Y29: 0
I30: 21 | J30: =IF(SUM(P$9:P29)>0,0,IF(P30=0,O30+P30+T30+U30+V30+W30+X30+Y30,P30)) -> 16750.10313 | K30: 6012.321626 | L30: =IF(OR(L29<>"na",L29="see above"),"see above",IF(SUM($K$10:K30)+$J$9>0,I30+(SUM($K$10:K30)+$J$9)/$J$9,"na")) -> see above | M30: 16750.10313 | O30: 0 | P30: 0 | Q30: 0.9046104803 | R30: 262264.6704 | S30: 0.08 | T30: 20981.17364 | U30: -1888.305627 | V30: 0 | W30: -2342.764877 | Y30: 0
I31: 22 | J31: =IF(SUM(P$9:P30)>0,0,IF(P31=0,O31+P31+T31+U31+V31+W31+X31+Y31,P31)) -> 16631.21114 | K31: 5685.377385 | L31: =IF(OR(L30<>"na",L30="see above"),"see above",IF(SUM($K$10:K31)+$J$9>0,I31+(SUM($K$10:K31)+$J$9)/$J$9,"na")) -> see above | M31: 16631.21114 | O31: 0 | P31: 0 | Q31: 0.9000874279 | R31: 260953.3471 | S31: 0.08 | T31: 20876.26777 | U31: -1878.864099 | V31: 0 | W31: -2366.192525 | Y31: 0
I32: 23 | J32: =IF(SUM(P$9:P31)>0,0,IF(P32=0,O32+P32+T32+U32+V32+W32+X32+Y32,P32)) -> 16512.5622 | K32: 5376.016437 | L32: =IF(OR(L31<>"na",L31="see above"),"see above",IF(SUM($K$10:K32)+$J$9>0,I32+(SUM($K$10:K32)+$J$9)/$J$9,"na")) -> see above | M32: 16512.5622 | O32: 0 | P32: 0 | Q32: 0.8955869907 | R32: 259648.5804 | S32: 0.08 | T32: 20771.88643 | U32: -1869.469779 | V32: 0 | W32: -2389.854451 | Y32: 0
I33: 24 | J33: =IF(SUM(P$9:P32)>0,0,IF(P33=0,O33+P33+T33+U33+V33+W33+X33+Y33,P33)) -> 4874.151571 | K33: 1511.317992 | L33: =IF(OR(L32<>"na",L32="see above"),"see above",IF(SUM($K$10:K33)+$J$9>0,I33+(SUM($K$10:K33)+$J$9)/$J$9,"na")) -> see above | M33: 4874.151571 | O33: 0 | P33: 0 | Q33: 0.8911090558 | R33: 258350.3375 | S33: 0.08 | T33: 20668.027 | U33: -1860.12243 | V33: 0 | W33: -2413.752995 | X33: =-G2*1000*0.06 -> -11520 | Y33: 0
I34: 25 | J34: =IF(SUM(P$9:P33)>0,0,IF(P34=0,O34+P34+T34+U34+V34+W34+X34+Y34,P34)) -> 16275.97452 | K34: 4806.340387 | L34: =IF(OR(L33<>"na",L33="see above"),"see above",IF(SUM($K$10:K34)+$J$9>0,I34+(SUM($K$10:K34)+$J$9)/$J$9,"na")) -> see above | M34: 16275.97452 | O34: 0 | P34: 0 | Q34: 0.8866535105 | R34: 257058.5858 | S34: 0.08 | T34: 20564.68686 | U34: -1850.821818 | V34: 0 | W34: -2437.890525 | Y34: 0
I35: 26 | J35: =IF(SUM(P$9:P34)>0,0,IF(P35=0,O35+P35+T35+U35+V35+W35+X35+Y35,P35)) -> 16158.02629 | K35: 4544.295189 | L35: =IF(OR(L34<>"na",L34="see above"),"see above",IF(SUM($K$10:K35)+$J$9>0,I35+(SUM($K$10:K35)+$J$9)/$J$9,"na")) -> see above | M35: 16158.02629 | O35: 0 | P35: 0 | Q35: 0.8822202429 | R35: 255773.2928 | S35: 0.08 | T35: 20461.86343 | U35: -1841.567708 | V35: 0 | W35: -2462.26943 | Y35: 0
I36: 27 | J36: =IF(SUM(P$9:P35)>0,0,IF(P36=0,O36+P36+T36+U36+V36+W36+X36+Y36,P36)) -> 16040.30212 | K36: 4296.367958 | L36: =IF(OR(L35<>"na",L35="see above"),"see above",IF(SUM($K$10:K36)+$J$9>0,I36+(SUM($K$10:K36)+$J$9)/$J$9,"na")) -> see above | M36: 16040.30212 | O36: 0 | P36: 0 | Q36: 0.8778091417 | R36: 254494.4264 | S36: 0.08 | T36: 20359.55411 | U36: -1832.35987 | V36: 0 | W36: -2486.892125 | Y36: 0
I37: 28 | J37: =IF(SUM(P$9:P36)>0,0,IF(P37=0,O37+P37+T37+U37+V37+W37+X37+Y37,P37)) -> 15922.79722 | K37: 4061.804257 | L37: =IF(OR(L36<>"na",L36="see above"),"see above",IF(SUM($K$10:K37)+$J$9>0,I37+(SUM($K$10:K37)+$J$9)/$J$9,"na")) -> see above | M37: 15922.79722 | O37: 0 | P37: 0 | Q37: 0.873420096 | R37: 253221.9542 | S37: 0.08 | T37: 20257.75634 | U37: -1823.198071 | V37: 0 | W37: -2511.761046 | Y37: 0
I38: 29 | J38: =IF(SUM(P$9:P37)>0,0,IF(P38=0,O38+P38+T38+U38+V38+W38+X38+Y38,P38)) -> 15805.50682 | K38: 3839.889735 | L38: =IF(OR(L37<>"na",L37="see above"),"see above",IF(SUM($K$10:K38)+$J$9>0,I38+(SUM($K$10:K38)+$J$9)/$J$9,"na")) -> see above | M38: 15805.50682 | O38: 0 | P38: 0 | Q38: 0.8690529955 | R38: 251955.8445 | S38: 0.08 | T38: 20156.46756 | U38: -1814.08208 | V38: 0 | W38: -2536.878656 | Y38: 0
I39: 30 | J39: =IF(SUM(P$9:P38)>0,0,IF(P39=0,O39+P39+T39+U39+V39+W39+X39+Y39,P39)) -> 10981.89827 | M39: =O39+T39+U39+V39+W39+X39+Y39 -> 15688.42611 | O39: 0 | P39: =IF(I39=G$13,G$15,0) -> 10981.89827 | Q39: 0.8647077306 | R39: 250696.0652 | S39: 0.08 | T39: 20055.68522 | U39: -1805.01167 | V39: 0 | W39: -2562.247443 | Y39: 0

Sheet Delay Tax Bfts. (Lease) (hidden)
F2: System Size (kW DC) | G2: 192 | M2: IRR Without Purchase | P2: IRR With Purchase | AU2: Yes
F3: Tax Credit Value (%) | G3: 0.26 | M3: Equity Amount | N3: =N5*(1-G4) -> 326400 | P3: Equity Amount | Q3: =Q5*(1-G4) -> 326400 | AU3: No
F4: Amount Financed (%) | G4: 0 | M4: Monthly Loan Payment | N4: =PMT(G6/12,G5*12,N5*G4) -> 0 | P4: Monthly Loan Payment | Q4: =PMT(G6/12,G5*12,Q5*G4) -> 0
F5: Loan Term (years) | G5: 25 | M5: Purchase Price | N5: =VLOOKUP(G2,F20:G27,2,TRUE)*G2*1000 -> 326400 | P5: Purchase Price | Q5: =VLOOKUP(G2,F20:G27,2,TRUE)*G2*1000 -> 326400
F6: Debt Financing Rate | G6: 0.035 | M6: IRR | N6: =IRR(M9:M39) -> 0.04507847948 | P6: IRR | Q6: =IRR(J9:INDIRECT("J"&G13+9&"")) -> 0.04461432382
F7: O&M Inflation Rate | G7: 0.01 | M7: Discounted Payback | N7: =SUM(L10:L39) -> 16.97386254
F8: Federal Tax Rate | G8: 0.3 | I8: Year | J8: Annual Value with Sale | K8: Discounted Annual Value | L8: Discounted Payback | M8: Annual Value | N8: Maximum Depreciation & ITC | O8: Actual Tax Benefits | P8: System Sale | Q8: Panel Output (Degredation) | R8: kWh Annual | S8: Effective Lease Rate | T8: Solar Revenue | U8: Sales Tax | V8: Interest Expense | W8: Maintenance & Insurance | X8: Inverter Replacement | Y8: Debt Service
F9: State Tax Rate | G9: 0.059 | H9: * | I9: 0 | J9: =-N5*(1-G4) -> -326400 | K9: =+J9 -> -326400 | M9: =-N5*(1-G4) -> -326400 | P9: =IF(I9=G$13,G$15,0) -> 0
F10: Tracker? | G10: No | I10: 1 | J10: =IF(SUM(P$9:P9)>0,0,IF(P10=0,O10+P10+T10+U10+W10+X10+Y10,P10)) -> 19797.3984 | K10: =+J10*(1+$G$1)^-I10 -> 19797.3984 | L10: =IF(+K10+$J$9>0,I10+(K10+$J$9)/$J$9,"na") -> na | M10: =O10+T10+U10+W10+X10+Y10 -> 19797.3984 | N10: =N5*G3+N5*0.87*G8+N5*0.2*G9 -> 173905.92 | O10: =IF(SUM(T10:W10)*G8<N10,SUM(T10:W10)*G8,0) -> 4568.6304 | P10: 0 | Q10: 1 | R10: =IF(G10="No",G2*1510,G2*1700) -> 289920 | S10: =G11 -> 0.065 | T10: =R10*S10 -> 18844.8 | U10: =T10*-0.09 -> -1696.032 | V10: =IF(I10<=G$5,IFERROR(CUMIPMT($G$6/12,$G$5*12,$N$5*$G$4,I10*12-11,I10*12,0),0),0) -> 0 | W10: =IF(G10="No",-G2*1000*0.01,-G2*1000*0.015) -> -1920 | Y10: =IF(I10<=G$5,N$4*12,0) -> 0
F11: Lease Rate ($/kWh) | G11: 0.065 | I11: 2 | J11: =IF(SUM(P$9:P10)>0,0,IF(P11=0,O11+P11+T11+U11+W11+X11+Y11,P11)) -> 19882.79072 | K11: =+J11*(1+$G$1)^-I11 -> 19882.79072 | L11: =IF(OR(L10<>"na",L10="see above"),"see above",IF(SUM($K$10:K11)+$J$9>0,I11+(SUM($K$10:K11)+$J$9)/$J$9,"na")) -> na | M11: =O11+T11+U11+W11+X11+Y11 -> 19882.79072 | N11: =N5*0.32*G9 -> 6162.432 | O11: =IF((SUM(T11:W11)*G8+O10)<SUM(N$10:N11),SUM(T11:W11)*G8,0) -> 4588.33632 | P11: 0 | Q11: =Q10*0.995 -> 0.995 | R11: =R$10*Q11 -> 288470.4 | S11: =S10*(1+G$12) -> 0.06565 | T11: =R11*S11 -> 18938.08176 | U11: =T11*-0.09 -> -1704.427358 | V11: 0 | W11: =W10*(1+G$7) -> -1939.2 | Y11: 0
F12: Lease Escalator (%) | G12: 0.01 | I12: 3 | J12: =IF(SUM(P$9:P11)>0,0,IF(P12=0,O12+P12+T12+U12+W12+X12+Y12,P12)) -> 19968.47969 | K12: 19968.47969 | L12: =IF(OR(L11<>"na",L11="see above"),"see above",IF(SUM($K$10:K12)+$J$9>0,I12+(SUM($K$10:K12)+$J$9)/$J$9,"na")) -> na | M12: 19968.47969 | N12: =N5*0.192*G9 -> 3697.4592 | O12: =IF((SUM(T12:W12)*$G$8+SUM(O$10:O11))<SUM(N$10:N12),SUM(T12:W12)*G$8,SUM(N$10:N12)-SUM(O$10:O11)) -> 4608.110697 | P12: 0 | Q12: =Q11*0.995 -> 0.990025 | R12: =R$10*Q12 -> 287028.048 | S12: 0.0663065 | T12: 19031.82526 | U12: -1712.864274 | V12: 0 | W12: -1958.592 | Y12: 0
F13: System Sale in Year | G13: 30 | I13: 4 | J13: =IF(SUM(P$9:P12)>0,0,IF(P13=0,O13+P13+T13+U13+W13+X13+Y13,P13)) -> 20054.46551 | K13: 20054.46551 | L13: =IF(OR(L12<>"na",L12="see above"),"see above",IF(SUM($K$10:K13)+$J$9>0,I13+(SUM($K$10:K13)+$J$9)/$J$9,"na")) -> na | M13: 20054.46551 | N13: =N5*0.1152*G9 -> 2218.47552 | O13: =IF((SUM(T13:W13)*$G$8+SUM(O$10:O12))<SUM(N$10:N13),SUM(T13:W13)*G$8,SUM(N$10:N13)-SUM(O$10:O12)) -> 4627.953578 | P13: 0 | Q13: 0.985074875 | R13: 285592.9078 | S13: 0.066969565 | T13: 19126.0328 | U13: -1721.342952 | V13: 0 | W13: -1978.17792 | Y13: 0
F14: Future Payments | G14: =SUM(INDIRECT("K"&G13+9&""):M39) -> 22394.67512 | I14: 5 | J14: =IF(SUM(P$9:P13)>0,0,IF(P14=0,O14+P14+T14+U14+W14+X14+Y14,P14)) -> 20140.74837 | K14: 20140.74837 | L14: =IF(OR(L13<>"na",L13="see above"),"see above",IF(SUM($K$10:K14)+$J$9>0,I14+(SUM($K$10:K14)+$J$9)/$J$9,"na")) -> na | M14: 20140.74837 | N14: =N5*0.1152*G9 -> 2218.47552 | O14: =IF((SUM(T14:W14)*$G$8+SUM(O$10:O13))<SUM(N$10:N14),SUM(T14:W14)*G$8,SUM(N$10:N14)-SUM(O$10:O13)) -> 4647.865009 | P14: 0 | Q14: 0.9801495006 | R14: 284164.9432 | S14: 0.06763926065 | T14: 19220.70666 | U14: -1729.8636 | V14: 0 | W14: -1997.959699 | Y14: 0
F15: Sale Price of System | G15: =G14*0.7 -> 15676.27259 | I15: 6 | J15: =IF(SUM(P$9:P14)>0,0,IF(P15=0,O15+P15+T15+U15+W15+X15+Y15,P15)) -> 20227.32847 | K15: 20227.32847 | L15: =IF(OR(L14<>"na",L14="see above"),"see above",IF(SUM($K$10:K15)+$J$9>0,I15+(SUM($K$10:K15)+$J$9)/$J$9,"na")) -> na | M15: 20227.32847 | N15: =N5*0.0576*G9 -> 1109.23776 | O15: =IF((SUM(T15:W15)*$G$8+SUM(O$10:O14))<SUM(N$10:N15),SUM(T15:W15)*G$8,SUM(N$10:N15)-SUM(O$10:O14)) -> 4667.845032 | P15: 0 | Q15: 0.9752487531 | R15: 282744.1185 | S15: 0.06831565326 | T15: 19315.84916 | U15: -1738.426424 | V15: 0 | W15: -2017.939296 | Y15: 0
F16: *Tracker not applicable for all projects | I16: 7 | J16: =IF(SUM(P$9:P15)>0,0,IF(P16=0,O16+P16+T16+U16+W16+X16+Y16,P16)) -> 20314.20598 | K16: 20314.20598 | L16: =IF(OR(L15<>"na",L15="see above"),"see above",IF(SUM($K$10:K16)+$J$9>0,I16+(SUM($K$10:K16)+$J$9)/$J$9,"na")) -> na | M16: 20314.20598 | O16: =IF((SUM(T16:W16)*$G$8+SUM(O$10:O15))<SUM(N$10:N16),SUM(T16:W16)*G$8,SUM(N$10:N16)-SUM(O$10:O15)) -> 4687.893687 | P16: 0 | Q16: 0.9703725094 | R16: 281330.3979 | S16: 0.06899880979 | T16: 19411.46261 | U16: -1747.031635 | V16: 0 | W16: -2038.118689 | Y16: 0
I17: 8 | J17: =IF(SUM(P$9:P16)>0,0,IF(P17=0,O17+P17+T17+U17+W17+X17+Y17,P17)) -> 20401.38105 | K17: 20401.38105 | L17: =IF(OR(L16<>"na",L16="see above"),"see above",IF(SUM($K$10:K17)+$J$9>0,I17+(SUM($K$10:K17)+$J$9)/$J$9,"na")) -> na | M17: 20401.38105 | O17: =IF((SUM(T17:W17)*$G$8+SUM(O$10:O16))<SUM(N$10:N17),SUM(T17:W17)*G$8,SUM(N$10:N17)-SUM(O$10:O16)) -> 4708.011011 | P17: 0 | Q17: 0.9655206468 | R17: 279923.7459 | S17: 0.06968879789 | T17: 19507.54935 | U17: -1755.679442 | V17: 0 | W17: -2058.499876 | Y17: 0
F18: Build Price Lookup Table | I18: 9 | J18: =IF(SUM(P$9:P17)>0,0,IF(P18=0,O18+P18+T18+U18+W18+X18+Y18,P18)) -> 20488.85383 | K18: 20488.85383 | L18: =IF(OR(L17<>"na",L17="see above"),"see above",IF(SUM($K$10:K18)+$J$9>0,I18+(SUM($K$10:K18)+$J$9)/$J$9,"na")) -> na | M18: 20488.85383 | O18: =IF((SUM(T18:W18)*$G$8+SUM(O$10:O17))<SUM(N$10:N18),SUM(T18:W18)*G$8,SUM(N$10:N18)-SUM(O$10:O17)) -> 4728.197038 | P18: 0 | Q18: 0.9606930436 | R18: 278524.1272 | S18: 0.07038568587 | T18: 19604.11172 | U18: -1764.370055 | V18: 0 | W18: -2079.084875 | Y18: 0
F19: System Size (kW) | G19: Est. Cost ($/W) | I19: 10 | J19: =IF(SUM(P$9:P18)>0,0,IF(P19=0,O19+P19+T19+U19+W19+X19+Y19,P19)) -> 20576.62446 | K19: 20576.62446 | L19: =IF(OR(L18<>"na",L18="see above"),"see above",IF(SUM($K$10:K19)+$J$9>0,I19+(SUM($K$10:K19)+$J$9)/$J$9,"na")) -> na | M19: 20576.62446 | O19: =IF((SUM(T19:W19)*$G$8+SUM(O$10:O18))<SUM(N$10:N19),SUM(T19:W19)*G$8,SUM(N$10:N19)-SUM(O$10:O18)) -> 4748.4518 | P19: 0 | Q19: 0.9558895784 | R19: 277131.5066 | S19: 0.07108954272 | T19: 19701.15208 | U19: -1773.103687 | V19: 0 | W19: -2099.875724 | Y19: 0
F20: 1 | G20: 1.7 | I20: 11 | J20: =IF(SUM(P$9:P19)>0,0,IF(P20=0,O20+P20+T20+U20+W20+X20+Y20,P20)) -> 20664.69307 | K20: 20664.69307 | L20: =IF(OR(L19<>"na",L19="see above"),"see above",IF(SUM($K$10:K20)+$J$9>0,I20+(SUM($K$10:K20)+$J$9)/$J$9,"na")) -> na | M20: 20664.69307 | O20: =IF((SUM(T20:W20)*$G$8+SUM(O$10:O19))<SUM(N$10:N20),SUM(T20:W20)*G$8,SUM(N$10:N20)-SUM(O$10:O19)) -> 4768.775324 | P20: 0 | Q20: 0.9511101305 | R20: 275745.849 | S20: 0.07180043815 | T20: 19798.67278 | U20: -1781.88055 | V20: 0 | W20: -2120.874481 | Y20: 0
F21: 200 | G21: 1.55 | I21: 12 | J21: =IF(SUM(P$9:P20)>0,0,IF(P21=0,O21+P21+T21+U21+W21+X21+Y21,P21)) -> 7313.059762 | K21: 7313.059762 | L21: =IF(OR(L20<>"na",L20="see above"),"see above",IF(SUM($K$10:K21)+$J$9>0,I21+(SUM($K$10:K21)+$J$9)/$J$9,"na")) -> na | M21: 7313.059762 | O21: =IF((SUM(T21:W21)*$G$8+SUM(O$10:O20))<SUM(N$10:N21),SUM(T21:W21)*G$8,SUM(N$10:N21)-SUM(O$10:O20)) -> 4789.167637 | P21: 0 | Q21: 0.9463545798 | R21: 274367.1198 | S21: 0.07251844253 | T21: 19896.67621 | U21: -1790.700859 | V21: 0 | W21: -2142.083226 | X21: =-G2*1000*0.07 -> -13440 | Y21: 0
F22: 500 | G22: 1.5 | I22: 13 | J22: =IF(SUM(P$9:P21)>0,0,IF(P22=0,O22+P22+T22+U22+W22+X22+Y22,P22)) -> 20841.72463 | K22: 20841.72463 | L22: =IF(OR(L21<>"na",L21="see above"),"see above",IF(SUM($K$10:K22)+$J$9>0,I22+(SUM($K$10:K22)+$J$9)/$J$9,"na")) -> na | M22: 20841.72463 | O22: =IF((SUM(T22:W22)*$G$8+SUM(O$10:O21))<SUM(N$10:N22),SUM(T22:W22)*G$8,SUM(N$10:N22)-SUM(O$10:O21)) -> 4809.628761 | P22: 0 | Q22: 0.9416228069 | R22: 272995.2842 | S22: 0.07324362696 | T22: 19995.16476 | U22: -1799.564828 | V22: 0 | W22: -2163.504058 | Y22: 0
F23: 1000 | G23: 1.45 | I23: 14 | J23: =IF(SUM(P$9:P22)>0,0,IF(P23=0,O23+P23+T23+U23+W23+X23+Y23,P23)) -> 20930.68776 | K23: 20930.68776 | L23: =IF(OR(L22<>"na",L22="see above"),"see above",IF(SUM($K$10:K23)+$J$9>0,I23+(SUM($K$10:K23)+$J$9)/$J$9,"na")) -> na | M23: 20930.68776 | O23: =IF((SUM(T23:W23)*$G$8+SUM(O$10:O22))<SUM(N$10:N23),SUM(T23:W23)*G$8,SUM(N$10:N23)-SUM(O$10:O22)) -> 4830.158715 | P23: 0 | Q23: 0.9369146929 | R23: 271630.3078 | S23: 0.07397606323 | T23: 20094.14082 | U23: -1808.472674 | V23: 0 | W23: -2185.139098 | Y23: 0
F24: 2000 | G24: 1.35 | I24: 15 | J24: =IF(SUM(P$9:P23)>0,0,IF(P24=0,O24+P24+T24+U24+W24+X24+Y24,P24)) -> 21019.94923 | K24: 21019.94923 | L24: =IF(OR(L23<>"na",L23="see above"),"see above",IF(SUM($K$10:K24)+$J$9>0,I24+(SUM($K$10:K24)+$J$9)/$J$9,"na")) -> na | M24: 21019.94923 | O24: =IF((SUM(T24:W24)*$G$8+SUM(O$10:O23))<SUM(N$10:N24),SUM(T24:W24)*G$8,SUM(N$10:N24)-SUM(O$10:O23)) -> 4850.757515 | P24: 0 | Q24: 0.9322301194 | R24: 270272.1562 | S24: 0.07471582386 | T24: 20193.60682 | U24: -1817.424614 | V24: 0 | W24: -2206.990489 | Y24: 0
F25: 5000 | G25: 1.31 | I25: 16 | J25: =IF(SUM(P$9:P24)>0,0,IF(P25=0,O25+P25+T25+U25+W25+X25+Y25,P25)) -> 21109.50909 | K25: 21109.50909 | L25: =IF(OR(L24<>"na",L24="see above"),"see above",IF(SUM($K$10:K25)+$J$9>0,I25+(SUM($K$10:K25)+$J$9)/$J$9,"na")) -> na | M25: 21109.50909 | O25: =IF((SUM(T25:W25)*$G$8+SUM(O$10:O24))<SUM(N$10:N25),SUM(T25:W25)*G$8,SUM(N$10:N25)-SUM(O$10:O24)) -> 4871.425174 | P25: 0 | Q25: 0.9275689688 | R25: 268920.7954 | S25: 0.0754629821 | T25: 20293.56517 | U25: -1826.420866 | V25: 0 | W25: -2229.060394 | Y25: 0
F26: 10000 | G26: 1.28 | I26: 17 | J26: =IF(SUM(P$9:P25)>0,0,IF(P26=0,O26+P26+T26+U26+W26+X26+Y26,P26)) -> 21199.36737 | K26: =+J26*(1+$G$1)^-I26 -> 21199.36737 | L26: =IF(OR(L25<>"na",L25="see above"),"see above",IF(SUM($K$10:K26)+$J$9>0,I26+(SUM($K$10:K26)+$J$9)/$J$9,"na")) -> 16.97386254 | M26: 21199.36737 | O26: =IF((SUM(T26:W26)*$G$8+SUM(O$10:O25))<SUM(N$10:N26),SUM(T26:W26)*G$8,SUM(N$10:N26)-SUM(O$10:O25)) -> 4892.161702 | P26: 0 | Q26: 0.922931124 | R26: 267576.1915 | S26: 0.07621761192 | T26: 20394.01832 | U26: -1835.461649 | V26: 0 | W26: -2251.350998 | Y26: 0
F27: 20000 | G27: 1.25 | I27: 18 | J27: =IF(SUM(P$9:P26)>0,0,IF(P27=0,O27+P27+T27+U27+W27+X27+Y27,P27)) -> 21289.52412 | K27: 21289.52412 | L27: =IF(OR(L26<>"na",L26="see above"),"see above",IF(SUM($K$10:K27)+$J$9>0,I27+(SUM($K$10:K27)+$J$9)/$J$9,"na")) -> see above | M27: 21289.52412 | O27: =IF((SUM(T27:W27)*$G$8+SUM(O$10:O26))<SUM(N$10:N27),SUM(T27:W27)*G$8,SUM(N$10:N27)-SUM(O$10:O26)) -> 4912.967106 | P27: 0 | Q27: 0.9183164684 | R27: 266238.3105 | S27: 0.07697978804 | T27: 20494.96871 | U27: -1844.547184 | V27: 0 | W27: -2273.864508 | Y27: 0
I28: 19 | J28: =IF(SUM(P$9:P27)>0,0,IF(P28=0,O28+P28+T28+U28+W28+X28+Y28,P28)) -> 21379.97935 | K28: 21379.97935 | L28: =IF(OR(L27<>"na",L27="see above"),"see above",IF(SUM($K$10:K28)+$J$9>0,I28+(SUM($K$10:K28)+$J$9)/$J$9,"na")) -> see above | M28: 21379.97935 | O28: =IF((SUM(T28:W28)*$G$8+SUM(O$10:O27))<SUM(N$10:N28),SUM(T28:W28)*G$8,SUM(N$10:N28)-SUM(O$10:O27)) -> 4933.841388 | P28: 0 | Q28: 0.913724886 | R28: 264907.119 | S28: 0.07774958592 | T28: 20596.41881 | U28: -1853.677693 | V28: 0 | W28: -2296.603153 | Y28: 0
I29: 20 | J29: =IF(SUM(P$9:P28)>0,0,IF(P29=0,O29+P29+T29+U29+W29+X29+Y29,P29)) -> 21470.73305 | K29: 21470.73305 | L29: =IF(OR(L28<>"na",L28="see above"),"see above",IF(SUM($K$10:K29)+$J$9>0,I29+(SUM($K$10:K29)+$J$9)/$J$9,"na")) -> see above | M29: 21470.73305 | O29: =IF((SUM(T29:W29)*$G$8+SUM(O$10:O28))<SUM(N$10:N29),SUM(T29:W29)*G$8,SUM(N$10:N29)-SUM(O$10:O28)) -> 4954.784549 | P29: 0 | Q29: 0.9091562616 | R29: 263582.5834 | S29: 0.07852708178 | T29: 20698.37108 | U29: -1862.853397 | V29: 0 | W29: -2319.569185 | Y29: 0
I30: 21 | J30: =IF(SUM(P$9:P29)>0,0,IF(P30=0,O30+P30+T30+U30+W30+X30+Y30,P30)) -> 21561.7852 | K30: 21561.7852 | L30: =IF(OR(L29<>"na",L29="see above"),"see above",IF(SUM($K$10:K30)+$J$9>0,I30+(SUM($K$10:K30)+$J$9)/$J$9,"na")) -> see above | M30: 21561.7852 | O30: =IF((SUM(T30:W30)*$G$8+SUM(O$10:O29))<SUM(N$10:N30),SUM(T30:W30)*G$8,SUM(N$10:N30)-SUM(O$10:O29)) -> 4975.796585 | P30: 0 | Q30: 0.9046104803 | R30: 262264.6704 | S30: 0.0793123526 | T30: 20800.82802 | U30: -1872.074521 | V30: 0 | W30: -2342.764877 | Y30: 0
I31: 22 | J31: =IF(SUM(P$9:P30)>0,0,IF(P31=0,O31+P31+T31+U31+W31+X31+Y31,P31)) -> 21653.13579 | K31: 21653.13579 | L31: =IF(OR(L30<>"na",L30="see above"),"see above",IF(SUM($K$10:K31)+$J$9>0,I31+(SUM($K$10:K31)+$J$9)/$J$9,"na")) -> see above | M31: 21653.13579 | O31: =IF((SUM(T31:W31)*$G$8+SUM(O$10:O30))<SUM(N$10:N31),SUM(T31:W31)*G$8,SUM(N$10:N31)-SUM(O$10:O30)) -> 4996.87749 | P31: 0 | Q31: 0.9000874279 | R31: 260953.3471 | S31: 0.08010547612 | T31: 20903.79211 | U31: -1881.34129 | V31: 0 | W31: -2366.192525 | Y31: 0
I32: 23 | J32: =IF(SUM(P$9:P31)>0,0,IF(P32=0,O32+P32+T32+U32+W32+X32+Y32,P32)) -> 21744.78476 | K32: 21744.78476 | L32: =IF(OR(L31<>"na",L31="see above"),"see above",IF(SUM($K$10:K32)+$J$9>0,I32+(SUM($K$10:K32)+$J$9)/$J$9,"na")) -> see above | M32: 21744.78476 | O32: =IF((SUM(T32:W32)*$G$8+SUM(O$10:O31))<SUM(N$10:N32),SUM(T32:W32)*G$8,SUM(N$10:N32)-SUM(O$10:O31)) -> 5018.027251 | P32: 0 | Q32: 0.8955869907 | R32: 259648.5804 | S32: 0.08090653088 | T32: 21007.26589 | U32: -1890.65393 | V32: 0 | W32: -2389.854451 | Y32: 0
I33: 24 | J33: =IF(SUM(P$9:P32)>0,0,IF(P33=0,O33+P33+T33+U33+W33+X33+Y33,P33)) -> 10316.73205 | K33: 10316.73205 | L33: =IF(OR(L32<>"na",L32="see above"),"see above",IF(SUM($K$10:K33)+$J$9>0,I33+(SUM($K$10:K33)+$J$9)/$J$9,"na")) -> see above | M33: 10316.73205 | O33: =IF((SUM(T33:W33)*$G$8+SUM(O$10:O32))<SUM(N$10:N33),SUM(T33:W33)*G$8,SUM(N$10:N33)-SUM(O$10:O32)) -> 5039.245857 | P33: 0 | Q33: 0.8911090558 | R33: 258350.3375 | S33: 0.08171559619 | T33: 21111.25185 | U33: -1900.012667 | V33: 0 | W33: -2413.752995 | X33: =-G2*1000*0.06 -> -11520 | Y33: 0
I34: 25 | J34: =IF(SUM(P$9:P33)>0,0,IF(P34=0,O34+P34+T34+U34+W34+X34+Y34,P34)) -> 21928.97758 | K34: 21928.97758 | L34: =IF(OR(L33<>"na",L33="see above"),"see above",IF(SUM($K$10:K34)+$J$9>0,I34+(SUM($K$10:K34)+$J$9)/$J$9,"na")) -> see above | M34: 21928.97758 | O34: =IF((SUM(T34:W34)*$G$8+SUM(O$10:O33))<SUM(N$10:N34),SUM(T34:W34)*G$8,SUM(N$10:N34)-SUM(O$10:O33)) -> 5060.533288 | P34: 0 | Q34: 0.8866535105 | R34: 257058.5858 | S34: 0.08253275215 | T34: 21215.75255 | U34: -1909.417729 | V34: 0 | W34: -2437.890525 | Y34: 0
I35: 26 | J35: =IF(SUM(P$9:P34)>0,0,IF(P35=0,O35+P35+T35+U35+W35+X35+Y35,P35)) -> 22021.52127 | K35: 22021.52127 | L35: =IF(OR(L34<>"na",L34="see above"),"see above",IF(SUM($K$10:K35)+$J$9>0,I35+(SUM($K$10:K35)+$J$9)/$J$9,"na")) -> see above | M35: 22021.52127 | O35: =IF((SUM(T35:W35)*$G$8+SUM(O$10:O34))<SUM(N$10:N35),SUM(T35:W35)*G$8,SUM(N$10:N35)-SUM(O$10:O34)) -> 5081.889524 | P35: 0 | Q35: 0.8822202429 | R35: 255773.2928 | S35: 0.08335807968 | T35: 21320.77052 | U35: -1918.869347 | V35: 0 | W35: -2462.26943 | Y35: 0
I36: 27 | J36: =IF(SUM(P$9:P35)>0,0,IF(P36=0,O36+P36+T36+U36+W36+X36+Y36,P36)) -> 22114.363 | K36: 22114.363 | L36: =IF(OR(L35<>"na",L35="see above"),"see above",IF(SUM($K$10:K36)+$J$9>0,I36+(SUM($K$10:K36)+$J$9)/$J$9,"na")) -> see above | M36: 22114.363 | O36: =IF((SUM(T36:W36)*$G$8+SUM(O$10:O35))<SUM(N$10:N36),SUM(T36:W36)*G$8,SUM(N$10:N36)-SUM(O$10:O35)) -> 5103.314539 | P36: 0 | Q36: 0.8778091417 | R36: 254494.4264 | S36: 0.08419166047 | T36: 21426.30834 | U36: -1928.36775 | V36: 0 | W36: -2486.892125 | Y36: 0
I37: 28 | J37: =IF(SUM(P$9:P36)>0,0,IF(P37=0,O37+P37+T37+U37+W37+X37+Y37,P37)) -> 22207.50265 | K37: 22207.50265 | L37: =IF(OR(L36<>"na",L36="see above"),"see above",IF(SUM($K$10:K37)+$J$9>0,I37+(SUM($K$10:K37)+$J$9)/$J$9,"na")) -> see above | M37: 22207.50265 | O37: =IF((SUM(T37:W37)*$G$8+SUM(O$10:O36))<SUM(N$10:N37),SUM(T37:W37)*G$8,SUM(N$10:N37)-SUM(O$10:O36)) -> 5124.808304 | P37: 0 | Q37: 0.873420096 | R37: 253221.9542 | S37: 0.08503357708 | T37: 21532.36856 | U37: -1937.913171 | V37: 0 | W37: -2511.761046 | Y37: 0
I38: 29 | J38: =IF(SUM(P$9:P37)>0,0,IF(P38=0,O38+P38+T38+U38+W38+X38+Y38,P38)) -> 22300.94008 | K38: =+J38*(1+$G$1)^-I38 -> 22300.94008 | L38: =IF(OR(L37<>"na",L37="see above"),"see above",IF(SUM($K$10:K38)+$J$9>0,I38+(SUM($K$10:K38)+$J$9)/$J$9,"na")) -> see above | M38: 22300.94008 | O38: =IF((SUM(T38:W38)*$G$8+SUM(O$10:O37))<SUM(N$10:N38),SUM(T38:W38)*G$8,SUM(N$10:N38)-SUM(O$10:O37)) -> 5146.370787 | P38: 0 | Q38: 0.8690529955 | R38: 251955.8445 | S38: 0.08588391285 | T38: 21638.95379 | U38: -1947.505841 | V38: 0 | W38: -2536.878656 | Y38: 0
I39: 30 | J39: =IF(SUM(P$9:P38)>0,0,IF(P39=0,O39+P39+T39+U39+W39+X39+Y39,P39)) -> 15676.27259 | M39: 22394.67512 | O39: =IF((SUM(T39:W39)*$G$8+SUM(O$10:O38))<SUM(N$10:N39),SUM(T39:W39)*G$8,SUM(N$10:N39)-SUM(O$10:O38)) -> 5168.001951 | P39: 15676.27259 | Q39: 0.8647077306 | R39: 250696.0652 | S39: 0.08674275198 | T39: 21746.06661 | U39: -1957.145995 | V39: 0 | W39: -2562.247443 | Y39: 0
